Workbook

Sheet Inicio EPar
A24: Descargue la versión Kindle
K32: Miguel Cervantes Jiménez

Sheet Productor (hidden)
A1: Función de oferta de productores heterogéneos
B3: Toma de decisión de la empresa mediana
B4: Función de producción | D4: Isobeneficio
B5: y | C5: ='Oculto prod'!C27 -> 204.5 | D5: p | E5: ='Oculto prod'!E27 -> 6,204.5
B6: A mínimo | C6: 1.0 | D6: p1 | E6: 90.0
B7: A máximo | C7: 1.0 | D7: w1 | E7: 22.0
B8: q1 | C8: ='Oculto prod'!C30 -> 418.4 | D8: q1 | E8: ='Oculto prod'!E30 -> 418.4
B9: b mínimo | C9: 0.5 | D9: w2 | E9: 30.0
B10: b máximo | C10: 0.5 | D10: q2 | E10: =C11 -> 100.0
B11: q2 | C11: 100.0
B12: g | C12: 0.5
C13: Inserte los datos correspondientes
B14: Función de oferta de la industria
B15: Número de productores | E15: 20
B16: Producción de la industria | E16: ='Oculto prod'!$F$36 -> 4,090.9
B17: q1 | E17: ='Oculto prod'!E36 -> 8,367.8
B18: Masa salarial | E18: =E17*E7 -> 184,090.9
B29: Títulos
B30: Valores de equilibrio
B31: Resultados
B32: Insertar datos
B33: Cantidad de equilibrio

Sheet Mercado homo (hidden)
B1: Equilibrio en el mercados con consumidores y productores homogéneos
B3: FUNCIÓN DE OFERTA | G3: FUNCIÓN DE DEMANDA | M3: LA EMPRESA
B5: Toma de decisión de la empresa mediana | G5: Recta presupuestal | M5: CORTO PLAZO
B6: Función de producción | D6: Isobeneficio | G6: m | H6: p1 | I6: p2 | M6: Costo varable | N6: ='Oculto mercadohomo'!G33 -> 6,250.0 | O6: precio corto plazo | P6: ='Oculto mercadohomo'!I33 -> 74.2 | U6: x1 | V6: =V7*(V8^(V9))*(V10^(V11)) -> 116.8 | W6: x1 | X6: =((X8*V9)/X9)^(V9/(1-V9))*(X12)^(V11/(1-V9))*(V7^(1/(1-V9))) -> 116.8
B7: x1* | C7: ='Oculto mercadohomo'!C2 -> 204.5 | D7: p | E7: ='Oculto mercadohomo'!E3 -> 6,204.5 | G7: 50,000.0 | H7: ='Oculto mercadohomo'!C21 -> 90.0 | I7: 92.0 | M7: Costo fijo | N7: ='Oculto mercadohomo'!G34 -> 3,000.0 | O7: Cantidad corto plazo | P7: ='Oculto mercadohomo'!I34 -> 168.5 | U7: A | V7: =C8 -> 1.0 | W7: p | X7: =(X8*V6)-(X9*X10+X11*X12) -> 0.0
B8: A | C8: 1.0 | D8: p1 | E8: 90.0 | G8: Inserte los datos correspondientes | M8: Costo total | N8: ='Oculto mercadohomo'!G35 -> 9,250.0 | O8: Ingreso total | P8: ='Oculto mercadohomo'!I35 -> 12,500.0 | U8: q1 | V8: =X8*V9*X6/X9 -> 136.4 | W8: p1 | X8: =P15 -> 51.4
B9: q1 | C9: ='Oculto mercadohomo'!C4 -> 418.4 | D9: w1 | E9: 22.0 | G9: Función Cobb-Douglas | M9: Costo varable medio | N9: ='Oculto mercadohomo'!G36 -> 37.1 | O9: Costo total | P9: ='Oculto mercadohomo'!I36 -> 6,250.0 | U9: b | V9: =C10 -> 0.5 | W9: w1 | X9: =E9 -> 22.0
B10: b | C10: 0.50 | D10: q1 | E10: ='Oculto mercadohomo'!E6 -> 418.4 | G10: v(p1,m) | H10: a1 | I10: x1* | J10: 1-a1 | K10: x2* | M10: Costo fijo medio | N10: ='Oculto mercadohomo'!G37 -> 17.8 | O10: Beneficio | P10: ='Oculto mercadohomo'!I37 -> 6,250.0 | U10: q2 | V10: =X12 -> 100.0 | W10: q1 | X10: =V8 -> 136.4
B11: q2 | C11: 100.0 | D11: w2 | E11: 30.0 | G11: ='Oculto mercadohomo'!B25 -> 274.7 | H11: 0.5 | I11: ='Oculto mercadohomo'!D25 -> 277.8 | J11: ='Oculto mercadohomo'!E25 -> 0.5 | K11: ='Oculto mercadohomo'!F25 -> 271.7 | M11: Costo medio | N11: ='Oculto mercadohomo'!G38 -> 54.9 | O11: Número de empresas | P11: =E16 -> 20.0 | U11: 1-b | V11: =1-V9 -> 0.5 | W11: w2 | X11: =E11 -> 30.0
B12: 1-b | C12: =1-C10 -> 0.5 | D12: q2 | E12: =C11 -> 100.0 | H12: Inserte los datos correspondientes | M12: Costo marginal | N12: ='Oculto mercadohomo'!G39 -> 74.2 | W12: q2 | X12: =E12 -> 100.0
C13: Inserte los datos correspondientes
M14: LARGO PLAZO | W14: No. Empresas | X14: trabajadores | Y14: producción | Z14: masa salarial
B15: Función de oferta de la industria | G15: Función de demanda agregada | M15: Costo varable | N15: ='Oculto mercadohomo'!G42 -> 3,000.0 | O15: p largo plazo | P15: ='Oculto mercadohomo'!I42 -> 51.4 | U15: Número de vendedores | W15: 42 | X15: =X10*W15 -> 5,682 | Y15: =X6*W15 -> 4,866 | Z15: =X15*X9 -> 125,000
B16: Número de productores | E16: 20 | G16: Número de consumidores | J16: 10 | M16: Costo fijo | N16: ='Oculto mercadohomo'!G43 -> 3,000.0 | O16: x1 largo plazo | P16: ='Oculto mercadohomo'!I43 -> 116.8 | Y16: =Y15-W33 -> 0
B17: Producción de la industria | E17: ='Oculto mercadohomo'!$F$11 -> 4,090.9 | G17: Consumo de las familias | J17: ='Oculto mercadohomo'!D29 -> 2,777.8 | M17: Costo total | N17: ='Oculto mercadohomo'!G44 -> 6,000.0 | O17: Ingreso total | P17: ='Oculto mercadohomo'!I44 -> 6,000.0
B18: q1 | E18: ='Oculto mercadohomo'!E11 -> 8,367.8 | G18: Precio de equilibrio | J18: ='Oculto mercadohomo'!D30 -> 74.2 | M18: Costo varable medio | N18: ='Oculto mercadohomo'!G45 -> 25.7 | O18: Costo total | P18: ='Oculto mercadohomo'!I45 -> 6,000.0
B19: Masa salarial | E19: =E18*E9 -> 184,090.9 | G19: Cantidad de equilibrio | J19: ='Oculto mercadohomo'!D31 -> 3,371.0 | M19: Costo fijo medio | N19: ='Oculto mercadohomo'!G46 -> 25.7 | O19: Beneficio | P19: ='Oculto mercadohomo'!I46 -> 0
M20: Costo medio | N20: ='Oculto mercadohomo'!G47 -> 51.4 | O20: =IF(Y16>1,"Empresas en desequilibrio",IF(Y16<-1,"Empresas en desequilibrio","Empresas en equilibiro")) -> Empresas en equilibiro | P20: =W15 -> 42
M21: Costo marginal | N21: ='Oculto mercadohomo'!G48 -> 51.4
U23: RECTA PRESUPUESTAL
U24: m | V24: p1 | W24: p2
U25: =G7 -> 50,000.0 | V25: =X8 -> 51.4 | W25: =I7 -> 92.0
U26: Inserte los datos correspondientes
U27: FUNCIÓN COBB-DOUGLAS
T28: m | U28: v | V28: a1 | W28: x1* | X28: 1-a1 | Y28: x2*
T29: =U25 -> 50,000.0 | U29: =W29^V29*Y29^X29 -> 363.6 | V29: =H11 -> 0.5 | W29: =V29*T29/V25 -> 486.6 | X29: =1-V29 -> 0.5 | Y29: =X29*T29/W25 -> 271.7
T32: Número de consumidores | W32: =J16 -> 10
J33: Títulos | T33: Consumo de las familias | W33: =W32*W29 -> 4,865.6
J34: Valores de equilibrio | T34: Precio de equilibrio | W34: =((V29*T29*W32)/(((V9/X9)^(V9/V11))*V10*W15))^(V11) -> 51.4
J35: Resultados | T35: Cantidad de equilibrio | W35: =V29*T29/W34*W32 -> 4,865.6
J36: Insertar datos | Y36: SOLUCIONES DE CORTO PLAZO
Y37: cv | Z37: =((AB38)^(1/V9)*(1/V10^(V11))^(1/V9)*X9) -> 3,000.0 | AA37: p corto | AB37: =W34 -> 51.38
Y38: cf | Z38: =X11*X12 -> 3,000.0 | AA38: x1 corto | AB38: =((W34*V9)/X9)^(V9/(1-V9))*(X12)^(V11/(1-V9))*(V7^(1/(1-V9))) -> 116.8
Y39: ct | Z39: =((AB38)^(1/V9)*(1/V10^(V11))^(1/V9)*X9)+(X11*X12) -> 6,000.0 | AA39: IT | AB39: =AB37*AB38 -> 6,000.0
Y40: CVMe | Z40: =((AB38)^((1/V9)-1)*(1/V10^(V11))^(1/V9)*X9) -> 25.7 | AA40: CT | AB40: =Z40*AB38 -> 3,000.0
Y41: CFMe | Z41: =(X11*X12/AB38) -> 25.7 | AA41: Ben | AB41: =AB39-AB40 -> 3,000.0
Y42: Cme | Z42: =((AB38)^((1/V9)-1)*(1/V10^(V11))^(1/V9)*X9)+(X11*X12/AB38) -> 51.4 | AA42: p largo | AB42: =(1/V9)*(((1/V10)^(V11))^(1/V9))*(AB43^(1/V9-1)*X9) -> 51.4
Y43: CM | Z43: =(1/V9)*((AB38)^((1/V9)-1)*(1/V10^(V11))^(1/V9)*X9) -> 51.4 | AA43: x1 largo | AB43: =((X12*X11)/((1/V9-1)*((1/X12^(V11))^(1/V9))*X9))^(V9) -> 116.8
Y45: SOLUCIONES DE LARGO PLAZO
Y46: cv | Z46: =((AB43)^(1/V9)*(1/V10^(V11))^(1/V9)*X9) -> 3,000.0 | AA46: p largo | AB46: =(1/V9)*(((1/V10)^(V11))^(1/V9))*(AB43^(1/V9-1)*X9) -> 51.4
Y47: cf | Z47: =X11*X12 -> 3,000.0 | AA47: x1 largo | AB47: =((X12*X11)/((1/V9-1)*((1/X12^(V11))^(1/V9))*X9))^(V9) -> 116.8
Y48: ct | Z48: =((AB43)^(1/V9)*(1/V10^(V11))^(1/V9)*X9)+(X11*X12) -> 6,000.0 | AA48: IT | AB48: =AB46*AB47 -> 6,000.0
Y49: CVMe | Z49: =((AB43)^((1/V9)-1)*(1/V10^(V11))^(1/V9)*X9) -> 25.7 | AA49: CT | AB49: =Z51*AB47 -> 6,000.0
Y50: CFMe | Z50: =(X11*X12/AB43) -> 25.7 | AA50: Ben | AB50: =AB48-AB49 -> 0
Y51: Cme | Z51: =((AB43)^((1/V9)-1)*(1/V10^(V11))^(1/V9)*X9)+(X11*X12/AB43) -> 51.4
Y52: CM | Z52: =(1/V9)*((AB43)^((1/V9)-1)*(1/V10^(V11))^(1/V9)*X9) -> 51.4

Sheet Oculto mercadohomo (hidden)
L1: Función de demanda | N1: Función de oferta
B2: x1 | C2: =C3*(C4^(C5))*(C6^(C7)) -> 204.5 | D2: x1 | E2: =((E4*C5)/E5)^(C5/(1-C5))*(E8)^(C7/(1-C5))*(C3^(1/(1-C5))) -> 204.5 | K2: Ponderador | L2: p | M2: y | N2: y | O2: Ponderador | P2: yline | Q2: ofer | R2: ofer | S2: dem | T2: pline | U2: pline | W2: equilibrio
B3: A | C3: 1.0 | D3: p | E3: =(E4*C2)-(E5*E6+E7*E8) -> 6,204.5 | K3: 0 | L3: =$C$21*O3 -> 0 | N3: =((L3*$C$5)/$E$5)^($C$5/(1-$C$5))*($E$8)^($C$7/(1-$C$5))*($C$3^(1/(1-$C$5)))*$D$11 -> 0 | O3: 0 | P3: =$C$21 -> 90.0 | Q3: =$F$11*K3 -> 0 | R3: =$F$11 -> 4,090.91 | S3: =$D$29 -> 2,777.78 | T3: =$C$21*K3 -> 0 | U3: =$F$13*K3 -> 0 | V3: =K3*$F$13 -> 0 | W3: =$D$30 -> 74.2 | X3: =$D$30*K3 -> 0 | Y3: =$D$31 -> 3,371.0 | Z3: =$D$31*K3 -> 0
B4: q1 | C4: =E4*C5*E2/E5 -> 418.4 | D4: p1 | E4: ='Mercado homo'!E8 -> 90.0 | K4: 0.05 | L4: 7.50 | N4: 340.91 | O4: =1/O25 -> 0.08 | P4: =$C$21 -> 90.0 | Q4: =$F$11*K4 -> 204.55 | R4: =$F$11 -> 4,090.91 | S4: =$D$29 -> 2,777.78 | T4: 4.50 | U4: 204.5 | V4: =K4*$F$13 -> 204.55 | W4: =$D$30 -> 74.2 | X4: =$D$30*K4 -> 3.708099244 | Y4: =$D$31 -> 3,371.0 | Z4: =$D$31*K4 -> 168.5499656
B5: b | C5: ='Mercado homo'!C10 -> 0.5 | D5: w1 | E5: ='Mercado homo'!E9 -> 22.0 | K5: 0.10 | L5: 15.00 | N5: 681.82 | O5: =$O$4+O4 -> 0.17 | P5: 90.0 | Q5: 409.09 | R5: 4,090.91 | S5: 2,777.78 | T5: 9.00 | U5: 409.1 | V5: 409.09 | W5: 74.2 | X5: 7.416198487 | Y5: 3,371.0 | Z5: 337.0999312
B6: q2 | C6: =E8 -> 100.0 | D6: q1 | E6: =C4 -> 418.4 | K6: 0.15 | L6: 22.50 | N6: 1,022.73 | O6: 0.25 | P6: 90.0 | Q6: 613.64 | R6: 4,090.91 | S6: 2,777.78 | T6: 13.50 | U6: 613.6 | V6: 613.64 | W6: 74.2 | X6: 11.12429773 | Y6: 3,371.0 | Z6: 505.6498968
B7: 1-b | C7: ='Mercado homo'!C12 -> 0.5 | D7: w2 | E7: ='Mercado homo'!E11 -> 30.0 | K7: 0.20 | L7: 30.00 | N7: 1,363.64 | O7: 0.33 | P7: 90.0 | Q7: 818.18 | R7: 4,090.91 | S7: 2,777.78 | T7: 18.00 | U7: 818.2 | V7: 818.18 | W7: 74.2 | X7: 14.83239697 | Y7: 3,371.0 | Z7: 674.1998625
D8: q2 | E8: ='Mercado homo'!C11 -> 100.0 | K8: 0.25 | L8: 37.50 | M8: =$C$25*$A$25/L8*$D$28 -> 6,666.7 | N8: 1,704.55 | O8: 0.42 | P8: 90.0 | Q8: 1,022.73 | R8: 4,090.91 | S8: 2,777.78 | T8: 22.50 | U8: 1,022.7 | V8: 1,022.73 | W8: 74.2 | X8: 18.54049622 | Y8: 3,371.0 | Z8: 842.7498281
K9: 0.30 | L9: 45.00 | M9: 5,555.6 | N9: 2,045.45 | O9: 0.50 | P9: 90.0 | Q9: 1,227.27 | R9: 4,090.91 | S9: 2,777.78 | T9: 27.00 | U9: 1,227.3 | V9: 1,227.27 | W9: 74.2 | X9: 22.24859546 | Y9: 3,371.0 | Z9: 1011.299794
D10: No. Empresas | E10: trabajadores | F10: producción | G10: masa salarial | K10: 0.35 | L10: 52.50 | M10: 4,761.9 | N10: 2,386.36 | O10: 0.58 | P10: 90.0 | Q10: 1,431.82 | R10: 4,090.91 | S10: 2,777.78 | T10: 31.50 | U10: 1,431.8 | V10: 1,431.82 | W10: 74.2 | X10: 25.9566947 | Y10: 3,371.0 | Z10: 1179.849759
B11: Número de vendedores | D11: ='Mercado homo'!E16 -> 20 | E11: =E6*D11 -> 8,368 | F11: =E2*D11 -> 4,091 | G11: =E11*E5 -> 184,091 | K11: 0.40 | L11: 60.00 | M11: 4,166.7 | N11: 2,727.27 | O11: 0.67 | P11: 90.0 | Q11: 1,636.36 | R11: 4,090.91 | S11: 2,777.78 | T11: 36.00 | U11: 1,636.4 | V11: 1,636.36 | W11: 74.2 | X11: 29.66479395 | Y11: 3,371.0 | Z11: 1348.399725
K12: 0.45 | L12: =$C$21*O12 -> 67.50 | M12: 3,703.7 | N12: 3,068.18 | O12: 0.75 | P12: 90.0 | Q12: 1,840.91 | R12: 4,090.91 | S12: 2,777.78 | T12: 40.50 | U12: 1,840.9 | V12: 1,840.91 | W12: 74.2 | X12: 33.37289319 | Y12: 3,371.0 | Z12: 1516.949691
E13: max | F13: =MAX(F11,D29) -> 4,090.91 | K13: 0.50 | L13: 75.00 | M13: =$C$25*$A$25/L13*$D$28 -> 3,333.3 | N13: 3,409.09 | O13: 0.83 | P13: 90.0 | Q13: =$F$11*K13 -> 2,045.45 | R13: =$F$11 -> 4,090.91 | S13: 2,777.78 | T13: 45.00 | U13: 2,045.5 | V13: 2,045.45 | W13: 74.2 | X13: 37.08099244 | Y13: 3,371.0 | Z13: 1685.499656
E14: min | F14: =MIN(F11,D29) -> 2,777.78 | K14: 0.55 | L14: 82.50 | M14: 3,030.3 | N14: 3,750.00 | O14: 0.92 | P14: 90.0 | Q14: 2,250.00 | R14: 4,090.91 | S14: 2,777.78 | T14: 49.50 | U14: 2,250.0 | V14: 2,250.00 | W14: 74.2 | X14: 40.78909168 | Y14: 3,371.0 | Z14: 1854.049622
K15: 0.60 | L15: 90.00 | M15: 2,777.8 | N15: 4,090.91 | O15: 1.00 | P15: 90.0 | Q15: 2,454.55 | R15: 4,090.91 | S15: 2,777.78 | T15: 54.00 | U15: 2,454.5 | V15: 2,454.55 | W15: 74.2 | X15: 44.49719092 | Y15: 3,371.0 | Z15: 2022.599587
K16: 0.65 | L16: 97.50 | M16: 2,564.1 | N16: 4,431.82 | O16: 1.08 | P16: 90.0 | Q16: 2,659.09 | R16: 4,090.91 | S16: 2,777.78 | T16: 58.50 | U16: 2,659.1 | V16: 2,659.09 | W16: 74.2 | X16: 48.20529017 | Y16: 3,371.0 | Z16: 2191.149553
K17: 0.70 | L17: 105.00 | M17: 2,381.0 | N17: 4,772.73 | O17: 1.17 | P17: 90.0 | Q17: 2,863.64 | R17: 4,090.91 | S17: 2,777.78 | T17: 63.00 | U17: 2,863.6 | V17: 2,863.64 | W17: 74.2 | X17: 51.91338941 | Y17: 3,371.0 | Z17: 2359.699519
K18: 0.75 | L18: 112.50 | M18: 2,222.2 | N18: 5,113.64 | O18: 1.25 | P18: 90.0 | Q18: 3,068.18 | R18: 4,090.91 | S18: 2,777.78 | T18: 67.50 | U18: 3,068.2 | V18: 3,068.18 | W18: 74.2 | X18: 55.62148865 | Y18: 3,371.0 | Z18: 2528.249484
B19: RECTA PRESUPUESTAL | K19: 0.80 | L19: 120.00 | M19: 2,083.3 | N19: 5,454.55 | O19: 1.33 | P19: 90.0 | Q19: 3,272.73 | R19: 4,090.91 | S19: 2,777.78 | T19: 72.00 | U19: 3,272.7 | V19: 3,272.73 | W19: 74.2 | X19: 59.3295879 | Y19: 3,371.0 | Z19: 2696.79945
B20: m | C20: p1 | D20: p2 | K20: 0.85 | L20: 127.50 | M20: 1,960.8 | N20: 5,795.45 | O20: 1.42 | P20: 90.0 | Q20: 3,477.27 | R20: 4,090.91 | S20: 2,777.78 | T20: 76.50 | U20: 3,477.3 | V20: 3,477.27 | W20: 74.2 | X20: 63.03768714 | Y20: 3,371.0 | Z20: 2865.349415
B21: ='Mercado homo'!G7 -> 50,000.0 | C21: =E4 -> 90.0 | D21: ='Mercado homo'!I7 -> 92.0 | K21: 0.90 | L21: 135.00 | M21: 1,851.9 | N21: 6,136.36 | O21: 1.50 | P21: 90.0 | Q21: 3,681.82 | R21: 4,090.91 | S21: 2,777.78 | T21: 81.00 | U21: 3,681.8 | V21: 3,681.82 | W21: 74.2 | X21: 66.74578638 | Y21: 3,371.0 | Z21: 3033.899381
B22: Inserte los datos correspondientes | K22: 0.95 | L22: 142.50 | M22: 1,754.4 | N22: 6,477.27 | O22: 1.58 | P22: 90.0 | Q22: 3,886.36 | R22: 4,090.91 | S22: 2,777.78 | T22: 85.50 | U22: 3,886.4 | V22: 3,886.36 | W22: 74.2 | X22: 70.45388563 | Y22: 3,371.0 | Z22: 3202.449347
B23: FUNCIÓN COBB-DOUGLAS | K23: 1.00 | L23: 150.00 | M23: 1,666.7 | N23: 6,818.18 | O23: 1.67 | P23: 90.0 | Q23: 4,090.91 | R23: 4,090.91 | S23: 2,777.78 | T23: 90.00 | U23: 4,090.9 | V23: 4,090.91 | W23: 74.2 | X23: 74.16198487 | Y23: 3,371.0 | Z23: 3370.999312
A24: m | B24: v | C24: a1 | D24: x1* | E24: 1-a1 | F24: x2*
A25: =B21 -> 50,000.0 | B25: =D25^C25*F25^E25 -> 274.7 | C25: ='Mercado homo'!H11 -> 0.5 | D25: =C25*A25/C21 -> 277.8 | E25: =1-C25 -> 0.5 | F25: =E25*A25/D21 -> 271.7 | O25: 12
A28: Número de consumidores | D28: ='Mercado homo'!J16 -> 10 | M28: Ingreso marginal | N28: Costo marginal
A29: Consumo de las familias | D29: =D28*D25 -> 2,777.8 | K29: Ponderador | L29: p | M29: y | N29: CM | O29: Ponderador | P29: Cme | Q29: Line corto plazo | S29: line largo | W29: equilibrio
A30: Precio de equilibrio | D30: =((C25*A25*D28)/(((C5/E5)^(C5/C7))*C6*D11))^(C7) -> 74.2 | K30: 0 | L30: =$D$30 -> 74.16 | M30: =$I$34*O30 -> 0 | N30: =(1/$C$5)*((M30)^((1/$C$5)-1)*(1/$C$6^($C$7))^(1/$C$5)*$E$5) -> 0 | O30: 0 | Q30: =$I$34 -> 168.55 | R30: =$I$33*K30 -> 0 | S30: =$I$38 -> 51.38 | T30: =$I$39*K30 -> 0 | U30: =$I$39 -> 116.77 | V30: =$I$38*K30 -> 0 | W30: =$D$30 -> 74.2 | X30: =$D$30*K30 -> 0 | Y30: =$D$31 -> 3,371.0 | Z30: =$D$31*K30 -> 0
A31: Cantidad de equilibrio | D31: =C25*A25/D30*D28 -> 3,371.0 | K31: 0.05 | L31: =$D$30 -> 74.16 | M31: =$I$34*O31 -> 10.53 | N31: =(1/$C$5)*((M31)^((1/$C$5)-1)*(1/$C$6^($C$7))^(1/$C$5)*$E$5) -> 4.64 | O31: =1/O52 -> 0.06 | Q31: =$I$34 -> 168.55 | R31: =$I$33*K31 -> 3.71 | S31: =$I$38 -> 51.38 | T31: 5.84 | U31: =$I$39 -> 116.77 | V31: 2.6 | W31: =$D$30 -> 74.2 | X31: =$D$30*K31 -> 3.708099244 | Y31: =$D$31 -> 3,371.0 | Z31: =$D$31*K31 -> 168.5499656
F32: SOLUCIONES DE CORTO PLAZO | K32: 0.10 | L32: 74.16 | M32: 21.07 | N32: 9.27 | O32: =$O$31+O31 -> 0.13 | Q32: 168.55 | R32: 7.42 | S32: 51.38 | T32: 11.68 | U32: 116.77 | V32: 5.1 | W32: 74.2 | X32: 7.416198487 | Y32: 3,371.0 | Z32: 337.0999312
F33: cv | G33: =((I34)^(1/C5)*(1/C6^(C7))^(1/C5)*E5) -> 6,250.0 | H33: p corto | I33: =D30 -> 74.16 | K33: 0.15 | L33: 74.16 | M33: 31.60 | N33: 13.91 | O33: 0.19 | P33: =((M33)^((1/$C$5)-1)*(1/$C$6^($C$7))^(1/$C$5)*$E$5)+($E$7*$E$8/M33) -> 101.8800267 | Q33: 168.55 | R33: 11.12 | S33: 51.38 | T33: 17.52 | U33: 116.77 | V33: 7.7 | W33: 74.2 | X33: 11.12429773 | Y33: 3,371.0 | Z33: 505.6498968
F34: cf | G34: =E7*E8 -> 3,000.0 | H34: x1 corto | I34: =((D30*C5)/E5)^(C5/(1-C5))*(E8)^(C7/(1-C5))*(C3^(1/(1-C5))) -> 168.5 | K34: 0.20 | L34: 74.16 | M34: 42.14 | N34: 18.54 | O34: 0.25 | P34: 80.46575358 | Q34: 168.55 | R34: 14.83 | S34: 51.38 | T34: 23.35 | U34: 116.77 | V34: 10.3 | W34: 74.2 | X34: 14.83239697 | Y34: 3,371.0 | Z34: 674.1998625
F35: ct | G35: =((I34)^(1/C5)*(1/C6^(C7))^(1/C5)*E5)+(E7*E8) -> 9,250.0 | H35: IT | I35: =I33*I34 -> 12,500.0 | K35: 0.25 | L35: 74.16 | M35: 52.67 | N35: 23.18 | O35: 0.31 | P35: 68.54421452 | Q35: 168.55 | R35: 18.54 | S35: 51.38 | T35: 29.19 | U35: 116.77 | V35: 12.8 | W35: 74.2 | X35: 18.54049622 | Y35: 3,371.0 | Z35: 842.7498281
F36: CVMe | G36: =((I34)^((1/C5)-1)*(1/C6^(C7))^(1/C5)*E5) -> 37.1 | H36: CT | I36: =G36*I34 -> 6,250.0 | K36: 0.30 | L36: 74.16 | M36: 63.21 | N36: 27.81 | O36: 0.38 | P36: 61.36904248 | Q36: 168.55 | R36: 22.25 | S36: 51.38 | T36: 35.03 | U36: 116.77 | V36: 15.4 | W36: 74.2 | X36: 22.24859546 | Y36: 3,371.0 | Z36: 1011.299794
F37: CFMe | G37: =(E7*E8/I34) -> 17.8 | H37: Ben | I37: =I35-I36 -> 6,250.0 | K37: 0.35 | L37: 74.16 | M37: 73.74 | N37: 32.45 | O37: 0.44 | P37: 56.90608018 | Q37: 168.55 | R37: 25.96 | S37: 51.38 | T37: 40.87 | U37: 116.77 | V37: 18.0 | W37: 74.2 | X37: 25.9566947 | Y37: 3,371.0 | Z37: 1179.849759
F38: Cme | G38: =((I34)^((1/C5)-1)*(1/C6^(C7))^(1/C5)*E5)+(E7*E8/I34) -> 54.9 | H38: p largo | I38: =(1/C5)*(((1/C6)^(C7))^(1/C5))*(I39^(1/C5-1)*E5) -> 51.4 | K38: 0.40 | L38: 74.16 | M38: 84.27 | N38: 37.08 | O38: 0.50 | P38: 54.13824896 | Q38: 168.55 | R38: 29.66 | S38: 51.38 | T38: 46.71 | U38: 116.77 | V38: 20.6 | W38: 74.2 | X38: 29.66479395 | Y38: 3,371.0 | Z38: 1348.399725
F39: CM | G39: =(1/C5)*((I34)^((1/C5)-1)*(1/C6^(C7))^(1/C5)*E5) -> 74.2 | H39: x1 largo | I39: =((E8*E7)/((1/C5-1)*((1/E8^(C7))^(1/C5))*E5))^(C5) -> 116.8 | K39: 0.45 | L39: 74.16 | M39: 94.81 | N39: 41.72 | O39: 0.56 | P39: 52.50050512 | Q39: 168.55 | R39: 33.37 | S39: 51.38 | T39: 52.55 | U39: 116.77 | V39: 23.1 | W39: 74.2 | X39: 33.37289319 | Y39: 3,371.0 | Z39: 1516.949691
K40: 0.50 | L40: 74.16 | M40: 105.34 | N40: 46.35 | O40: 0.63 | P40: 51.65382246 | Q40: 168.55 | R40: 37.08 | S40: 51.38 | T40: 58.39 | U40: 116.77 | V40: 25.7 | W40: 74.2 | X40: 37.08099244 | Y40: 3,371.0 | Z40: 1685.499656
F41: SOLUCIONES DE LARGO PLAZO | K41: 0.55 | L41: 74.16 | M41: 115.88 | N41: 50.99 | O41: 0.69 | P41: 51.38245702 | Q41: 168.55 | R41: 40.79 | S41: 51.38 | T41: 64.23 | U41: 116.77 | V41: 28.3 | W41: 74.2 | X41: 40.78909168 | Y41: 3,371.0 | Z41: 1854.049622
F42: cv | G42: =((I39)^(1/C5)*(1/C6^(C7))^(1/C5)*E5) -> 3,000.0 | H42: p largo | I42: =(1/C5)*(((1/C6)^(C7))^(1/C5))*(I39^(1/C5-1)*E5) -> 51.4 | K42: 0.60 | L42: 74.16 | M42: 126.41 | N42: 55.62 | O42: 0.75 | P42: 51.54257949 | Q42: 168.55 | R42: 44.50 | S42: 51.38 | T42: 70.06 | U42: 116.77 | V42: 30.8 | W42: 74.2 | X42: 44.49719092 | Y42: 3,371.0 | Z42: 2022.599587
F43: cf | G43: =E7*E8 -> 3,000.0 | H43: x1 largo | I43: =((E8*E7)/((1/C5-1)*((1/E8^(C7))^(1/C5))*E5))^(C5) -> 116.8 | K43: 0.65 | L43: 74.16 | M43: 136.95 | N43: 60.26 | O43: 0.81 | P43: 52.03461573 | Q43: 168.55 | R43: 48.21 | S43: 51.38 | T43: 75.90 | U43: 116.77 | V43: 33.4 | W43: 74.2 | X43: 48.20529017 | Y43: 3,371.0 | Z43: 2191.149553
F44: ct | G44: =((I39)^(1/C5)*(1/C6^(C7))^(1/C5)*E5)+(E7*E8) -> 6,000.0 | H44: IT | I44: =I42*I43 -> 6,000.0 | K44: 0.70 | L44: 74.16 | M44: 147.48 | N44: 64.89 | O44: 0.88 | P44: 52.78744137 | Q44: 168.55 | R44: 51.91 | S44: 51.38 | T44: 81.74 | U44: 116.77 | V44: 36.0 | W44: 74.2 | X44: 51.91338941 | Y44: 3,371.0 | Z44: 2359.699519
F45: CVMe | G45: =((I39)^((1/C5)-1)*(1/C6^(C7))^(1/C5)*E5) -> 25.7 | H45: CT | I45: =G47*I43 -> 6,000.0 | K45: 0.75 | L45: 74.16 | M45: 158.02 | N45: 69.53 | O45: 0.94 | P45: 53.74889854 | Q45: 168.55 | R45: 55.62 | S45: 51.38 | T45: 87.58 | U45: 116.77 | V45: 38.5 | W45: 74.2 | X45: 55.62148865 | Y45: 3,371.0 | Z45: 2528.249484
F46: CFMe | G46: =(E7*E8/I39) -> 25.7 | H46: Ben | I46: =I44-I45 -> 0 | K46: 0.80 | L46: 74.16 | M46: 168.55 | N46: 74.16 | O46: 1.00 | P46: 54.8798688 | Q46: 168.55 | R46: 59.33 | S46: 51.38 | T46: 93.42 | U46: 116.77 | V46: 41.1 | W46: 74.2 | X46: 59.3295879 | Y46: 3,371.0 | Z46: 2696.79945
F47: Cme | G47: =((I39)^((1/C5)-1)*(1/C6^(C7))^(1/C5)*E5)+(E7*E8/I39) -> 51.4 | K47: 0.85 | L47: 74.16 | M47: 179.08 | N47: 78.80 | O47: 1.06 | P47: 56.1504381 | Q47: 168.55 | R47: 63.04 | S47: 51.38 | T47: 99.26 | U47: 116.77 | V47: 43.7 | W47: 74.2 | X47: 63.03768714 | Y47: 3,371.0 | Z47: 2865.349415
F48: CM | G48: =(1/C5)*((I39)^((1/C5)-1)*(1/C6^(C7))^(1/C5)*E5) -> 51.4 | K48: 0.90 | L48: 74.16 | M48: 189.62 | N48: 83.43 | O48: 1.13 | P48: 57.53733993 | Q48: 168.55 | R48: 66.75 | S48: 51.38 | T48: 105.10 | U48: 116.77 | V48: 46.2 | W48: 74.2 | X48: 66.74578638 | Y48: 3,371.0 | Z48: 3033.899381
K49: 0.95 | L49: 74.16 | M49: 200.15 | N49: 88.07 | O49: 1.19 | P49: 59.02220599 | Q49: 168.55 | R49: 70.45 | S49: 51.38 | T49: 110.94 | U49: 116.77 | V49: 48.8 | W49: 74.2 | X49: 70.45388563 | Y49: 3,371.0 | Z49: 3202.449347
K50: 1.00 | L50: 74.16 | M50: 210.69 | N50: 92.70 | O50: 1.25 | P50: 60.59034164 | Q50: 168.55 | R50: 74.16 | S50: 51.38 | T50: 116.77 | U50: 116.77 | V50: 51.4 | W50: 74.2 | X50: 74.16198487 | Y50: 3,371.0 | Z50: 3370.999312
O52: 16
B102: x1 | C102: =C103*(C104^(C105))*(C106^(C107)) -> 116.8 | D102: x1 | E102: =((E104*C105)/E105)^(C105/(1-C105))*(E108)^(C107/(1-C105))*(C103^(1/(1-C105))) -> 116.8
B103: A | C103: 1.0 | D103: p | E103: =(E104*C102)-(E105*E106+E107*E108) -> 0.0
B104: q1 | C104: =E104*C105*E102/E105 -> 136.4 | D104: p1 | E104: =I142 -> 51.4
B105: b | C105: ='Mercado homo'!C10 -> 0.5 | D105: w1 | E105: ='Mercado homo'!E9 -> 22.0
B106: q2 | C106: =E108 -> 100.0 | D106: q1 | E106: =C104 -> 136.4
B107: 1-b | C107: ='Mercado homo'!C12 -> 0.5 | D107: w2 | E107: ='Mercado homo'!E11 -> 30.0
D108: q2 | E108: ='Mercado homo'!C11 -> 100.0
D110: No. Empresas | E110: trabajadores | F110: producción | G110: masa salarial
B111: Número de vendedores | D111: 35 | E111: =E106*D111 -> 4,773 | F111: =E102*D111 -> 4,087 | G111: =E111*E105 -> 105,000
E113: max | F113: =MAX(F111,D129) -> 4,865.62
E114: min | F114: =MIN(F111,D129) -> 4,087.12
F116: =F111-D129 -> (778.50)
B119: RECTA PRESUPUESTAL
B120: m | C120: p1 | D120: p2
B121: ='Mercado homo'!G7 -> 50,000.0 | C121: =E104 -> 51.4 | D121: ='Mercado homo'!I7 -> 92.0
B122: Inserte los datos correspondientes
B123: FUNCIÓN COBB-DOUGLAS
A124: m | B124: v | C124: a1 | D124: x1* | E124: 1-a1 | F124: x2*
A125: =B121 -> 50,000.0 | B125: =D125^C125*F125^E125 -> 363.6 | C125: ='Mercado homo'!H11 -> 0.5 | D125: =C125*A125/C121 -> 486.6 | E125: =1-C125 -> 0.5 | F125: =E125*A125/D121 -> 271.7
A128: Número de consumidores | D128: ='Mercado homo'!J16 -> 10
A129: Consumo de las familias | D129: =D128*D125 -> 4,865.6
A130: Precio de equilibrio | D130: =((C125*A125*D128)/(((C105/E105)^(C105/C107))*C106*D111))^(C107) -> 56.1
A131: Cantidad de equilibrio | D131: =C125*A125/D130*D128 -> 4,459.4
F132: SOLUCIONES DE CORTO PLAZO
F133: cv | G133: =((I134)^(1/C105)*(1/C106^(C107))^(1/C105)*E105) -> 3,571.4 | H133: p corto | I133: =D130 -> 56.06
F134: cf | G134: =E107*E108 -> 3,000.0 | H134: x1 corto | I134: =((D130*C105)/E105)^(C105/(1-C105))*(E108)^(C107/(1-C105))*(C103^(1/(1-C105))) -> 127.4
F135: ct | G135: =((I134)^(1/C105)*(1/C106^(C107))^(1/C105)*E105)+(E107*E108) -> 6,571.4 | H135: IT | I135: =I133*I134 -> 7,142.9
F136: CVMe | G136: =((I134)^((1/C105)-1)*(1/C106^(C107))^(1/C105)*E105) -> 28.0 | H136: CT | I136: =G136*I134 -> 3,571.4
F137: CFMe | G137: =(E107*E108/I134) -> 23.5 | H137: Ben | I137: =I135-I136 -> 3,571.4
F138: Cme | G138: =((I134)^((1/C105)-1)*(1/C106^(C107))^(1/C105)*E105)+(E107*E108/I134) -> 51.6 | H138: p largo | I138: =(1/C105)*(((1/C106)^(C107))^(1/C105))*(I139^(1/C105-1)*E105) -> 51.4
F139: CM | G139: =(1/C105)*((I134)^((1/C105)-1)*(1/C106^(C107))^(1/C105)*E105) -> 56.1 | H139: x1 largo | I139: =((E108*E107)/((1/C105-1)*((1/E108^(C107))^(1/C105))*E105))^(C105) -> 116.8
F141: SOLUCIONES DE LARGO PLAZO
F142: cv | G142: =((I139)^(1/C105)*(1/C106^(C107))^(1/C105)*E105) -> 3,000.0 | H142: p largo | I142: =(1/C105)*(((1/C106)^(C107))^(1/C105))*(I139^(1/C105-1)*E105) -> 51.4
F143: cf | G143: =E107*E108 -> 3,000.0 | H143: x1 largo | I143: =((E108*E107)/((1/C105-1)*((1/E108^(C107))^(1/C105))*E105))^(C105) -> 116.8
F144: ct | G144: =((I139)^(1/C105)*(1/C106^(C107))^(1/C105)*E105)+(E107*E108) -> 6,000.0 | H144: IT | I144: =I142*I143 -> 6,000.0
F145: CVMe | G145: =((I139)^((1/C105)-1)*(1/C106^(C107))^(1/C105)*E105) -> 25.7 | H145: CT | I145: =G147*I143 -> 6,000.0
F146: CFMe | G146: =(E107*E108/I139) -> 25.7 | H146: Ben | I146: =I144-I145 -> 0
F147: Cme | G147: =((I139)^((1/C105)-1)*(1/C106^(C107))^(1/C105)*E105)+(E107*E108/I139) -> 51.4
F148: CM | G148: =(1/C105)*((I139)^((1/C105)-1)*(1/C106^(C107))^(1/C105)*E105) -> 51.4

Sheet Oculto prod (hidden)
A1: Maximización del Beneficio Sistema Bàsico | K1: Función de oferta | R1: Función de demanda
A2: Ponderador | B2: Función de Producción | C2: q1 | D2: Producto Marginal | E2: Isobeneficio | F2: Beneficio | G2: q1 line | I2: yline | K2: p | L2: y | M2: Ponderador | N2: yline | P2: pline | R2: p | S2: y
A3: 0 | B3: =$C$58*(C3^($D$58))*($C$33^($C$34)) -> 0 | C3: =(MEDIAN($E$38:$E$57))*1.4*A3 -> 0 | E3: =(($E$27/$E$28)+($E$31*$E$32)/$E$28)+(($E$29/$E$28)*C3) -> 102.27 | F3: =($E$28*B3)-(($E$29*C3)+($E$31*$E$32)) -> (3,000.00) | G3: =$E$58 -> 418.39 | H3: =$F$58*A3 -> 0 | I3: =$E$58*A3 -> 0 | J3: =$F$58 -> 204.55 | K3: =$E$28*M3 -> 0 | L3: =$F$36*M3 -> 0 | M3: 0 | N3: =$E$28 -> 90.0 | O3: =$F$36*M3 -> 0 | P3: =$E$28*A3 -> 0 | Q3: =$F$36 -> 4,090.91
A4: 0.05 | B4: =$C$58*(C4^($D$58))*($C$33^($C$34)) -> 54.12 | C4: =(MEDIAN($E$38:$E$57))*1.4*A4 -> 29.29 | D4: =$D$58*B4/C4 -> 0.92 | E4: =(($E$27/$E$28)+($E$31*$E$32)/$E$28)+(($E$29/$E$28)*C4) -> 109.43 | F4: 1,226.27 | G4: =$E$58 -> 418.39 | H4: =$F$58*A4 -> 10.23 | I4: =$E$58*A4 -> 20.92 | J4: =$F$58 -> 204.55 | K4: =$E$28*M4 -> 8.18 | L4: =$F$36*M4 -> 371.90 | M4: =1/$M$25 -> 0.09 | N4: =$E$28 -> 90.0 | O4: =$F$36*A4 -> 204.55 | P4: =$E$28*A4 -> 4.50 | Q4: =$F$36 -> 4,090.91
A5: 0.10 | B5: 76.53 | C5: 58.57 | D5: =$D$58*B5/C5 -> 0.65 | E5: =(($E$27/$E$28)+($E$31*$E$32)/$E$28)+(($E$29/$E$28)*C5) -> 116.59 | F5: 2,599.41 | G5: 418.39 | H5: 20.45 | I5: 41.84 | J5: 204.55 | K5: =$E$28*M5 -> 16.36 | L5: 743.80 | M5: =M4+1/$M$25 -> 0.18 | N5: 90.0 | O5: 409.09 | P5: 9.00 | Q5: 4,090.91
A6: 0.15 | B6: 93.73 | C6: 87.86 | D6: 0.53 | E6: 123.75 | F6: 3,503.15 | G6: 418.39 | H6: 30.68 | I6: 62.76 | J6: 204.55 | K6: 24.55 | L6: 1,115.70 | M6: =M5+1/$M$25 -> 0.27 | N6: 90.0 | O6: 613.64 | P6: 13.50 | Q6: 4,090.91 | R6: ='Oculto EC'!L63 -> 24.55 | S6: ='Oculto EC'!M63 -> 10156.45185
A7: 0.20 | B7: 108.24 | C7: 117.15 | D7: 0.46 | E7: 130.91 | F7: 4,163.90 | G7: 418.39 | H7: 40.91 | I7: 83.68 | J7: 204.55 | K7: 32.73 | L7: 1,487.60 | M7: 0.36 | N7: 90.0 | O7: 818.18 | P7: 18.00 | Q7: 4,090.91 | R7: ='Oculto EC'!L64 -> 32.73 | S7: ='Oculto EC'!M64 -> 7618.588889
A8: 0.25 | B8: 121.01 | C8: 146.44 | D8: 0.41 | E8: 138.07 | F8: 4,669.37 | G8: 418.39 | H8: 51.14 | I8: 104.60 | J8: 204.55 | K8: 40.91 | L8: 1,859.50 | M8: 0.45 | N8: 90.0 | O8: 1,022.73 | P8: 22.50 | Q8: 4,090.91 | R8: ='Oculto EC'!L65 -> 40.91 | S8: ='Oculto EC'!M65 -> 6095.871111
A9: 0.30 | B9: 132.56 | C9: 175.72 | D9: 0.38 | E9: 145.23 | F9: 5,064.55 | G9: 418.39 | H9: 61.36 | I9: 125.52 | J9: 204.55 | K9: 49.09 | L9: 2,231.40 | M9: 0.55 | N9: 90.0 | O9: 1,227.27 | P9: 27.00 | Q9: 4,090.91 | R9: ='Oculto EC'!L66 -> 49.09 | S9: ='Oculto EC'!M66 -> 5080.725926
A10: 0.35 | B10: 143.18 | C10: 205.01 | D10: 0.35 | E10: 152.39 | F10: 5,376.14 | G10: 418.39 | H10: 71.59 | I10: 146.44 | J10: 204.55 | K10: 57.27 | L10: 2,603.31 | M10: 0.64 | N10: 90.0 | O10: 1,431.82 | P10: 31.50 | Q10: 4,090.91 | R10: ='Oculto EC'!L67 -> 57.27 | S10: ='Oculto EC'!M67 -> 4355.622222
A11: 0.40 | B11: 153.07 | C11: 234.30 | D11: 0.33 | E11: 159.55 | F11: 5,621.56 | G11: 418.39 | H11: 81.82 | I11: 167.36 | J11: 204.55 | K11: 65.45 | L11: 2,975.21 | M11: 0.73 | N11: 90.0 | O11: 1,636.36 | P11: 36.00 | Q11: 4,090.91 | R11: ='Oculto EC'!L68 -> 65.45 | S11: ='Oculto EC'!M68 -> 3811.794444
A12: 0.45 | B12: 162.35 | C12: 263.58 | D12: 0.31 | E12: 166.70 | F12: 5,812.90 | G12: 418.39 | H12: 92.05 | I12: 188.27 | J12: 204.55 | K12: 73.64 | L12: 3,347.11 | M12: 0.82 | N12: 90.0 | O12: 1,840.91 | P12: 40.50 | Q12: 4,090.91 | R12: ='Oculto EC'!L69 -> 73.64 | S12: ='Oculto EC'!M69 -> 3388.817284
A13: 0.50 | B13: 171.14 | C13: 292.87 | D13: 0.29 | E13: 173.86 | F13: 5,958.97 | G13: 418.39 | H13: 102.27 | I13: 209.19 | J13: 204.55 | K13: 81.82 | L13: 3,719.01 | M13: 0.91 | N13: 90.0 | O13: 2,045.45 | P13: 45.00 | Q13: 4,090.91 | R13: ='Oculto EC'!L70 -> 81.82 | S13: ='Oculto EC'!M70 -> 3050.435556
A14: 0.55 | B14: 179.49 | C14: 322.16 | D14: 0.28 | E14: 181.02 | F14: 6,066.41 | G14: 418.39 | H14: 112.50 | I14: 230.11 | J14: 204.55 | K14: 90.00 | L14: 4,090.91 | M14: 1.00 | N14: 90.0 | O14: 2,250.00 | P14: 49.50 | Q14: 4,090.91 | R14: ='Oculto EC'!L71 -> 90.00 | S14: ='Oculto EC'!M71 -> 2773.577778
A15: 0.60 | B15: 187.47 | C15: 351.45 | D15: 0.27 | E15: 188.18 | F15: 6,140.39 | G15: 418.39 | H15: 122.73 | I15: 251.03 | J15: 204.55 | K15: 98.18 | L15: 4,462.81 | M15: 1.09 | N15: 90.0 | O15: 2,454.55 | P15: 54.00 | Q15: 4,090.91 | R15: ='Oculto EC'!L72 -> 98.18 | S15: ='Oculto EC'!M72 -> 1269.714815
A16: 0.65 | B16: 195.12 | C16: 380.73 | D16: 0.26 | E16: 195.34 | F16: 6,185.02 | G16: 418.39 | H16: 132.95 | I16: 271.95 | J16: 204.55 | K16: 106.36 | L16: 4,834.71 | M16: 1.18 | N16: 90.0 | O16: 2,659.09 | P16: 58.50 | Q16: 4,090.91 | R16: ='Oculto EC'!L73 -> 106.36 | S16: ='Oculto EC'!M73 -> 1172.42906
A17: 0.70 | B17: 202.49 | C17: 410.02 | D17: 0.25 | E17: 202.50 | F17: 6,203.62 | G17: 418.39 | H17: 143.18 | I17: 292.87 | J17: 204.55 | K17: 114.55 | L17: 5,206.61 | M17: 1.27 | N17: 90.0 | O17: 2,863.64 | P17: 63.00 | Q17: 4,090.91 | R17: ='Oculto EC'!L74 -> 114.55 | S17: ='Oculto EC'!M74 -> 1089.04127
A18: 0.75 | B18: 209.60 | C18: 439.31 | D18: 0.24 | E18: 209.66 | F18: 6,198.93 | G18: 418.39 | H18: 153.41 | I18: 313.79 | J18: 204.55 | K18: 122.73 | L18: 5,578.51 | M18: 1.36 | N18: 90.0 | O18: 3,068.18 | P18: 67.50 | Q18: 4,090.91 | R18: ='Oculto EC'!L75 -> 122.73 | S18: ='Oculto EC'!M75 -> 1016.771852
A19: 0.80 | B19: 216.47 | C19: 468.60 | D19: 0.23 | E19: 216.82 | F19: 6,173.26 | G19: 418.39 | H19: 163.64 | I19: 334.71 | J19: 204.55 | K19: 130.91 | L19: 5,950.41 | M19: 1.45 | N19: 90.0 | O19: 3,272.73 | P19: 72.00 | Q19: 4,090.91 | R19: ='Oculto EC'!L76 -> 130.91 | S19: ='Oculto EC'!M76 -> 953.5361111
A20: 0.85 | B20: 223.13 | C20: 497.88 | D20: 0.22 | E20: 223.98 | F20: 6,128.54 | G20: 418.39 | H20: 173.86 | I20: 355.63 | J20: 204.55 | K20: 139.09 | L20: 6,322.31 | M20: 1.55 | N20: 90.0 | O20: 3,477.27 | P20: 76.50 | Q20: 4,090.91 | R20: ='Oculto EC'!L77 -> 139.09 | S20: ='Oculto EC'!M77 -> 897.7398693
A21: 0.90 | B21: 229.60 | C21: 527.17 | D21: 0.22 | E21: 231.14 | F21: 6,066.43 | G21: 418.39 | H21: 184.09 | I21: 376.55 | J21: 204.55 | K21: 147.27 | L21: 6,694.21 | M21: 1.64 | N21: 90.0 | O21: 3,681.82 | P21: 81.00 | Q21: 4,090.91 | R21: ='Oculto EC'!L78 -> 147.27 | S21: ='Oculto EC'!M78 -> 848.1432099
A22: 0.95 | B22: 235.89 | C22: 556.46 | D22: 0.21 | E22: 238.30 | F22: 5,988.35 | G22: 418.39 | H22: 194.32 | I22: 397.47 | J22: 204.55 | K22: 155.45 | L22: 7,066.12 | M22: 1.73 | N22: 90.0 | O22: 3,886.36 | P22: 85.50 | Q22: 4,090.91 | R22: ='Oculto EC'!L79 -> 155.45 | S22: ='Oculto EC'!M79 -> 803.7672515
A23: 1.00 | B23: 242.02 | C23: 585.74 | D23: 0.21 | E23: 245.45 | F23: 5,895.57 | G23: 418.39 | H23: 204.55 | I23: 418.39 | J23: 204.55 | K23: 163.64 | L23: 7,438.02 | M23: 1.82 | N23: 90.0 | O23: 4,090.91 | P23: 90.00 | Q23: 4,090.91 | R23: ='Oculto EC'!L80 -> 163.64 | S23: ='Oculto EC'!M80 -> 763.8288889
M25: 11
D26: y | E26: =((E28*D58)/E29)^(D58/(1-D58))*(E32)^(C34/(1-D58))*(C58^(1/(1-D58))) -> 204.5
B27: y | C27: =C58*(E58^(D58))*(C33^(C34)) -> 204.5 | D27: p | E27: =(E28*C27)-(E29*E30+E31*E32) -> 6,204.5
B28: A min | C28: =Productor!C6 -> 1.0 | D28: p | E28: =Productor!E6 -> 90.0
B29: Amax | C29: =Productor!$C$7 -> 1 | D29: w1 | E29: =Productor!E7 -> 22.0
B30: q1 | C30: =E30 -> 418.4 | D30: q1 | E30: =E58 -> 418.4 | F30: =E29/E28 -> 0.2444444444
B31: b min | C31: =Productor!C9 -> 0.5 | D31: w2 | E31: =Productor!E9 -> 30.0 | F31: =C31*C28*((E30)^(C31-1))*(E32^(C34)) -> 0.2444444444
B32: b max | C32: =Productor!$C$10 -> 0.5 | D32: q2 | E32: =Productor!C11 -> 100.0
B33: q2 | C33: =E32 -> 100.0
B34: 1-b | C34: =Productor!C12 -> 0.5
D35: No. Empresas | E35: trabajadores | F35: producción
B36: Número de vendedores | D36: =Productor!E15 -> 20.0 | E36: =SUM(E38:E57) -> 8,368 | F36: =SUM(F38:F57) -> 4,091
B37: Productor | C37: A | D37: b | E37: q1 | F37: y | G37: p | H37: y
B38: 1 | C38: =C28 -> 1.00 | D38: =C31 -> 0.50 | E38: =IF(B38<=$D$36,($E$28*D38*F38/$E$29),"") -> 418.39 | F38: =IF(B38<=$D$36,(C38^(1/(1-D38))*(($E$28*D38/$E$29)^(D38/(1-D38)))*($C$33^($C$34/(1-D38)))),"") -> 204.55
B39: 2 | C39: =IF(B38<$D$36,($C$29-$C$28)/($D$36-1)+C38,"") -> 1.00 | D39: =IF(B38<$D$36,($C$32-$C$31)/($D$36-1)+D38,"") -> 0.50 | E39: 418.39 | F39: 204.55
B40: 3 | C40: =IF(B39<$D$36,($C$29-$C$28)/($D$36-1)+C39,"") -> 1.00 | D40: 0.50 | E40: 418.39 | F40: 204.55
B41: 4 | C41: 1.00 | D41: 0.50 | E41: 418.39 | F41: 204.55
B42: 5 | C42: 1.00 | D42: 0.50 | E42: 418.39 | F42: 204.55
B43: 6 | C43: 1.00 | D43: 0.50 | E43: 418.39 | F43: 204.55
B44: 7 | C44: 1.00 | D44: 0.50 | E44: 418.39 | F44: 204.55
B45: 8 | C45: 1.00 | D45: 0.50 | E45: 418.39 | F45: 204.55
B46: 9 | C46: 1.00 | D46: 0.50 | E46: 418.39 | F46: 204.55
B47: 10 | C47: 1.00 | D47: 0.50 | E47: 418.39 | F47: 204.55
B48: 11 | C48: 1.00 | D48: 0.50 | E48: 418.39 | F48: 204.55
B49: 12 | C49: 1.00 | D49: 0.50 | E49: 418.39 | F49: 204.55
B50: 13 | C50: 1.00 | D50: 0.50 | E50: 418.39 | F50: 204.55
B51: 14 | C51: 1.00 | D51: 0.50 | E51: 418.39 | F51: 204.55
B52: 15 | C52: 1.00 | D52: 0.50 | E52: 418.39 | F52: 204.55
B53: 16 | C53: 1.00 | D53: 0.50 | E53: 418.39 | F53: 204.55
B54: 17 | C54: 1.00 | D54: 0.50 | E54: 418.39 | F54: 204.55
B55: 18 | C55: 1.00 | D55: 0.50 | E55: 418.39 | F55: 204.55
B56: 19 | C56: 1.00 | D56: 0.50 | E56: 418.39 | F56: 204.55
B57: 20 | C57: 1.00 | D57: 0.50 | E57: 418.39 | F57: 204.55
C58: =MEDIAN(C38:C57) -> 1.00 | D58: =MEDIAN(D38:D57) -> 0.50 | E58: =$E$28*D58*F58/$E$29 -> 418.39 | F58: =C58^(1/(1-D58))*(($E$28*D58/$E$29)^(D58/(1-D58)))*($C$33^($C$34/(1-D58))) -> 204.55
B61: precios | V61: Oferta | X61: Demanda
A62: empresas | B62: =$K4 -> 8.18 | C62: =$K5 -> 16.36 | D62: =$K6 -> 24.55 | E62: =$K7 -> 32.73 | F62: =$K8 -> 40.91 | G62: =$K9 -> 49.09 | H62: =$K10 -> 57.27 | I62: =$K11 -> 65.45 | J62: =$K12 -> 73.64 | K62: =$K13 -> 81.82 | L62: =$K14 -> 90.00 | M62: =$K15 -> 98.18 | N62: =$K16 -> 106.36 | O62: =$K17 -> 114.55 | P62: =$K18 -> 122.73 | Q62: =$K19 -> 130.91 | R62: =$K20 -> 139.09 | S62: =$K21 -> 147.27 | T62: =$K22 -> 155.45 | U62: =$K23 -> 163.64 | V62: Precios | W62: Producción | X62: ='Oculto EC'!L59 -> p | Y62: ='Oculto EC'!M59 -> y
A63: =B38 -> 1 | B63: =IF($B38<=$D$36,($C38^(1/(1-$D38))*((B$62*$D38/$E$29)^($D38/(1-$D38)))*($C$33^($C$34/(1-$D38)))),"") -> 19 | C63: 37 | D63: 56 | E63: 74 | F63: 93 | G63: 112 | H63: 130 | I63: 149 | J63: 167 | K63: 186 | L63: 205 | M63: 223 | N63: 242 | O63: 260 | P63: 279 | Q63: 298 | R63: 316 | S63: 335 | T63: 353 | U63: 372 | V63: =TRANSPOSE(B62:U62) -> 8 | W63: =TRANSPOSE(B83:U83) -> 372 | X63: ='Oculto EC'!L60 -> 0 | Y63: ='Oculto EC'!M60 -> 0
A64: =B39 -> 2 | B64: =IF($B39<=$D$36,($C39^(1/(1-$D39))*((B$62*$D39/$E$29)^($D39/(1-$D39)))*($C$33^($C$34/(1-$D39)))),"") -> 19 | C64: 37 | D64: 56 | E64: 74 | F64: 93 | G64: 112 | H64: 130 | I64: 149 | J64: 167 | K64: 186 | L64: 205 | M64: 223 | N64: 242 | O64: 260 | P64: 279 | Q64: 298 | R64: 316 | S64: 335 | T64: 353 | U64: 372 | V64: 16.36363636 | W64: 744 | X64: ='Oculto EC'!L61 -> 8.181818182 | Y64: ='Oculto EC'!M61 -> 30459.35556
A65: 3 | B65: =IF($B40<=$D$36,($C40^(1/(1-$D40))*((B$62*$D40/$E$29)^($D40/(1-$D40)))*($C$33^($C$34/(1-$D40)))),"") -> 19 | C65: 37 | D65: 56 | E65: 74 | F65: 93 | G65: 112 | H65: 130 | I65: 149 | J65: 167 | K65: 186 | L65: 205 | M65: 223 | N65: 242 | O65: 260 | P65: 279 | Q65: 298 | R65: 316 | S65: 335 | T65: 353 | U65: 372 | V65: 24.54545455 | W65: 1,116 | X65: ='Oculto EC'!L62 -> 16.36363636 | Y65: ='Oculto EC'!M62 -> 15232.17778
A66: 4 | B66: =IF($B41<=$D$36,($C41^(1/(1-$D41))*((B$62*$D41/$E$29)^($D41/(1-$D41)))*($C$33^($C$34/(1-$D41)))),"") -> 19 | C66: 37 | D66: 56 | E66: 74 | F66: 93 | G66: 112 | H66: 130 | I66: 149 | J66: 167 | K66: 186 | L66: 205 | M66: 223 | N66: 242 | O66: 260 | P66: 279 | Q66: 298 | R66: 316 | S66: 335 | T66: 353 | U66: 372 | V66: 32.72727273 | W66: 1,488 | X66: ='Oculto EC'!L63 -> 24.54545455 | Y66: ='Oculto EC'!M63 -> 10156.45185
A67: 5 | B67: =IF($B42<=$D$36,($C42^(1/(1-$D42))*((B$62*$D42/$E$29)^($D42/(1-$D42)))*($C$33^($C$34/(1-$D42)))),"") -> 19 | C67: 37 | D67: 56 | E67: 74 | F67: 93 | G67: 112 | H67: 130 | I67: 149 | J67: 167 | K67: 186 | L67: 205 | M67: 223 | N67: 242 | O67: 260 | P67: 279 | Q67: 298 | R67: 316 | S67: 335 | T67: 353 | U67: 372 | V67: 40.90909091 | W67: 1,860 | X67: ='Oculto EC'!L64 -> 32.72727273 | Y67: ='Oculto EC'!M64 -> 7618.588889
A68: 6 | B68: =IF($B43<=$D$36,($C43^(1/(1-$D43))*((B$62*$D43/$E$29)^($D43/(1-$D43)))*($C$33^($C$34/(1-$D43)))),"") -> 19 | C68: 37 | D68: 56 | E68: 74 | F68: 93 | G68: 112 | H68: 130 | I68: 149 | J68: 167 | K68: 186 | L68: 205 | M68: 223 | N68: 242 | O68: 260 | P68: 279 | Q68: 298 | R68: 316 | S68: 335 | T68: 353 | U68: 372 | V68: 49.09090909 | W68: 2,231 | X68: ='Oculto EC'!L65 -> 40.90909091 | Y68: ='Oculto EC'!M65 -> 6095.871111
A69: 7 | B69: =IF($B44<=$D$36,($C44^(1/(1-$D44))*((B$62*$D44/$E$29)^($D44/(1-$D44)))*($C$33^($C$34/(1-$D44)))),"") -> 19 | C69: 37 | D69: 56 | E69: 74 | F69: 93 | G69: 112 | H69: 130 | I69: 149 | J69: 167 | K69: 186 | L69: 205 | M69: 223 | N69: 242 | O69: 260 | P69: 279 | Q69: 298 | R69: 316 | S69: 335 | T69: 353 | U69: 372 | V69: 57.27272727 | W69: 2,603 | X69: ='Oculto EC'!L66 -> 49.09090909 | Y69: ='Oculto EC'!M66 -> 5080.725926
A70: 8 | B70: =IF($B45<=$D$36,($C45^(1/(1-$D45))*((B$62*$D45/$E$29)^($D45/(1-$D45)))*($C$33^($C$34/(1-$D45)))),"") -> 19 | C70: 37 | D70: 56 | E70: 74 | F70: 93 | G70: 112 | H70: 130 | I70: 149 | J70: 167 | K70: 186 | L70: 205 | M70: 223 | N70: 242 | O70: 260 | P70: 279 | Q70: 298 | R70: 316 | S70: 335 | T70: 353 | U70: 372 | V70: 65.45454545 | W70: 2,975 | X70: ='Oculto EC'!L67 -> 57.27272727 | Y70: ='Oculto EC'!M67 -> 4355.622222
A71: 9 | B71: =IF($B46<=$D$36,($C46^(1/(1-$D46))*((B$62*$D46/$E$29)^($D46/(1-$D46)))*($C$33^($C$34/(1-$D46)))),"") -> 19 | C71: 37 | D71: 56 | E71: 74 | F71: 93 | G71: 112 | H71: 130 | I71: 149 | J71: 167 | K71: 186 | L71: 205 | M71: 223 | N71: 242 | O71: 260 | P71: 279 | Q71: 298 | R71: 316 | S71: 335 | T71: 353 | U71: 372 | V71: 73.63636364 | W71: 3,347 | X71: ='Oculto EC'!L68 -> 65.45454545 | Y71: ='Oculto EC'!M68 -> 3811.794444
A72: 10 | B72: =IF($B47<=$D$36,($C47^(1/(1-$D47))*((B$62*$D47/$E$29)^($D47/(1-$D47)))*($C$33^($C$34/(1-$D47)))),"") -> 19 | C72: 37 | D72: 56 | E72: 74 | F72: 93 | G72: 112 | H72: 130 | I72: 149 | J72: 167 | K72: 186 | L72: 205 | M72: 223 | N72: 242 | O72: 260 | P72: 279 | Q72: 298 | R72: 316 | S72: 335 | T72: 353 | U72: 372 | V72: 81.81818182 | W72: 3,719 | X72: ='Oculto EC'!L69 -> 73.63636364 | Y72: ='Oculto EC'!M69 -> 3388.817284
A73: 11 | B73: =IF($B48<=$D$36,($C48^(1/(1-$D48))*((B$62*$D48/$E$29)^($D48/(1-$D48)))*($C$33^($C$34/(1-$D48)))),"") -> 19 | C73: 37 | D73: 56 | E73: 74 | F73: 93 | G73: 112 | H73: 130 | I73: 149 | J73: 167 | K73: 186 | L73: 205 | M73: 223 | N73: 242 | O73: 260 | P73: 279 | Q73: 298 | R73: 316 | S73: 335 | T73: 353 | U73: 372 | V73: 90 | W73: 4,091 | X73: ='Oculto EC'!L70 -> 81.81818182 | Y73: ='Oculto EC'!M70 -> 3050.435556
A74: 12 | B74: =IF($B49<=$D$36,($C49^(1/(1-$D49))*((B$62*$D49/$E$29)^($D49/(1-$D49)))*($C$33^($C$34/(1-$D49)))),"") -> 19 | C74: 37 | D74: 56 | E74: 74 | F74: 93 | G74: 112 | H74: 130 | I74: 149 | J74: 167 | K74: 186 | L74: 205 | M74: 223 | N74: 242 | O74: 260 | P74: 279 | Q74: 298 | R74: 316 | S74: 335 | T74: 353 | U74: 372 | V74: 98.18181818 | W74: 4,463 | X74: ='Oculto EC'!L71 -> 90 | Y74: ='Oculto EC'!M71 -> 2773.577778
A75: 13 | B75: =IF($B50<=$D$36,($C50^(1/(1-$D50))*((B$62*$D50/$E$29)^($D50/(1-$D50)))*($C$33^($C$34/(1-$D50)))),"") -> 19 | C75: 37 | D75: 56 | E75: 74 | F75: 93 | G75: 112 | H75: 130 | I75: 149 | J75: 167 | K75: 186 | L75: 205 | M75: 223 | N75: 242 | O75: 260 | P75: 279 | Q75: 298 | R75: 316 | S75: 335 | T75: 353 | U75: 372 | V75: 106.3636364 | W75: 4,835 | X75: ='Oculto EC'!L72 -> 98.18181818 | Y75: ='Oculto EC'!M72 -> 1269.714815
A76: 14 | B76: =IF($B51<=$D$36,($C51^(1/(1-$D51))*((B$62*$D51/$E$29)^($D51/(1-$D51)))*($C$33^($C$34/(1-$D51)))),"") -> 19 | C76: 37 | D76: 56 | E76: 74 | F76: 93 | G76: 112 | H76: 130 | I76: 149 | J76: 167 | K76: 186 | L76: 205 | M76: 223 | N76: 242 | O76: 260 | P76: 279 | Q76: 298 | R76: 316 | S76: 335 | T76: 353 | U76: 372 | V76: 114.5454545 | W76: 5,207 | X76: ='Oculto EC'!L73 -> 106.3636364 | Y76: ='Oculto EC'!M73 -> 1172.42906
A77: 15 | B77: =IF($B52<=$D$36,($C52^(1/(1-$D52))*((B$62*$D52/$E$29)^($D52/(1-$D52)))*($C$33^($C$34/(1-$D52)))),"") -> 19 | C77: 37 | D77: 56 | E77: 74 | F77: 93 | G77: 112 | H77: 130 | I77: 149 | J77: 167 | K77: 186 | L77: 205 | M77: 223 | N77: 242 | O77: 260 | P77: 279 | Q77: 298 | R77: 316 | S77: 335 | T77: 353 | U77: 372 | V77: 122.7272727 | W77: 5,579 | X77: ='Oculto EC'!L74 -> 114.5454545 | Y77: ='Oculto EC'!M74 -> 1089.04127
A78: 16 | B78: =IF($B53<=$D$36,($C53^(1/(1-$D53))*((B$62*$D53/$E$29)^($D53/(1-$D53)))*($C$33^($C$34/(1-$D53)))),"") -> 19 | C78: 37 | D78: 56 | E78: 74 | F78: 93 | G78: 112 | H78: 130 | I78: 149 | J78: 167 | K78: 186 | L78: 205 | M78: 223 | N78: 242 | O78: 260 | P78: 279 | Q78: 298 | R78: 316 | S78: 335 | T78: 353 | U78: 372 | V78: 130.9090909 | W78: 5,950 | X78: ='Oculto EC'!L75 -> 122.7272727 | Y78: ='Oculto EC'!M75 -> 1016.771852
A79: 17 | B79: =IF($B54<=$D$36,($C54^(1/(1-$D54))*((B$62*$D54/$E$29)^($D54/(1-$D54)))*($C$33^($C$34/(1-$D54)))),"") -> 19 | C79: 37 | D79: 56 | E79: 74 | F79: 93 | G79: 112 | H79: 130 | I79: 149 | J79: 167 | K79: 186 | L79: 205 | M79: 223 | N79: 242 | O79: 260 | P79: 279 | Q79: 298 | R79: 316 | S79: 335 | T79: 353 | U79: 372 | V79: 139.0909091 | W79: 6,322 | X79: ='Oculto EC'!L76 -> 130.9090909 | Y79: ='Oculto EC'!M76 -> 953.5361111
A80: 18 | B80: =IF($B55<=$D$36,($C55^(1/(1-$D55))*((B$62*$D55/$E$29)^($D55/(1-$D55)))*($C$33^($C$34/(1-$D55)))),"") -> 19 | C80: 37 | D80: 56 | E80: 74 | F80: 93 | G80: 112 | H80: 130 | I80: 149 | J80: 167 | K80: 186 | L80: 205 | M80: 223 | N80: 242 | O80: 260 | P80: 279 | Q80: 298 | R80: 316 | S80: 335 | T80: 353 | U80: 372 | V80: 147.2727273 | W80: 6,694 | X80: ='Oculto EC'!L77 -> 139.0909091 | Y80: ='Oculto EC'!M77 -> 897.7398693
A81: 19 | B81: =IF($B56<=$D$36,($C56^(1/(1-$D56))*((B$62*$D56/$E$29)^($D56/(1-$D56)))*($C$33^($C$34/(1-$D56)))),"") -> 19 | C81: 37 | D81: 56 | E81: 74 | F81: 93 | G81: 112 | H81: 130 | I81: 149 | J81: 167 | K81: 186 | L81: 205 | M81: 223 | N81: 242 | O81: 260 | P81: 279 | Q81: 298 | R81: 316 | S81: 335 | T81: 353 | U81: 372 | V81: 155.4545455 | W81: 7,066 | X81: ='Oculto EC'!L78 -> 147.2727273 | Y81: ='Oculto EC'!M78 -> 848.1432099
A82: 20 | B82: =IF($B57<=$D$36,($C57^(1/(1-$D57))*((B$62*$D57/$E$29)^($D57/(1-$D57)))*($C$33^($C$34/(1-$D57)))),"") -> 19 | C82: 37 | D82: 56 | E82: 74 | F82: 93 | G82: 112 | H82: 130 | I82: 149 | J82: 167 | K82: 186 | L82: 205 | M82: 223 | N82: 242 | O82: 260 | P82: 279 | Q82: 298 | R82: 316 | S82: 335 | T82: 353 | U82: 372 | V82: 163.6363636 | W82: 7,438 | X82: ='Oculto EC'!L79 -> 155.4545455 | Y82: ='Oculto EC'!M79 -> 803.7672515
B83: =SUM(B63:B82) -> 372 | C83: =SUM(C63:C82) -> 744 | D83: 1,116 | E83: 1,488 | F83: 1,860 | G83: 2,231 | H83: 2,603 | I83: 2,975 | J83: 3,347 | K83: 3,719 | L83: 4,091 | M83: 4,463 | N83: 4,835 | O83: 5,207 | P83: 5,579 | Q83: 5,950 | R83: 6,322 | S83: 6,694 | T83: 7,066 | U83: 7,438

Sheet Consumidor (hidden)
C1: Función de demanda de agentes heterogéneos
D3: RECTA PRESUPUESTAL | J3: DEMANDA TOTAL BIEN 1
D4: m | E4: p1 | F4: p2 | J4: Ponderador m | K4: Demanda
D5: 500,000.0 | E5: 90.0 | F5: 92.0 | J5: =J9+J12+J15+J18 -> 1.0 | K5: =K9+K12+K15+K18 -> 2,773.6
D6: Inserte los datos correspondientes | J6: =IF(J5=1, "Correcto","Incorrecto, debe sumar 1") -> Correcto
D7: FUNCIÓN COBB-DOUGLAS | J7: Demanda Cobb-Douglas
D8: v(p1,m) | E8: a1 | F8: x1* | G8: 1-a1 | H8: x2* | J8: Ponderador bCD | K8: Demanda
D9: ='Oculto EC'!B66 -> 686.9 | E9: 0.5 | F9: ='Oculto EC'!D66 -> 694.4 | G9: ='Oculto EC'!E66 -> 0.5 | H9: ='Oculto EC'!F66 -> 679.3 | J9: 0.25 | K9: =F9 -> 694.4
D10: FUNCIÓN SUSTITUTOS PERFECTOS | J10: Demanda sustitutos perfectos
D11: v(p1,p2,m) | E11: x1* | F11: x2* | G11: Rel. 1 a: | J11: Ponderador bSP | K11: Demanda
D12: ='Oculto EC'!B69 -> 1388.9 | E12: ='Oculto EC'!C69 -> 1388.9 | F12: ='Oculto EC'!D69 -> 0.0 | G12: 1.0 | J12: 0.25 | K12: =E12 -> 1,388.9
D13: FUNCIÓN CUASILINEAL | J13: Demanda cuasilineal
D14: v(p1,p2) | E14: x1* | F14: x2* | J14: Ponderador bCL | K14: Demanda
D15: ='Oculto EC'!B72 -> 1357.7 | E15: ='Oculto EC'!C72 -> 1.0 | F15: ='Oculto EC'!D72 -> 1357.7 | J15: 0.25 | K15: =E15 -> 1.0
D16: FUNCIÓN STONE-GEARY | J16: Demanda Stone-Geary
D17: v(p1,p2,m) | E17: a2 | F17: x1* | G17: 1-a2 | H17: x2* | J17: Ponderador bSG | K17: Demanda
D18: ='Oculto EC'!B75 -> 671.8 | E18: 0.5 | F18: ='Oculto EC'!D75 -> 689.2 | G18: =1-E18 -> 0.5 | H18: ='Oculto EC'!F75 -> 684.5 | J18: 0.25 | K18: =F18 -> 689.2
E19: s1 | G19: s2
E20: 10.0 | G20: 20.0
D24: Títulos
D25: Resultados
D26: Insertar datos
D27: Cantidad de equilibrio

Sheet Oculto EC (hidden)
B1: COBB-DOUGLAS | D1: Recta Presupuestaria | K1: Curva de Indiferencia | N1: SUSTITUTOS PERFECTOS | Q1: Recta Presupuestaria | S1: Curva de Indiferencia | W1: Cuasilineal | Z1: Recta Presupuestaria | AF1: Curva de Indiferencia | AJ1: Stone-Geary | AM1: Recta Presupuestaria | AS1: Curva de Indiferencia
B2: Unidades | C2: ponderador | D2: x1 | E2: x2 | F2: x1lin | H2: x2lin | J2: Cota | K2: x1 | L2: x2 | N2: Unidades | O2: ponderador | Q2: x1 | R2: x2 | S2: x1lin | T2: sip1>p2 | V2: Unidades | W2: Unidades | X2: ponderador | Y2: ponderador | Z2: x1 | AA2: x2 | AB2: x1lin | AD2: x2lin | AF2: x1 | AG2: x2 | AI2: Unidades | AJ2: Unidades | AK2: ponderador | AL2: ponderador | AM2: x1 | AN2: x2 | AO2: x1lin | AQ2: x2lin | AS2: x1 | AT2: x2 | AU2: s1 | AW2: s2
B3: 1 | C3: 0 | D3: =$D$37*C3 -> 0 | E3: =$B$30/$E$30-($C$30/$E$30*D3) -> 1,358.70 | F3: =$F$27 -> 694.4444444 | G3: =$G$27*C3 -> 0 | H3: =$F$27*'Oculto EC'!C3 -> 0 | I3: =$G$27 -> 679.3478261 | N3: 1 | O3: 0 | P3: 1.00 | Q3: =$P$26*O3 -> 0 | R3: =$P$27*P3 -> 1,358.70 | S3: =IF($Q$26<=$R$26,O37,Q37) -> 0 | T3: =IF($Q$26<=$R$26,P37,R37) -> 1,388.89 | V3: 0.01 | W3: 1 | X3: 1.00 | Y3: 0 | Z3: =($X$26/$Y$26)*Y3 -> 0 | AA3: =($X$26/$AA$26)*X3 -> 1,358.70 | AB3: =$AD$26 -> 1.0 | AC3: =$AE$26*Y3 -> 0 | AD3: =$AD$26*Y3 -> 0 | AE3: =$AE$26 -> 1357.7 | AF3: =$AE$26*V3 -> 13.58 | AG3: =$AC$26-(LN(AF3)) -> 1,355.11 | AI3: 0.01 | AJ3: 1 | AK3: 1.00 | AL3: 0 | AM3: =($AI$33/$AJ$33)*AL3 -> 0 | AN3: =$AK$26/$AN$26-$AL$26/$AN$26*AM3 -> 1,358.70 | AO3: =$AQ$26 -> 689.2 | AP3: =$AR$26*AL3 -> 0 | AQ3: =$AQ$26*AL3 -> 0 | AR3: =$AR$26 -> 684.5 | AU3: =$AK$48 -> 10.0 | AV3: =$AK$41*AL3 -> 0 | AW3: =$AK$40*AL3 -> 0 | AX3: =$AM$48 -> 20.0
B4: 2 | C4: 0.05 | D4: =$D$37*C4 -> 69.44 | E4: =$B$30/$E$30-($C$30/$E$30*D4) -> 1,290.76 | F4: =$F$27 -> 694.4444444 | G4: 33.97 | H4: =$F$27*'Oculto EC'!C4 -> 34.72 | I4: =$G$27 -> 679.3478261 | J4: 0.28 | N4: 2 | O4: 0.05 | P4: 0.95 | Q4: 69.44 | R4: 1,290.76 | S4: 69.44 | T4: 1,319.44 | V4: 0.1 | W4: 2 | X4: 0.95 | Y4: 0.05 | Z4: 69.44 | AA4: 1,290.76 | AB4: 1.0 | AC4: 67.88 | AD4: 0.05 | AE4: 1357.7 | AF4: 135.77 | AG4: 1,352.81 | AI4: 0.1 | AJ4: 2 | AK4: 0.95 | AL4: 0.05 | AM4: 69.44 | AN4: 1,290.76 | AO4: 689.2 | AP4: 34.22 | AQ4: 34.46 | AR4: 684.5 | AU4: 10.0 | AV4: 67.93 | AW4: 69.44 | AX4: 20.0
B5: 3 | C5: 0.10 | D5: 138.89 | E5: 1,222.83 | F5: 694.4444444 | G5: 67.93 | H5: =$F$27*'Oculto EC'!C5 -> 69.44 | I5: 679.3478261 | J5: 0.36 | N5: 3 | O5: 0.10 | P5: 0.90 | Q5: 138.89 | R5: 1,222.83 | S5: 138.89 | T5: 1,250.00 | V5: 0.2 | W5: 3 | X5: 0.90 | Y5: 0.10 | Z5: 138.89 | AA5: 1,222.83 | AB5: 1.0 | AC5: 135.77 | AD5: 0.10 | AE5: 1357.7 | AF5: 271.54 | AG5: 1,352.11 | AI5: 0.2 | AJ5: 3 | AK5: 0.90 | AL5: 0.10 | AM5: 138.89 | AN5: 1,222.83 | AO5: 689.2 | AP5: 68.45 | AQ5: 68.92 | AR5: 684.5 | AU5: 10.0 | AV5: 135.87 | AW5: 138.89 | AX5: 20.0
B6: 4 | C6: 0.15 | D6: 208.33 | E6: 1,154.89 | F6: 694.4444444 | G6: 101.90 | H6: =$F$27*'Oculto EC'!C6 -> 104.17 | I6: 679.3478261 | J6: 0.44 | N6: 4 | O6: 0.15 | P6: 0.85 | Q6: 208.33 | R6: 1,154.89 | S6: 208.33 | T6: 1,180.56 | V6: 0.3 | W6: 4 | X6: 0.85 | Y6: 0.15 | Z6: 208.33 | AA6: 1,154.89 | AB6: 1.0 | AC6: 203.65 | AD6: 0.15 | AE6: 1357.7 | AF6: 407.31 | AG6: 1,351.71 | AI6: 0.3 | AJ6: 4 | AK6: 0.85 | AL6: 0.15 | AM6: 208.33 | AN6: 1,154.89 | AO6: 689.2 | AP6: 102.67 | AQ6: 103.38 | AR6: 684.5 | AU6: 10.0 | AV6: 203.80 | AW6: 208.33 | AX6: 20.0
B7: 5 | C7: 0.20 | D7: 277.78 | E7: 1,086.96 | F7: 694.4444444 | G7: 135.87 | H7: =$F$27*'Oculto EC'!C7 -> 138.89 | I7: 679.3478261 | J7: 0.52 | N7: 5 | O7: 0.20 | P7: 0.80 | Q7: 277.78 | R7: 1,086.96 | S7: 277.78 | T7: 1,111.11 | V7: 0.4 | W7: 5 | X7: 0.80 | Y7: 0.20 | Z7: 277.78 | AA7: 1,086.96 | AB7: 1.0 | AC7: 271.54 | AD7: 0.20 | AE7: 1357.7 | AF7: 543.08 | AG7: 1,351.42 | AI7: 0.4 | AJ7: 5 | AK7: 0.80 | AL7: 0.20 | AM7: 277.78 | AN7: 1,086.96 | AO7: 689.2 | AP7: 136.89 | AQ7: 137.84 | AR7: 684.5 | AU7: 10.0 | AV7: 271.74 | AW7: 277.78 | AX7: 20.0
B8: 6 | C8: 0.25 | D8: 347.22 | E8: 1,019.02 | F8: 694.4444444 | G8: 169.84 | H8: =$F$27*'Oculto EC'!C8 -> 173.61 | I8: 679.3478261 | J8: 0.6 | N8: 6 | O8: 0.25 | P8: 0.75 | Q8: 347.22 | R8: 1,019.02 | S8: 347.22 | T8: 1,041.67 | V8: 0.5 | W8: 6 | X8: 0.75 | Y8: 0.25 | Z8: 347.22 | AA8: 1,019.02 | AB8: 1.0 | AC8: 339.42 | AD8: 0.26 | AE8: 1357.7 | AF8: 678.85 | AG8: 1,351.20 | AI8: 0.5 | AJ8: 6 | AK8: 0.75 | AL8: 0.25 | AM8: 347.22 | AN8: 1,019.02 | AO8: 689.2 | AP8: 171.11 | AQ8: 172.31 | AR8: 684.5 | AU8: 10.0 | AV8: 339.67 | AW8: 347.22 | AX8: 20.0
B9: 7 | C9: 0.30 | D9: 416.67 | E9: 951.09 | F9: 694.4444444 | G9: 203.80 | H9: =$F$27*'Oculto EC'!C9 -> 208.33 | I9: 679.3478261 | J9: 0.68 | N9: 7 | O9: 0.30 | P9: 0.70 | Q9: 416.67 | R9: 951.09 | S9: 416.67 | T9: 972.22 | V9: 0.6 | W9: 7 | X9: 0.70 | Y9: 0.30 | Z9: 416.67 | AA9: 951.09 | AB9: 1.0 | AC9: 407.31 | AD9: 0.31 | AE9: 1357.7 | AF9: 814.62 | AG9: 1,351.01 | AI9: 0.6 | AJ9: 7 | AK9: 0.70 | AL9: 0.30 | AM9: 416.67 | AN9: 951.09 | AO9: 689.2 | AP9: 205.34 | AQ9: 206.77 | AR9: 684.5 | AU9: 10.0 | AV9: 407.61 | AW9: 416.67 | AX9: 20.0
B10: 8 | C10: 0.35 | D10: 486.11 | E10: 883.15 | F10: 694.4444444 | G10: 237.77 | H10: =$F$27*'Oculto EC'!C10 -> 243.06 | I10: 679.3478261 | J10: 0.76 | K10: =$F$27*J10 -> 527.78 | L10: =($G$28/(K10^($F$26)))^(1/$G$26) -> 893.88 | N10: 8 | O10: 0.35 | P10: 0.65 | Q10: 486.11 | R10: 883.15 | S10: 486.11 | T10: 902.78 | V10: 0.7 | W10: 8 | X10: 0.65 | Y10: 0.35 | Z10: 486.11 | AA10: 883.15 | AB10: 1.0 | AC10: 475.19 | AD10: 0.36 | AE10: 1357.7 | AF10: 950.39 | AG10: 1,350.86 | AI10: 0.7 | AJ10: 8 | AK10: 0.65 | AL10: 0.35 | AM10: 486.11 | AN10: 883.15 | AO10: 689.2 | AP10: 239.56 | AQ10: 241.23 | AR10: 684.5 | AS10: =$AQ$26*AI10+1.5*1 -> 483.96 | AT10: =$AM$48+($AI$46/((AS10-$AK$48)^$AJ$46))^(1/$AL$46) -> 972.23 | AU10: 10.0 | AV10: 475.54 | AW10: 486.11 | AX10: 20.0
B11: 9 | C11: 0.40 | D11: 555.56 | E11: 815.22 | F11: 694.4444444 | G11: 271.74 | H11: =$F$27*'Oculto EC'!C11 -> 277.78 | I11: 679.3478261 | J11: 0.84 | K11: 583.33 | L11: 808.75 | N11: 9 | O11: 0.40 | P11: 0.60 | Q11: 555.56 | R11: 815.22 | S11: 555.56 | T11: 833.33 | V11: 0.8 | W11: 9 | X11: 0.60 | Y11: 0.40 | Z11: 555.56 | AA11: 815.22 | AB11: 1.0 | AC11: 543.08 | AD11: 0.41 | AE11: 1357.7 | AF11: 1,086.16 | AG11: 1,350.73 | AI11: 0.8 | AJ11: 9 | AK11: 0.60 | AL11: 0.40 | AM11: 555.56 | AN11: 815.22 | AO11: 689.2 | AP11: 273.78 | AQ11: 275.69 | AR11: 684.5 | AS11: =$AQ$26*AI11 -> 551.38 | AT11: 853.64 | AU11: 10.0 | AV11: 543.48 | AW11: 555.56 | AX11: 20.0
B12: 10 | C12: 0.45 | D12: 625.00 | E12: 747.28 | F12: 694.4444444 | G12: 305.71 | H12: =$F$27*'Oculto EC'!C12 -> 312.50 | I12: 679.3478261 | J12: 0.92 | K12: 638.89 | L12: 738.42 | N12: 10 | O12: 0.45 | P12: 0.55 | Q12: 625.00 | R12: 747.28 | S12: 625.00 | T12: 763.89 | V12: 0.9 | W12: 10 | X12: 0.55 | Y12: 0.45 | Z12: 625.00 | AA12: 747.28 | AB12: 1.0 | AC12: 610.96 | AD12: 0.46 | AE12: 1357.7 | AF12: 1,221.93 | AG12: 1,350.61 | AI12: 0.9 | AJ12: 10 | AK12: 0.55 | AL12: 0.45 | AM12: 625.00 | AN12: 747.28 | AO12: 689.2 | AP12: 308.01 | AQ12: 310.15 | AR12: 684.5 | AS12: 620.30 | AT12: 759.49 | AU12: 10.0 | AV12: 611.41 | AW12: 625.00 | AX12: 20.0
B13: 11 | C13: 0.50 | D13: 694.44 | E13: 679.35 | F13: 694.4444444 | G13: 339.67 | H13: =$F$27*'Oculto EC'!C13 -> 347.22 | I13: 679.3478261 | J13: 1 | K13: =$F$27*J13 -> 694.44 | L13: 679.35 | N13: 11 | O13: 0.50 | P13: 0.50 | Q13: 694.44 | R13: 679.35 | S13: 694.44 | T13: 694.44 | V13: 1 | W13: 11 | X13: 0.50 | Y13: 0.50 | Z13: 694.44 | AA13: 679.35 | AB13: 1.0 | AC13: 678.85 | AD13: 0.51 | AE13: 1357.7 | AF13: 1,357.70 | AG13: 1,350.50 | AI13: 1 | AJ13: 11 | AK13: 0.50 | AL13: 0.50 | AM13: 694.44 | AN13: 679.35 | AO13: 689.2 | AP13: 342.23 | AQ13: 344.61 | AR13: 684.5 | AS13: 689.22 | AT13: 684.46 | AU13: 10.0 | AV13: 679.35 | AW13: 694.44 | AX13: 20.0
B14: 12 | C14: 0.55 | D14: 763.89 | E14: 611.41 | F14: 694.4444444 | G14: 373.64 | H14: =$F$27*'Oculto EC'!C14 -> 381.94 | I14: 679.3478261 | J14: 1.08 | K14: =$F$27*J14 -> 750.00 | L14: 629.03 | N14: 12 | O14: 0.55 | P14: 0.45 | Q14: 763.89 | R14: 611.41 | S14: 763.89 | T14: 625.00 | V14: 1.1 | W14: 12 | X14: 0.45 | Y14: 0.55 | Z14: 763.89 | AA14: 611.41 | AB14: 1.0 | AC14: 746.73 | AD14: 0.56 | AE14: 1357.7 | AF14: 1,493.47 | AG14: 1,350.41 | AI14: 1.1 | AJ14: 12 | AK14: 0.45 | AL14: 0.55 | AM14: 763.89 | AN14: 611.41 | AO14: 689.2 | AP14: 376.45 | AQ14: 379.07 | AR14: 684.5 | AS14: 758.14 | AT14: 623.24 | AU14: 10.0 | AV14: 747.28 | AW14: 763.89 | AX14: 20.0
B15: 13 | C15: 0.60 | D15: 833.33 | E15: 543.48 | F15: 694.4444444 | G15: 407.61 | H15: =$F$27*'Oculto EC'!C15 -> 416.67 | I15: 679.3478261 | J15: 1.16 | K15: 805.56 | L15: 585.64 | N15: 13 | O15: 0.60 | P15: 0.40 | Q15: 833.33 | R15: 543.48 | S15: 833.33 | T15: 555.56 | V15: 1.2 | W15: 13 | X15: 0.40 | Y15: 0.60 | Z15: 833.33 | AA15: 543.48 | AB15: 1.0 | AC15: 814.62 | AD15: 0.61 | AE15: 1357.7 | AF15: 1,629.23 | AG15: 1,350.32 | AI15: 1.2 | AJ15: 13 | AK15: 0.40 | AL15: 0.60 | AM15: 833.33 | AN15: 543.48 | AO15: 689.2 | AP15: 410.67 | AQ15: 413.53 | AR15: 684.5 | AS15: 827.07 | AT15: 572.36 | AU15: 10.0 | AV15: 815.22 | AW15: 833.33 | AX15: 20.0
B16: 14 | C16: 0.65 | D16: 902.78 | E16: 475.54 | F16: 694.4444444 | G16: 441.58 | H16: =$F$27*'Oculto EC'!C16 -> 451.39 | I16: 679.3478261 | J16: 1.24 | K16: 861.11 | L16: 547.86 | N16: 14 | O16: 0.65 | P16: 0.35 | Q16: 902.78 | R16: 475.54 | S16: 902.78 | T16: 486.11 | V16: 1.3 | W16: 14 | X16: 0.35 | Y16: 0.65 | Z16: 902.78 | AA16: 475.54 | AB16: 1.0 | AC16: 882.50 | AD16: 0.66 | AE16: 1357.7 | AF16: 1,765.00 | AG16: 1,350.24 | AI16: 1.3 | AJ16: 14 | AK16: 0.35 | AL16: 0.65 | AM16: 902.78 | AN16: 475.54 | AO16: 689.2 | AP16: 444.90 | AQ16: 447.99 | AR16: 684.5 | AS16: 895.99 | AT16: 529.39 | AU16: 10.0 | AV16: 883.15 | AW16: 902.78 | AX16: 20.0
B17: 15 | C17: 0.70 | D17: 972.22 | E17: 407.61 | F17: 694.4444444 | G17: 475.54 | H17: =$F$27*'Oculto EC'!C17 -> 486.11 | I17: 679.3478261 | J17: 1.32 | K17: 916.67 | L17: 514.66 | N17: 15 | O17: 0.70 | P17: 0.30 | Q17: 972.22 | R17: 407.61 | S17: 972.22 | T17: 416.67 | V17: 1.4 | W17: 15 | X17: 0.30 | Y17: 0.70 | Z17: 972.22 | AA17: 407.61 | AB17: 1.0 | AC17: 950.39 | AD17: 0.72 | AE17: 1357.7 | AF17: 1,900.77 | AG17: 1,350.17 | AI17: 1.4 | AJ17: 15 | AK17: 0.30 | AL17: 0.70 | AM17: 972.22 | AN17: 407.61 | AO17: 689.2 | AP17: 479.12 | AQ17: 482.46 | AR17: 684.5 | AS17: 964.91 | AT17: 492.62 | AU17: 10.0 | AV17: 951.09 | AW17: 972.22 | AX17: 20.0
B18: 16 | C18: 0.75 | D18: 1,041.67 | E18: 339.67 | F18: 694.4444444 | G18: 509.51 | H18: =$F$27*'Oculto EC'!C18 -> 520.83 | I18: 679.3478261 | J18: 1.4 | K18: 972.22 | L18: 485.25 | N18: 16 | O18: 0.75 | P18: 0.25 | Q18: 1,041.67 | R18: 339.67 | S18: 1,041.67 | T18: 347.22 | V18: 1.5 | W18: 16 | X18: 0.25 | Y18: 0.75 | Z18: 1,041.67 | AA18: 339.67 | AB18: 1.0 | AC18: 1,018.27 | AD18: 0.77 | AE18: 1357.7 | AF18: 2,036.54 | AG18: 1,350.10 | AI18: 1.5 | AJ18: 16 | AK18: 0.25 | AL18: 0.75 | AM18: 1,041.67 | AN18: 339.67 | AO18: 689.2 | AP18: 513.34 | AQ18: 516.92 | AR18: 684.5 | AS18: 1,033.83 | AT18: 460.81 | AU18: 10.0 | AV18: 1,019.02 | AW18: 1,041.67 | AX18: 20.0
B19: 17 | C19: 0.80 | D19: 1,111.11 | E19: 271.74 | F19: 694.4444444 | G19: 543.48 | H19: =$F$27*'Oculto EC'!C19 -> 555.56 | I19: 679.3478261 | J19: 1.48 | K19: 1,027.78 | L19: 459.02 | N19: 17 | O19: 0.80 | P19: 0.20 | Q19: 1,111.11 | R19: 271.74 | S19: 1,111.11 | T19: 277.78 | V19: 1.6 | W19: 17 | X19: 0.20 | Y19: 0.80 | Z19: 1,111.11 | AA19: 271.74 | AB19: 1.0 | AC19: 1,086.16 | AD19: 0.82 | AE19: 1357.7 | AF19: 2,172.31 | AG19: 1,350.03 | AI19: 1.6 | AJ19: 17 | AK19: 0.20 | AL19: 0.80 | AM19: 1,111.11 | AN19: 271.74 | AO19: 689.2 | AP19: 547.57 | AQ19: 551.38 | AR19: 684.5 | AS19: 1,102.76 | AT19: 433.01 | AU19: 10.0 | AV19: 1,086.96 | AW19: 1,111.11 | AX19: 20.0
B20: 18 | C20: 0.85 | D20: 1,180.56 | E20: 203.80 | F20: 694.4444444 | G20: 577.45 | H20: =$F$27*'Oculto EC'!C20 -> 590.28 | I20: 679.3478261 | J20: 1.56 | K20: 1,083.33 | L20: 435.48 | N20: 18 | O20: 0.85 | P20: 0.15 | Q20: 1,180.56 | R20: 203.80 | S20: 1,180.56 | T20: 208.33 | V20: 1.7 | W20: 18 | X20: 0.15 | Y20: 0.85 | Z20: 1,180.56 | AA20: 203.80 | AB20: 1.0 | AC20: 1,154.04 | AD20: 0.87 | AE20: 1357.7 | AF20: 2,308.08 | AG20: 1,349.97 | AI20: 1.7 | AJ20: 18 | AK20: 0.15 | AL20: 0.85 | AM20: 1,180.56 | AN20: 203.80 | AO20: 689.2 | AP20: 581.79 | AQ20: 585.84 | AR20: 684.5 | AS20: 1,171.68 | AT20: 408.50 | AU20: 10.0 | AV20: 1,154.89 | AW20: 1,180.56 | AX20: 20.0
B21: 19 | C21: 0.90 | D21: 1,250.00 | E21: 135.87 | F21: 694.4444444 | G21: 611.41 | H21: =$F$27*'Oculto EC'!C21 -> 625.00 | I21: 679.3478261 | J21: 1.64 | K21: 1,138.89 | L21: 414.24 | N21: 19 | O21: 0.90 | P21: 0.10 | Q21: 1,250.00 | R21: 135.87 | S21: 1,250.00 | T21: 138.89 | V21: 1.8 | W21: 19 | X21: 0.10 | Y21: 0.90 | Z21: 1,250.00 | AA21: 135.87 | AB21: 1.0 | AC21: 1,221.93 | AD21: 0.92 | AE21: 1357.7 | AF21: 2,443.85 | AG21: 1,349.92 | AI21: 1.8 | AJ21: 19 | AK21: 0.10 | AL21: 0.90 | AM21: 1,250.00 | AN21: 135.87 | AO21: 689.2 | AP21: 616.01 | AQ21: 620.30 | AR21: 684.5 | AS21: 1,240.60 | AT21: 386.74 | AU21: 10.0 | AV21: 1,222.83 | AW21: 1,250.00 | AX21: 20.0
B22: 20 | C22: 0.95 | D22: 1,319.44 | E22: 67.93 | F22: 694.4444444 | G22: 645.38 | H22: =$F$27*'Oculto EC'!C22 -> 659.72 | I22: 679.3478261 | J22: 1.72 | K22: 1,194.44 | L22: 394.97 | N22: 20 | O22: 0.95 | P22: 0.05 | Q22: 1,319.44 | R22: 67.93 | S22: 1,319.44 | T22: 69.44 | V22: 1.9 | W22: 20 | X22: 0.05 | Y22: 0.95 | Z22: 1,319.44 | AA22: 67.93 | AB22: 1.0 | AC22: 1,289.81 | AD22: 0.97 | AE22: 1357.7 | AF22: 2,579.62 | AG22: 1,349.86 | AI22: 1.9 | AJ22: 20 | AK22: 0.05 | AL22: 0.95 | AM22: 1,319.44 | AN22: 67.93 | AO22: 689.2 | AP22: 650.23 | AQ22: 654.76 | AR22: 684.5 | AS22: 1,309.52 | AT22: 367.29 | AU22: 10.0 | AV22: 1,290.76 | AW22: 1,319.44 | AX22: 20.0
B23: 21 | C23: 1.00 | D23: 1,388.89 | E23: 0 | F23: 694.4444444 | G23: =$G$27*C23 -> 679.35 | H23: =$F$27*'Oculto EC'!C23 -> 694.44 | I23: 679.3478261 | J23: 1.8 | K23: 1,250.00 | L23: 377.42 | N23: 21 | O23: 1.00 | P23: 0 | Q23: 1,388.89 | R23: 0 | S23: 1,388.89 | T23: 0 | V23: 2 | W23: 21 | X23: 0 | Y23: 1.00 | Z23: 1,388.89 | AA23: 0 | AB23: 1.0 | AC23: 1,357.70 | AD23: 1.02 | AE23: 1357.7 | AF23: 2,715.39 | AG23: 1,349.81 | AI23: 2 | AJ23: 21 | AK23: 0 | AL23: 1.00 | AM23: 1,388.89 | AN23: 0 | AO23: 689.2 | AP23: 684.46 | AQ23: 689.22 | AR23: 684.5 | AS23: 1,378.44 | AT23: 349.80 | AU23: 10.0 | AV23: 1,358.70 | AW23: 1,388.89 | AX23: 20.0
F25: x1 | G25: x2 | O25: m | P25: =A69 -> 125,000.0 | Q25: p1<p2 | X25: m | Y25: p1 | Z25: x1 | AA25: p2 | AB25: x2 | AC25: k | AD25: x1* | AE25: x2* | AK25: m | AL25: p1 | AM25: x1 | AN25: p2 | AO25: x2 | AP25: k | AQ25: x1* | AR25: x2*
F26: =C66 -> 0.5 | G26: =1-F26 -> 0.50 | O26: X1 | P26: =P25/P29 -> 1,388.89 | Q26: =P29 -> 90 | R26: =P33*P30 -> 92 | X26: =A72 -> 125000.0 | Y26: =C62 -> 90.0 | Z26: =AA26/Y26 -> 1.0 | AA26: =D62 -> 92.0 | AB26: =$AC$26-(LN(Z26)) -> 1357.7 | AC26: =LN(AD26)+AE26 -> 1357.7 | AD26: =AA26/Y26 -> 1.0 | AE26: =(X26/AA26)-1 -> 1357.7 | AK26: =A75 -> 125000.0 | AL26: =C62 -> 90.0 | AM26: =D75 -> 689.2 | AN26: =D62 -> 92.0 | AO26: =F75 -> 684.5 | AP26: =B75 -> 671.8 | AQ26: =D75 -> 689.2 | AR26: =F75 -> 684.5
F27: =C66*A66/C62 -> 694.4 | G27: =G26*B30/E30 -> 679.3 | O27: X2 | P27: =P25/P30 -> 1,358.70 | Q27: =P25/Q26 -> 1388.888889 | R27: =P25/R26 -> 1358.695652 | AQ27: =AQ26*2 -> 1378.444444
F28: v=K | G28: =(F27^(F26))*(G27^(G26)) -> 686.8546598 | O28: K | P28: =R31 -> 1358.695652 | Q28: x1 | R28: x2 | Y28: max X1 | Z28: =X26/Y26 -> 1388.888889
B29: m | C29: p1 | D29: x1 | E29: p2 | F29: x2 | O29: P1 | P29: =C62 -> 90.0 | Q29: =P25/P29 -> 1388.888889 | R29: =P25/P30 -> 1358.695652 | Y29: max X2 | Z29: =X26/AA26 -> 1358.695652
B30: =A66 -> 125,000.0 | C30: =C62 -> 90.0 | D30: =F27 -> 694.4 | E30: =D62 -> 92.0 | F30: =B30/E30-C30/E30*D30 -> 679.3 | O30: P2 | P30: =D62 -> 92.0 | Q30: =P25/P29 -> 1388.888889 | R30: =P25/(P30*(P33)) -> 1358.695652
B31: =D31+F31 -> 125000 | D31: =D30*C30 -> 62500 | F31: =F30*E30 -> 62500 | O31: X1* | P31: =IF(Q26<=R26,Q23,0) -> 1388.888889 | R31: =IF(Q26<R26,R30,R29) -> 1358.695652 | AI31: RECTA PRESUPUESTAL
O32: X2* | P32: =IF(Q26>R26,R3,0) -> 0 | AI32: m | AJ32: p1 | AK32: x1 | AL32: p2 | AM32: x2
B33: PARÁMETROS DE LA RECTA PRESUPUESTAL | O33: Rel. 1 a: | P33: =E69 -> 1.0 | AI33: =AK26 -> 125,000.0 | AJ33: =AL26 -> 90.0 | AK33: =AQ26 -> 689.2 | AL33: =AN26 -> 92.0 | AM33: =(AI33/AL33)-(AJ33/AL33)*AK33 -> 684.5
B34: x2 | C34: b0 | D34: b1 | E34: x1 | AI34: Inserte los datos correspondientes
B35: =C35+(D35*E35) -> 679.3 | C35: =B30/E30 -> 1,358.7 | D35: =C30/E30*-1 -> (1.0) | E35: =D30 -> 694.4
O36: sip1<bp2 | Q36: si p1>p2 | AI36: PARÁMETROS DE LA RECTA PRESUPUESTAL
B37: Máxima cantidad de x1 | D37: =B30/C30 -> 1,388.9 | O37: =$Q$27*O3 -> 0 | P37: =($Q$27*$P$33)-($P$33*O37) -> 1,388.89 | Q37: =($R$27)-((1/$P$33)*R37) -> 0 | R37: =$R$27*P3*$P$33 -> 1,358.70 | AI37: x2 | AJ37: b0 | AK37: b1 | AL37: x1
B38: Máxima cantidad de x2 | D38: =B30/E30 -> 1,358.7 | O38: 69.44 | P38: 1,319.44 | Q38: 67.93 | R38: 1,290.76 | AI38: =AJ38+(AK38*AL38) -> 684.5 | AJ38: =AI33/AL33 -> 1,358.7 | AK38: =AJ33/AL33*-1 -> (1.0) | AL38: =AK33 -> 689.2
B39: Precio relativo (<0) | D39: =(C30/E30)*(-1) -> (1.0) | O39: 138.89 | P39: 1,250.00 | Q39: 135.87 | R39: 1,222.83
O40: 208.33 | P40: 1,180.56 | Q40: 203.80 | R40: 1,154.89 | AI40: Máxima cantidad de x1 | AK40: =AI33/AJ33 -> 1,388.9
B41: PARÁMETROS DE FUNCIÓN COBB-DOUGLAS | O41: 277.78 | P41: 1,111.11 | Q41: 271.74 | R41: 1,086.96 | AI41: Máxima cantidad de x2 | AK41: =AI33/AL33 -> 1,358.7
B42: k | C42: a | D42: x1* | E42: 1-a | F42: x2* | O42: 347.22 | P42: 1,041.67 | Q42: 339.67 | R42: 1,019.02 | AI42: Precio relativo (<0) | AK42: =(AJ33/AL33)*(-1) -> (1.0)
B43: =D43^(C43)*F43^(E43) -> 694.4 | C43: =C66 -> 0.5 | D43: =D30 -> 694.4 | E43: =1-C43 -> 0.5 | F43: =E35 -> 694.4 | O43: 416.67 | P43: 972.22 | Q43: 407.61 | R43: 951.09
O44: 486.11 | P44: 902.78 | Q44: 475.54 | R44: 883.15 | AI44: PARÁMETROS DE FUNCIÓN COBB-DOUGLAS
O45: 555.56 | P45: 833.33 | Q45: 543.48 | R45: 815.22 | AI45: k=v | AJ45: a | AK45: x1* | AL45: 1-a | AM45: x2*
O46: 625.00 | P46: 763.89 | Q46: 611.41 | R46: 747.28 | AI46: =(AK46-AK48)^AJ46*(AM46-AM48)^AL46 -> 671.8 | AJ46: =C75 -> 0.5 | AK46: =AK48+(AJ46/AJ33*(AI33-AK48*AJ33-AM48*AL33)) -> 689.2 | AL46: =E75 -> 0.5 | AM46: =AM48+(AL46/AL33*(AI33-AK48*AJ33-AM48*AL33)) -> 684.5
O47: 694.44 | P47: 694.44 | Q47: 679.35 | R47: 679.35 | AK47: s1 | AM47: s2
O48: 763.89 | P48: 625.00 | Q48: 747.28 | R48: 611.41 | AK48: =C77 -> 10.0 | AM48: =E77 -> 20.0
O49: 833.33 | P49: 555.56 | Q49: 815.22 | R49: 543.48
O50: 902.78 | P50: 486.11 | Q50: 883.15 | R50: 475.54
O51: 972.22 | P51: 416.67 | Q51: 951.09 | R51: 407.61
O52: 1,041.67 | P52: 347.22 | Q52: 1,019.02 | R52: 339.67
O53: 1,111.11 | P53: 277.78 | Q53: 1,086.96 | R53: 271.74
O54: 1,180.56 | P54: 208.33 | Q54: 1,154.89 | R54: 203.80
O55: 1,250.00 | P55: 138.89 | Q55: 1,222.83 | R55: 135.87
O56: 1,319.44 | P56: 69.44 | Q56: 1,290.76 | R56: 67.93
O57: 1,388.89 | P57: 0 | Q57: 1,358.70 | R57: 0
L58: Función de demanda | S58: Función de oferta
K59: Ponderador | L59: p | M59: y | N59: Ponderador | O59: yline | Q59: pline | S59: p | T59: y
B60: RECTA PRESUPUESTAL | H60: DEMANDA TOTAL BIEN 1 | K60: 0 | N60: ='Oculto prod'!M3 -> 0 | O60: =$C$30 -> 90.0 | P60: =$I$62*K60 -> 0 | Q60: =$C$30*K60 -> 0 | R60: =$I$62 -> 2,773.6 | S60: ='Oculto prod'!K3 -> 0 | T60: ='Oculto prod'!L3 -> 0
B61: m | C61: p1 | D61: p2 | H61: Ponderador m | I61: Demanda | J61: =($C$66*$A$66/C62)+(IF(C62<=$D$62,$A$69/C62,0))+($D$62/C62)+($C$77+(($A$75-$C$77*C62-$E$77*$D$62)/C62)) -> 3,452.8 | K61: 0.05 | L61: =$C$62*N61 -> 8.18 | M61: =($C$66*$A$66/L61)+(IF(L61<=$D$62,$A$69/L61,0))+($D$62/L61)+($C$77+($C$75/L61*($A$75-L61*$C$77-$D$62*$E$77))) -> 30,459.4 | N61: =1/$N$82 -> 0.09 | O61: =$C$30 -> 90.0 | P61: =$I$62*K61 -> 138.68 | Q61: =$C$30*K61 -> 4.50 | R61: =$I$62 -> 2,773.6 | S61: ='Oculto prod'!V63 -> 8.18 | T61: ='Oculto prod'!W63 -> 371.90
B62: =Consumidor!D5 -> 500,000.0 | C62: =Consumidor!E5 -> 90.0 | D62: =Consumidor!F5 -> 92.0 | H62: =H66+H69+H72+H75 -> 1.0 | I62: =I66+I69+I72+I75 -> 2,773.6 | J62: =SUM(J63:J75) -> 3452.8 | K62: 0.10 | L62: =$C$62*N62 -> 16.36 | M62: 15,232.2 | N62: =N61+1/$N$82 -> 0.18 | O62: 90.0 | P62: 277.36 | Q62: 9.00 | R62: 2,773.6 | S62: ='Oculto prod'!V64 -> 16.36 | T62: ='Oculto prod'!W64 -> 743.80
B63: Inserte los datos correspondientes | H63: =IF(H62=1, "Correcto","Incorrecto, debe sumar 1") -> Correcto | K63: 0.15 | L63: 24.55 | M63: 10,156.5 | N63: =N62+1/$N$82 -> 0.27 | O63: 90.0 | P63: 416.04 | Q63: 13.50 | R63: 2,773.6 | S63: ='Oculto prod'!V65 -> 24.55 | T63: ='Oculto prod'!W65 -> 1,115.70
B64: FUNCIÓN COBB-DOUGLAS | K64: 0.20 | L64: 32.73 | M64: 7,618.6 | N64: 0.36 | O64: 90.0 | P64: 554.72 | Q64: 18.00 | R64: 2,773.6 | S64: ='Oculto prod'!V66 -> 32.73 | T64: ='Oculto prod'!W66 -> 1,487.60
A65: m | B65: v | C65: a | D65: x1* | E65: 1-a | F65: x2* | H65: Ponderador | I65: Demanda | K65: 0.25 | L65: 40.91 | M65: 6,095.9 | N65: 0.45 | O65: 90.0 | P65: 693.39 | Q65: 22.50 | R65: 2,773.6 | S65: ='Oculto prod'!V67 -> 40.91 | T65: ='Oculto prod'!W67 -> 1,859.50
A66: =B62*H66 -> 125,000.0 | B66: =D66^C66*F66^E66 -> 686.9 | C66: =Consumidor!E9 -> 0.5 | D66: =C66*A66/C62 -> 694.4 | E66: =1-C66 -> 0.5 | F66: =E66*A66/D62 -> 679.3 | H66: =Consumidor!J9 -> 0.3 | I66: =D66 -> 694.4 | J66: =($C$66*$A$66/C62) -> 694.4 | K66: 0.30 | L66: 49.09 | M66: 5,080.7 | N66: 0.55 | O66: 90.0 | P66: 832.07 | Q66: 27.00 | R66: 2,773.6 | S66: ='Oculto prod'!V68 -> 49.09 | T66: ='Oculto prod'!W68 -> 2,231.40
B67: FUNCIÓN SUSTITUTOS PERFECTOS | K67: 0.35 | L67: 57.27 | M67: 4,355.6 | N67: 0.64 | O67: 90.0 | P67: 970.75 | Q67: 31.50 | R67: 2,773.6 | S67: ='Oculto prod'!V69 -> 57.27 | T67: ='Oculto prod'!W69 -> 2,603.31
A68: m | B68: v | C68: x1* | D68: x2* | E68: Rel. 1 a: | H68: Ponderador | I68: Demanda | K68: 0.40 | L68: 65.45 | M68: 3,811.8 | N68: 0.73 | O68: 90.0 | P68: 1,109.43 | Q68: 36.00 | R68: 2,773.6 | S68: ='Oculto prod'!V70 -> 65.45 | T68: ='Oculto prod'!W70 -> 2,975.21
A69: =H69*B62 -> 125,000.0 | B69: =C69+D69 -> 1388.9 | C69: =IF(C62<=D62,A69/C62,0) -> 1388.9 | D69: =IF(C62<=D62,0,A69/D62) -> 0.0 | E69: =Consumidor!G12 -> 1.0 | H69: =Consumidor!J12 -> 0.3 | I69: =C69 -> 1,388.9 | J69: =(IF(C62<=$D$62,$A$69/C62,0)) -> 1388.888889 | K69: 0.45 | L69: 73.64 | M69: 3,388.8 | N69: 0.82 | O69: 90.0 | P69: 1,248.11 | Q69: 40.50 | R69: 2,773.6 | S69: ='Oculto prod'!V71 -> 73.64 | T69: ='Oculto prod'!W71 -> 3,347.11
B70: FUNCIÓN CUASILINEAL | K70: 0.50 | L70: 81.82 | M70: 3,050.4 | N70: 0.91 | O70: 90.0 | P70: 1,386.79 | Q70: 45.00 | R70: 2,773.6 | S70: ='Oculto prod'!V72 -> 81.82 | T70: ='Oculto prod'!W72 -> 3,719.01
A71: m | B71: v | C71: x1* | D71: x2* | H71: Ponderador | I71: Demanda | K71: 0.55 | L71: 90.00 | M71: 2,773.6 | N71: 1.00 | O71: 90.0 | P71: 1,525.47 | Q71: 49.50 | R71: 2,773.6 | S71: ='Oculto prod'!V73 -> 90.00 | T71: ='Oculto prod'!W73 -> 4,090.91
A72: =B62*H72 -> 125,000.0 | B72: =LOG(C72)+D72 -> 1357.7 | C72: =D62/C62 -> 1.0 | D72: =A72/D62-1 -> 1357.7 | H72: =Consumidor!J15 -> 0.3 | I72: =C72 -> 1.0 | J72: =($D$62/C62) -> 1.022222222 | K72: 0.60 | L72: 98.18 | M72: 1,269.7 | N72: 1.09 | O72: 90.0 | P72: 1,664.15 | Q72: 54.00 | R72: 2,773.6 | S72: ='Oculto prod'!V74 -> 98.18 | T72: ='Oculto prod'!W74 -> 4,462.81
B73: FUNCIÓN STONE-GEARY | K73: 0.65 | L73: 106.36 | M73: 1,172.4 | N73: 1.18 | O73: 90.0 | P73: 1,802.83 | Q73: 58.50 | R73: 2,773.6 | S73: ='Oculto prod'!V75 -> 106.36 | T73: ='Oculto prod'!W75 -> 4,834.71
A74: m | B74: v | C74: a | D74: x1* | E74: 1-a | F74: x2* | H74: Ponderador | I74: Demanda | K74: 0.70 | L74: 114.55 | M74: 1,089.0 | N74: 1.27 | O74: 90.0 | P74: 1,941.50 | Q74: 63.00 | R74: 2,773.6 | S74: ='Oculto prod'!V76 -> 114.55 | T74: ='Oculto prod'!W76 -> 5,206.61
A75: =B62*H75 -> 125,000.0 | B75: =((D75-C77)^(C75))*((F75-E77)^(E75)) -> 671.8 | C75: =Consumidor!E18 -> 0.5 | D75: =C77+(C75/C62*(A75-C62*C77-D62*E77)) -> 689.2 | E75: =Consumidor!G18 -> 0.5 | F75: =E77+(E75/D62*(A75-C77*C62-E77*D62)) -> 684.5 | H75: =Consumidor!J18 -> 0.3 | I75: =D75 -> 689.2 | J75: =($C$77+(($A$75-$C$77*C62-$E$77*$D$62)/C62)) -> 1,368.4 | K75: 0.75 | L75: 122.73 | M75: 1,016.8 | N75: 1.36 | O75: 90.0 | P75: 2,080.18 | Q75: 67.50 | R75: 2,773.6 | S75: ='Oculto prod'!V77 -> 122.73 | T75: ='Oculto prod'!W77 -> 5,578.51
A76: =SUM(A75,A72,A69,A66) -> 500,000.0 | C76: s1 | E76: s2 | K76: 0.80 | L76: 130.91 | M76: 953.5 | N76: 1.45 | O76: 90.0 | P76: 2,218.86 | Q76: 72.00 | R76: 2,773.6 | S76: ='Oculto prod'!V78 -> 130.91 | T76: ='Oculto prod'!W78 -> 5,950.41
C77: =Consumidor!E20 -> 10.0 | E77: =Consumidor!G20 -> 20.0 | G77: =($C$66*$A$66/C62)+(IF($C$62<=$D$62,$A$69/C62,0))+($D$62/C62)+($C$77+($C$75/C62*($A$75-C62*$C$77-$D$62*$E$77))) -> 2,773.6 | K77: 0.85 | L77: 139.09 | M77: =($C$66*$A$66/L77)+(IF(L77<=$D$62,$A$69/L77,0))+($D$62/L77)+($C$77+($C$75/L77*($A$75-L77*$C$77-$D$62*$E$77))) -> 897.7 | N77: 1.55 | O77: 90.0 | P77: 2,357.54 | Q77: 76.50 | R77: 2,773.6 | S77: ='Oculto prod'!V79 -> 139.09 | T77: ='Oculto prod'!W79 -> 6,322.31
K78: 0.90 | L78: 147.27 | M78: =($C$66*$A$66/L78)+(IF(L78<=$D$62,$A$69/L78,0))+($D$62/L78)+($C$77+($C$75/L78*($A$75-L78*$C$77-$D$62*$E$77))) -> 848.1 | N78: 1.64 | O78: 90.0 | P78: 2,496.22 | Q78: 81.00 | R78: 2,773.6 | S78: ='Oculto prod'!V80 -> 147.27 | T78: ='Oculto prod'!W80 -> 6,694.21
K79: 0.95 | L79: 155.45 | M79: 803.8 | N79: 1.73 | O79: 90.0 | P79: 2,634.90 | Q79: 85.50 | R79: 2,773.6 | S79: ='Oculto prod'!V81 -> 155.45 | T79: ='Oculto prod'!W81 -> 7,066.12
K80: 1.00 | L80: 163.64 | M80: 763.8 | N80: 1.82 | O80: 90.0 | P80: 2,773.58 | Q80: 90.00 | R80: 2,773.6 | S80: ='Oculto prod'!V82 -> 163.64 | T80: ='Oculto prod'!W82 -> 7,438.02
N82: 11
B83: Número de productores | E83: =Productor!E15 -> 20
B84: Producción de la industria | E84: =Productor!E16 -> 4,090.9
B85: q1 | E85: =Productor!E17 -> 8,367.8
B86: Masa salarial | E86: =Productor!E18 -> 184,090.9
D87: p | E87: ='Oculto prod'!E28 -> 90
D88: w1 | E88: ='Oculto prod'!E29 -> 22
B101: COBB-DOUGLAS | D101: Recta Presupuestaria | K101: Curva de Indiferencia | N101: REGULARES | P101: Recta Presupuestaria | W101: Curva de Indiferencia | AP101: COMPLEMENTARIOS PERFECTOS | AS101: Recta Presupuestaria | AU101: Curva de Indiferencia | BD101: SUSTITUTOS PERFECTOS | BG101: Recta Presupuestaria | BI101: Curva de Indiferencia | BL101: COBB-DOUGLAS | BN101: Recta Presupuestaria | BU101: Curva de Indiferencia | BY101: COBB-DOUGLAS | CB101: Recta Presupuestaria | CH101: Curva de Indiferencia | CM101: COBB-DOUGLAS | CP101: Recta Presupuestaria | CV101: Curva de Indiferencia
B102: Unidades | C102: ponderador | D102: x1 | E102: x2 | F102: x1lin | H102: x2lin | J102: Cota | K102: x1 | L102: x2 | N102: Unidades | O102: ponderador | P102: x1 | Q102: x2 | R102: x1lin | T102: x2lin | V102: Cota | W102: x1 | X102: x2 | AP102: Unidades | AQ102: ponderador | AS102: x1 | AT102: x2 | AU102: vertice | AV102: x2line | AW102: x1line | AY102: X1Line | BA102: X2Line | BD102: Unidades | BE102: ponderador | BG102: x1 | BH102: x2 | BI102: x1lin | BJ102: sip1>p2 | BL102: Unidades | BM102: ponderador | BN102: x1 | BO102: x2 | BP102: x1lin | BR102: x2lin | BT102: Cota | BU102: x1 | BV102: x2 | BX102: Unidades | BY102: Unidades | BZ102: ponderador | CA102: ponderador | CB102: x1 | CC102: x2 | CD102: x1lin | CF102: x2lin | CH102: x1 | CI102: x2 | CL102: Unidades | CM102: Unidades | CN102: ponderador | CO102: ponderador | CP102: x1 | CQ102: x2 | CR102: x1lin | CT102: x2lin | CV102: x1 | CW102: x2 | CX102: s1 | CZ102: s2
B103: 1 | C103: 0 | D103: =$D$37*C103 -> 0 | E103: =$B$30/$E$30-($C$30/$E$30*D103) -> 1,358.70 | F103: =$F$27 -> 694.4444444 | G103: =$G$27*C103 -> 0 | H103: =$F$27*'Oculto EC'!C103 -> 0 | I103: =$G$27 -> 679.3478261 | N103: 1 | O103: 0 | P103: =#REF!/#REF!*O103 ->  | Q103: =(#REF!/#REF!)-((#REF!/#REF!)*P103) ->  | R103: =#REF! ->  | S103: =U103*O103 ->  | T103: =R103*O103 ->  | U103: =#REF! ->  | AP103: 1 | AQ103: 0 | AR103: 1.00 | AS103: =(#REF!/#REF!)*AQ103 ->  | AT103: =(#REF!/#REF!)-((#REF!/#REF!)*AS103) ->  | AU103: =MIN(#REF!) ->  | AV103: =#REF!+((#REF!-#REF!)*AQ103) ->  | AW103: =AU103+((#REF!-AU103)*AQ103) ->  | AX103: =#REF! ->  | AY103: =#REF! ->  | AZ103: =#REF!*AQ103 ->  | BA103: =#REF!*AQ103 ->  | BB103: =#REF! ->  | BD103: 1 | BE103: 0 | BF103: 1.00 | BG103: =$P$26*BE103 -> 0 | BH103: =$P$27*BF103 -> 1,358.70 | BI103: =IF($Q$26<=$R$26,BE137,BG137) -> 0 | BJ103: =IF($Q$26<=$R$26,BF137,BH137) -> 1,388.89 | BL103: 1 | BM103: 0 | BN103: =$BT$28*BM103 -> 0 | BO103: =$BT$29+($BT$30*BN103) -> 0 | BP103: =$BP$27 -> 0 | BQ103: =$BQ$27*BM103 -> 0 | BR103: =$BP$27*BM103 -> 0 | BS103: =$BQ$27 -> 0 | BX103: 0.01 | BY103: 1 | BZ103: 1.00 | CA103: 0 | CB103: =($X$26/$Y$26)*CA103 -> 0 | CC103: =($X$26/$AA$26)*BZ103 -> 1,358.70 | CD103: =$AD$26 -> 1.0 | CE103: =$AE$26*CA103 -> 0 | CF103: =$AD$26*CA103 -> 0 | CG103: =$AE$26 -> 1357.7 | CH103: =$AE$26*BX103 -> 13.58 | CI103: =$AC$26-(LN(CH103)) -> 1,355.11 | CL103: 0.01 | CM103: 1 | CN103: 1.00 | CO103: 0 | CP103: =($AI$33/$AJ$33)*CO103 -> 0 | CQ103: =$AK$26/$AN$26-$AL$26/$AN$26*CP103 -> 1,358.70 | CR103: =$AQ$26 -> 689.2 | CS103: =$AR$26*CO103 -> 0 | CT103: =$AQ$26*CO103 -> 0 | CU103: =$AR$26 -> 684.5 | CX103: =$AK$48 -> 10.0 | CY103: =$AK$41*CO103 -> 0 | CZ103: =$AK$40*CO103 -> 0 | DA103: =$AM$48 -> 20.0
B104: 2 | C104: 0.05 | D104: =$D$37*C104 -> 69.44 | E104: =$B$30/$E$30-($C$30/$E$30*D104) -> 1,290.76 | F104: =$F$27 -> 694.4444444 | G104: 33.97 | H104: =$F$27*'Oculto EC'!C104 -> 34.72 | I104: =$G$27 -> 679.3478261 | J104: 0.28 | N104: 2 | O104: 0.05 | P104: =#REF!/#REF!*O104 ->  | Q104: =(#REF!/#REF!)-((#REF!/#REF!)*P104) ->  | R104: =#REF! ->  | S104: =U104*O104 ->  | T104: =R104*O104 ->  | U104: =#REF! ->  | V104: =#REF! ->  | W104: =#REF!*V104 ->  | X104: =(#REF!-(#REF!*W104)-(#REF!*#REF!))/(W104+#REF!) ->  | AP104: 2 | AQ104: 0.05 | AR104: 0.95 | AS104: =(#REF!/#REF!)*AQ104 ->  | AT104: =(#REF!/#REF!)-((#REF!/#REF!)*AS104) ->  | AU104: =MIN(#REF!) ->  | AV104: =#REF!+((#REF!-#REF!)*AQ104) ->  | AW104: =AU104+((#REF!-AU104)*AQ104) ->  | AX104: =#REF! ->  | AY104: =#REF! ->  | AZ104: =#REF!*AQ104 ->  | BA104: =#REF!*AQ104 ->  | BB104: =#REF! ->  | BD104: 2 | BE104: 0.05 | BF104: 0.95 | BG104: 69.44 | BH104: 1,290.76 | BI104: 69.44 | BJ104: 1,319.44 | BL104: 2 | BM104: 0.05 | BN104: =$BT$28*BM104 -> 0 | BO104: =$BT$29+($BT$30*BN104) -> 0 | BP104: =$BP$27 -> 0 | BQ104: =$BQ$27*BM104 -> 0 | BR104: =$BP$27*BM104 -> 0 | BS104: =$BQ$27 -> 0 | BT104: 0.28 | BX104: 0.1 | BY104: 2 | BZ104: 0.95 | CA104: 0.05 | CB104: 69.44 | CC104: 1,290.76 | CD104: 1.0 | CE104: 67.88 | CF104: 0.05 | CG104: 1357.7 | CH104: 135.77 | CI104: 1,352.81 | CL104: 0.1 | CM104: 2 | CN104: 0.95 | CO104: 0.05 | CP104: 69.44 | CQ104: 1,290.76 | CR104: 689.2 | CS104: 34.22 | CT104: 34.46 | CU104: 684.5 | CX104: 10.0 | CY104: 67.93 | CZ104: 69.44 | DA104: 20.0
B105: 3 | C105: 0.10 | D105: 138.89 | E105: 1,222.83 | F105: 694.4444444 | G105: 67.93 | H105: =$F$27*'Oculto EC'!C105 -> 69.44 | I105: 679.3478261 | J105: 0.36 | N105: 3 | O105: 0.10 | P105: =#REF!/#REF!*O105 ->  | Q105: =(#REF!/#REF!)-((#REF!/#REF!)*P105) ->  | R105: =#REF! ->  | U105: =#REF! ->  | V105: =V104+#REF! ->  | W105: =#REF!*V105 ->  | X105: =(#REF!-(#REF!*W105)-(#REF!*#REF!))/(W105+#REF!) ->  | AP105: 3 | AQ105: 0.10 | AR105: 0.90 | AS105: =(#REF!/#REF!)*AQ105 ->  | AT105: =(#REF!/#REF!)-((#REF!/#REF!)*AS105) ->  | AU105: =MIN(#REF!) ->  | AV105: =#REF!+((#REF!-#REF!)*AQ105) ->  | AW105: =AU105+((#REF!-AU105)*AQ105) ->  | AX105: =#REF! ->  | AY105: =#REF! ->  | AZ105: =#REF!*AQ105 ->  | BA105: =#REF!*AQ105 ->  | BB105: =#REF! ->  | BD105: 3 | BE105: 0.10 | BF105: 0.90 | BG105: 138.89 | BH105: 1,222.83 | BI105: 138.89 | BJ105: 1,250.00 | BL105: 3 | BM105: 0.10 | BN105: 0 | BO105: 0 | BP105: 0 | BQ105: 0 | BR105: 0 | BS105: 0 | BT105: 0.36 | BX105: 0.2 | BY105: 3 | BZ105: 0.90 | CA105: 0.10 | CB105: 138.89 | CC105: 1,222.83 | CD105: 1.0 | CE105: 135.77 | CF105: 0.10 | CG105: 1357.7 | CH105: 271.54 | CI105: 1,352.11 | CL105: 0.2 | CM105: 3 | CN105: 0.90 | CO105: 0.10 | CP105: 138.89 | CQ105: 1,222.83 | CR105: 689.2 | CS105: 68.45 | CT105: 68.92 | CU105: 684.5 | CX105: 10.0 | CY105: 135.87 | CZ105: 138.89 | DA105: 20.0
B106: 4 | C106: 0.15 | D106: 208.33 | E106: 1,154.89 | F106: 694.4444444 | G106: 101.90 | H106: =$F$27*'Oculto EC'!C106 -> 104.17 | I106: 679.3478261 | J106: 0.44 | N106: 4 | O106: 0.15 | P106: =#REF!/#REF!*O106 ->  | Q106: =(#REF!/#REF!)-((#REF!/#REF!)*P106) ->  | R106: =#REF! ->  | U106: =#REF! ->  | V106: =V105+#REF! ->  | W106: =#REF!*V106 ->  | X106: =(#REF!-(#REF!*W106)-(#REF!*#REF!))/(W106+#REF!) ->  | AP106: 4 | AQ106: 0.15 | AR106: 0.85 | AS106: =(#REF!/#REF!)*AQ106 ->  | AT106: =(#REF!/#REF!)-((#REF!/#REF!)*AS106) ->  | AU106: =MIN(#REF!) ->  | AV106: =#REF!+((#REF!-#REF!)*AQ106) ->  | AW106: =AU106+((#REF!-AU106)*AQ106) ->  | AX106: =#REF! ->  | AY106: =#REF! ->  | AZ106: =#REF!*AQ106 ->  | BA106: =#REF!*AQ106 ->  | BB106: =#REF! ->  | BD106: 4 | BE106: 0.15 | BF106: 0.85 | BG106: 208.33 | BH106: 1,154.89 | BI106: 208.33 | BJ106: 1,180.56 | BL106: 4 | BM106: 0.15 | BN106: 0 | BO106: 0 | BP106: 0 | BQ106: 0 | BR106: 0 | BS106: 0 | BT106: 0.44 | BX106: 0.3 | BY106: 4 | BZ106: 0.85 | CA106: 0.15 | CB106: 208.33 | CC106: 1,154.89 | CD106: 1.0 | CE106: 203.65 | CF106: 0.15 | CG106: 1357.7 | CH106: 407.31 | CI106: 1,351.71 | CL106: 0.3 | CM106: 4 | CN106: 0.85 | CO106: 0.15 | CP106: 208.33 | CQ106: 1,154.89 | CR106: 689.2 | CS106: 102.67 | CT106: 103.38 | CU106: 684.5 | CX106: 10.0 | CY106: 203.80 | CZ106: 208.33 | DA106: 20.0
B107: 5 | C107: 0.20 | D107: 277.78 | E107: 1,086.96 | F107: 694.4444444 | G107: 135.87 | H107: =$F$27*'Oculto EC'!C107 -> 138.89 | I107: 679.3478261 | J107: 0.52 | N107: 5 | O107: 0.20 | P107: =#REF!/#REF!*O107 ->  | Q107: =(#REF!/#REF!)-((#REF!/#REF!)*P107) ->  | R107: =#REF! ->  | U107: =#REF! ->  | V107: =V106+#REF! ->  | W107: =#REF!*V107 ->  | X107: =(#REF!-(#REF!*W107)-(#REF!*#REF!))/(W107+#REF!) ->  | AP107: 5 | AQ107: 0.20 | AR107: 0.80 | AS107: =(#REF!/#REF!)*AQ107 ->  | AT107: =(#REF!/#REF!)-((#REF!/#REF!)*AS107) ->  | AU107: =MIN(#REF!) ->  | AV107: =#REF!+((#REF!-#REF!)*AQ107) ->  | AW107: =AU107+((#REF!-AU107)*AQ107) ->  | AX107: =#REF! ->  | AY107: =#REF! ->  | AZ107: =#REF!*AQ107 ->  | BA107: =#REF!*AQ107 ->  | BB107: =#REF! ->  | BD107: 5 | BE107: 0.20 | BF107: 0.80 | BG107: 277.78 | BH107: 1,086.96 | BI107: 277.78 | BJ107: 1,111.11 | BL107: 5 | BM107: 0.20 | BN107: 0 | BO107: 0 | BP107: 0 | BQ107: 0 | BR107: 0 | BS107: 0 | BT107: 0.52 | BX107: 0.4 | BY107: 5 | BZ107: 0.80 | CA107: 0.20 | CB107: 277.78 | CC107: 1,086.96 | CD107: 1.0 | CE107: 271.54 | CF107: 0.20 | CG107: 1357.7 | CH107: 543.08 | CI107: 1,351.42 | CL107: 0.4 | CM107: 5 | CN107: 0.80 | CO107: 0.20 | CP107: 277.78 | CQ107: 1,086.96 | CR107: 689.2 | CS107: 136.89 | CT107: 137.84 | CU107: 684.5 | CX107: 10.0 | CY107: 271.74 | CZ107: 277.78 | DA107: 20.0
B108: 6 | C108: 0.25 | D108: 347.22 | E108: 1,019.02 | F108: 694.4444444 | G108: 169.84 | H108: =$F$27*'Oculto EC'!C108 -> 173.61 | I108: 679.3478261 | J108: 0.6 | N108: 6 | O108: 0.25 | P108: =#REF!/#REF!*O108 ->  | Q108: =(#REF!/#REF!)-((#REF!/#REF!)*P108) ->  | R108: =#REF! ->  | U108: =#REF! ->  | V108: =V107+#REF! ->  | W108: =#REF!*V108 ->  | X108: =(#REF!-(#REF!*W108)-(#REF!*#REF!))/(W108+#REF!) ->  | AP108: 6 | AQ108: 0.25 | AR108: 0.75 | AS108: =(#REF!/#REF!)*AQ108 ->  | AT108: =(#REF!/#REF!)-((#REF!/#REF!)*AS108) ->  | AU108: =MIN(#REF!) ->  | AV108: =#REF!+((#REF!-#REF!)*AQ108) ->  | AW108: =AU108+((#REF!-AU108)*AQ108) ->  | AX108: =#REF! ->  | AY108: =#REF! ->  | AZ108: =#REF!*AQ108 ->  | BA108: =#REF!*AQ108 ->  | BB108: =#REF! ->  | BD108: 6 | BE108: 0.25 | BF108: 0.75 | BG108: 347.22 | BH108: 1,019.02 | BI108: 347.22 | BJ108: 1,041.67 | BL108: 6 | BM108: 0.25 | BN108: 0 | BO108: 0 | BP108: 0 | BQ108: 0 | BR108: 0 | BS108: 0 | BT108: 0.6 | BX108: 0.5 | BY108: 6 | BZ108: 0.75 | CA108: 0.25 | CB108: 347.22 | CC108: 1,019.02 | CD108: 1.0 | CE108: 339.42 | CF108: 0.26 | CG108: 1357.7 | CH108: 678.85 | CI108: 1,351.20 | CL108: 0.5 | CM108: 6 | CN108: 0.75 | CO108: 0.25 | CP108: 347.22 | CQ108: 1,019.02 | CR108: 689.2 | CS108: 171.11 | CT108: 172.31 | CU108: 684.5 | CX108: 10.0 | CY108: 339.67 | CZ108: 347.22 | DA108: 20.0
B109: 7 | C109: 0.30 | D109: 416.67 | E109: 951.09 | F109: 694.4444444 | G109: 203.80 | H109: =$F$27*'Oculto EC'!C109 -> 208.33 | I109: 679.3478261 | J109: 0.68 | N109: 7 | O109: 0.30 | P109: =#REF!/#REF!*O109 ->  | Q109: =(#REF!/#REF!)-((#REF!/#REF!)*P109) ->  | R109: =#REF! ->  | U109: =#REF! ->  | V109: =V108+#REF! ->  | W109: =#REF!*V109 ->  | X109: =(#REF!-(#REF!*W109)-(#REF!*#REF!))/(W109+#REF!) ->  | AP109: 7 | AQ109: 0.30 | AR109: 0.70 | AS109: =(#REF!/#REF!)*AQ109 ->  | AT109: =(#REF!/#REF!)-((#REF!/#REF!)*AS109) ->  | AU109: =MIN(#REF!) ->  | AV109: =#REF!+((#REF!-#REF!)*AQ109) ->  | AW109: =AU109+((#REF!-AU109)*AQ109) ->  | AX109: =#REF! ->  | AY109: =#REF! ->  | AZ109: =#REF!*AQ109 ->  | BA109: =#REF!*AQ109 ->  | BB109: =#REF! ->  | BD109: 7 | BE109: 0.30 | BF109: 0.70 | BG109: 416.67 | BH109: 951.09 | BI109: 416.67 | BJ109: 972.22 | BL109: 7 | BM109: 0.30 | BN109: 0 | BO109: 0 | BP109: 0 | BQ109: 0 | BR109: 0 | BS109: 0 | BT109: 0.68 | BU109: =$BP$27*BT109 -> 0 | BV109: =($BQ$28/(BU109^($BP$26)))^(1/$BQ$26) ->  | BX109: 0.6 | BY109: 7 | BZ109: 0.70 | CA109: 0.30 | CB109: 416.67 | CC109: 951.09 | CD109: 1.0 | CE109: 407.31 | CF109: 0.31 | CG109: 1357.7 | CH109: 814.62 | CI109: 1,351.01 | CL109: 0.6 | CM109: 7 | CN109: 0.70 | CO109: 0.30 | CP109: 416.67 | CQ109: 951.09 | CR109: 689.2 | CS109: 205.34 | CT109: 206.77 | CU109: 684.5 | CX109: 10.0 | CY109: 407.61 | CZ109: 416.67 | DA109: 20.0
B110: 8 | C110: 0.35 | D110: 486.11 | E110: 883.15 | F110: 694.4444444 | G110: 237.77 | H110: =$F$27*'Oculto EC'!C110 -> 243.06 | I110: 679.3478261 | J110: 0.76 | K110: =$F$27*J110 -> 527.78 | L110: =($G$28/(K110^($F$26)))^(1/$G$26) -> 893.88 | N110: 8 | O110: 0.35 | P110: =#REF!/#REF!*O110 ->  | Q110: =(#REF!/#REF!)-((#REF!/#REF!)*P110) ->  | R110: =#REF! ->  | U110: =#REF! ->  | V110: =V109+#REF! ->  | W110: =#REF!*V110 ->  | X110: =(#REF!-(#REF!*W110)-(#REF!*#REF!))/(W110+#REF!) ->  | AP110: 8 | AQ110: 0.35 | AR110: 0.65 | AS110: =(#REF!/#REF!)*AQ110 ->  | AT110: =(#REF!/#REF!)-((#REF!/#REF!)*AS110) ->  | AU110: =MIN(#REF!) ->  | AV110: =#REF!+((#REF!-#REF!)*AQ110) ->  | AW110: =AU110+((#REF!-AU110)*AQ110) ->  | AX110: =#REF! ->  | AY110: =#REF! ->  | AZ110: =#REF!*AQ110 ->  | BA110: =#REF!*AQ110 ->  | BB110: =#REF! ->  | BD110: 8 | BE110: 0.35 | BF110: 0.65 | BG110: 486.11 | BH110: 883.15 | BI110: 486.11 | BJ110: 902.78 | BL110: 8 | BM110: 0.35 | BN110: 0 | BO110: 0 | BP110: 0 | BQ110: 0 | BR110: 0 | BS110: 0 | BT110: 0.76 | BU110: 0 | BX110: 0.7 | BY110: 8 | BZ110: 0.65 | CA110: 0.35 | CB110: 486.11 | CC110: 883.15 | CD110: 1.0 | CE110: 475.19 | CF110: 0.36 | CG110: 1357.7 | CH110: 950.39 | CI110: 1,350.86 | CL110: 0.7 | CM110: 8 | CN110: 0.65 | CO110: 0.35 | CP110: 486.11 | CQ110: 883.15 | CR110: 689.2 | CS110: 239.56 | CT110: 241.23 | CU110: 684.5 | CV110: =$AQ$26*CL110+1.5*1 -> 483.96 | CW110: =$AM$48+($AI$46/((CV110-$AK$48)^$AJ$46))^(1/$AL$46) -> 972.23 | CX110: 10.0 | CY110: 475.54 | CZ110: 486.11 | DA110: 20.0
B111: 9 | C111: 0.40 | D111: 555.56 | E111: 815.22 | F111: 694.4444444 | G111: 271.74 | H111: =$F$27*'Oculto EC'!C111 -> 277.78 | I111: 679.3478261 | J111: 0.84 | K111: 583.33 | L111: 808.75 | N111: 9 | O111: 0.40 | P111: =#REF!/#REF!*O111 ->  | Q111: =(#REF!/#REF!)-((#REF!/#REF!)*P111) ->  | R111: =#REF! ->  | U111: =#REF! ->  | V111: =V110+#REF! ->  | W111: =#REF!*V111 ->  | X111: =(#REF!-(#REF!*W111)-(#REF!*#REF!))/(W111+#REF!) ->  | AP111: 9 | AQ111: 0.40 | AR111: 0.60 | AS111: =(#REF!/#REF!)*AQ111 ->  | AT111: =(#REF!/#REF!)-((#REF!/#REF!)*AS111) ->  | AU111: =MIN(#REF!) ->  | AV111: =#REF!+((#REF!-#REF!)*AQ111) ->  | AW111: =AU111+((#REF!-AU111)*AQ111) ->  | AX111: =#REF! ->  | AY111: =#REF! ->  | AZ111: =#REF!*AQ111 ->  | BA111: =#REF!*AQ111 ->  | BB111: =#REF! ->  | BD111: 9 | BE111: 0.40 | BF111: 0.60 | BG111: 555.56 | BH111: 815.22 | BI111: 555.56 | BJ111: 833.33 | BL111: 9 | BM111: 0.40 | BN111: 0 | BO111: 0 | BP111: 0 | BQ111: 0 | BR111: 0 | BS111: 0 | BT111: 0.84 | BU111: 0 | BX111: 0.8 | BY111: 9 | BZ111: 0.60 | CA111: 0.40 | CB111: 555.56 | CC111: 815.22 | CD111: 1.0 | CE111: 543.08 | CF111: 0.41 | CG111: 1357.7 | CH111: 1,086.16 | CI111: 1,350.73 | CL111: 0.8 | CM111: 9 | CN111: 0.60 | CO111: 0.40 | CP111: 555.56 | CQ111: 815.22 | CR111: 689.2 | CS111: 273.78 | CT111: 275.69 | CU111: 684.5 | CV111: =$AQ$26*CL111 -> 551.38 | CW111: 853.64 | CX111: 10.0 | CY111: 543.48 | CZ111: 555.56 | DA111: 20.0
B112: 10 | C112: 0.45 | D112: 625.00 | E112: 747.28 | F112: 694.4444444 | G112: 305.71 | H112: =$F$27*'Oculto EC'!C112 -> 312.50 | I112: 679.3478261 | J112: 0.92 | K112: 638.89 | L112: 738.42 | N112: 10 | O112: 0.45 | P112: =#REF!/#REF!*O112 ->  | Q112: =(#REF!/#REF!)-((#REF!/#REF!)*P112) ->  | R112: =#REF! ->  | U112: =#REF! ->  | V112: =V111+#REF! ->  | W112: =#REF!*V112 ->  | X112: =(#REF!-(#REF!*W112)-(#REF!*#REF!))/(W112+#REF!) ->  | AP112: 10 | AQ112: 0.45 | AR112: 0.55 | AS112: =(#REF!/#REF!)*AQ112 ->  | AT112: =(#REF!/#REF!)-((#REF!/#REF!)*AS112) ->  | AU112: =MIN(#REF!) ->  | AV112: =#REF!+((#REF!-#REF!)*AQ112) ->  | AW112: =AU112+((#REF!-AU112)*AQ112) ->  | AX112: =#REF! ->  | AY112: =#REF! ->  | AZ112: =#REF!*AQ112 ->  | BA112: =#REF!*AQ112 ->  | BB112: =#REF! ->  | BD112: 10 | BE112: 0.45 | BF112: 0.55 | BG112: 625.00 | BH112: 747.28 | BI112: 625.00 | BJ112: 763.89 | BL112: 10 | BM112: 0.45 | BN112: 0 | BO112: 0 | BP112: 0 | BQ112: 0 | BR112: 0 | BS112: 0 | BT112: 0.92 | BU112: 0 | BX112: 0.9 | BY112: 10 | BZ112: 0.55 | CA112: 0.45 | CB112: 625.00 | CC112: 747.28 | CD112: 1.0 | CE112: 610.96 | CF112: 0.46 | CG112: 1357.7 | CH112: 1,221.93 | CI112: 1,350.61 | CL112: 0.9 | CM112: 10 | CN112: 0.55 | CO112: 0.45 | CP112: 625.00 | CQ112: 747.28 | CR112: 689.2 | CS112: 308.01 | CT112: 310.15 | CU112: 684.5 | CV112: 620.30 | CW112: 759.49 | CX112: 10.0 | CY112: 611.41 | CZ112: 625.00 | DA112: 20.0
B113: 11 | C113: 0.50 | D113: 694.44 | E113: 679.35 | F113: 694.4444444 | G113: 339.67 | H113: =$F$27*'Oculto EC'!C113 -> 347.22 | I113: 679.3478261 | J113: 1 | K113: =$F$27*J113 -> 694.44 | L113: 679.35 | N113: 11 | O113: 0.50 | P113: =#REF!/#REF!*O113 ->  | Q113: =(#REF!/#REF!)-((#REF!/#REF!)*P113) ->  | R113: =#REF! ->  | U113: =#REF! ->  | V113: 1 | W113: =Q128 -> 54.00 | X113: =(#REF!-(#REF!*W113)-(#REF!*#REF!))/(W113+#REF!) ->  | AP113: 11 | AQ113: 0.50 | AR113: 0.50 | AS113: =(#REF!/#REF!)*AQ113 ->  | AT113: =(#REF!/#REF!)-((#REF!/#REF!)*AS113) ->  | AU113: =MIN(#REF!) ->  | AV113: =#REF!+((#REF!-#REF!)*AQ113) ->  | AW113: =AU113+((#REF!-AU113)*AQ113) ->  | AX113: =#REF! ->  | AY113: =#REF! ->  | AZ113: =#REF!*AQ113 ->  | BA113: =#REF!*AQ113 ->  | BB113: =#REF! ->  | BD113: 11 | BE113: 0.50 | BF113: 0.50 | BG113: 694.44 | BH113: 679.35 | BI113: 694.44 | BJ113: 694.44 | BL113: 11 | BM113: 0.50 | BN113: 0 | BO113: 0 | BP113: 0 | BQ113: 0 | BR113: 0 | BS113: 0 | BT113: 1 | BU113: 0 | BX113: 1 | BY113: 11 | BZ113: 0.50 | CA113: 0.50 | CB113: 694.44 | CC113: 679.35 | CD113: 1.0 | CE113: 678.85 | CF113: 0.51 | CG113: 1357.7 | CH113: 1,357.70 | CI113: 1,350.50 | CL113: 1 | CM113: 11 | CN113: 0.50 | CO113: 0.50 | CP113: 694.44 | CQ113: 679.35 | CR113: 689.2 | CS113: 342.23 | CT113: 344.61 | CU113: 684.5 | CV113: 689.22 | CW113: 684.46 | CX113: 10.0 | CY113: 679.35 | CZ113: 694.44 | DA113: 20.0
B114: 12 | C114: 0.55 | D114: 763.89 | E114: 611.41 | F114: 694.4444444 | G114: 373.64 | H114: =$F$27*'Oculto EC'!C114 -> 381.94 | I114: 679.3478261 | J114: 1.08 | K114: =$F$27*J114 -> 750.00 | L114: 629.03 | N114: 12 | O114: 0.55 | P114: =#REF!/#REF!*O114 ->  | Q114: =(#REF!/#REF!)-((#REF!/#REF!)*P114) ->  | R114: =#REF! ->  | U114: =#REF! ->  | V114: =V113+#REF! ->  | W114: =#REF!*V114 ->  | X114: =(#REF!-(#REF!*W114)-(#REF!*#REF!))/(W114+#REF!) ->  | AP114: 12 | AQ114: 0.55 | AR114: 0.45 | AS114: =(#REF!/#REF!)*AQ114 ->  | AT114: =(#REF!/#REF!)-((#REF!/#REF!)*AS114) ->  | AU114: =MIN(#REF!) ->  | AV114: =#REF!+((#REF!-#REF!)*AQ114) ->  | AW114: =AU114+((#REF!-AU114)*AQ114) ->  | AX114: =#REF! ->  | AY114: =#REF! ->  | AZ114: =#REF!*AQ114 ->  | BA114: =#REF!*AQ114 ->  | BB114: =#REF! ->  | BD114: 12 | BE114: 0.55 | BF114: 0.45 | BG114: 763.89 | BH114: 611.41 | BI114: 763.89 | BJ114: 625.00 | BL114: 12 | BM114: 0.55 | BN114: 0 | BO114: 0 | BP114: 0 | BQ114: 0 | BR114: 0 | BS114: 0 | BT114: 1.08 | BU114: 0 | BX114: 1.1 | BY114: 12 | BZ114: 0.45 | CA114: 0.55 | CB114: 763.89 | CC114: 611.41 | CD114: 1.0 | CE114: 746.73 | CF114: 0.56 | CG114: 1357.7 | CH114: 1,493.47 | CI114: 1,350.41 | CL114: 1.1 | CM114: 12 | CN114: 0.45 | CO114: 0.55 | CP114: 763.89 | CQ114: 611.41 | CR114: 689.2 | CS114: 376.45 | CT114: 379.07 | CU114: 684.5 | CV114: 758.14 | CW114: 623.24 | CX114: 10.0 | CY114: 747.28 | CZ114: 763.89 | DA114: 20.0
B115: 13 | C115: 0.60 | D115: 833.33 | E115: 543.48 | F115: 694.4444444 | G115: 407.61 | H115: =$F$27*'Oculto EC'!C115 -> 416.67 | I115: 679.3478261 | J115: 1.16 | K115: 805.56 | L115: 585.64 | N115: 13 | O115: 0.60 | P115: =#REF!/#REF!*O115 ->  | Q115: =(#REF!/#REF!)-((#REF!/#REF!)*P115) ->  | R115: =#REF! ->  | U115: =#REF! ->  | V115: =V114+#REF! ->  | W115: =#REF!*V115 ->  | X115: =(#REF!-(#REF!*W115)-(#REF!*#REF!))/(W115+#REF!) ->  | AP115: 13 | AQ115: 0.60 | AR115: 0.40 | AS115: =(#REF!/#REF!)*AQ115 ->  | AT115: =(#REF!/#REF!)-((#REF!/#REF!)*AS115) ->  | AU115: =MIN(#REF!) ->  | AV115: =#REF!+((#REF!-#REF!)*AQ115) ->  | AW115: =AU115+((#REF!-AU115)*AQ115) ->  | AX115: =#REF! ->  | AY115: =#REF! ->  | AZ115: =#REF!*AQ115 ->  | BA115: =#REF!*AQ115 ->  | BB115: =#REF! ->  | BD115: 13 | BE115: 0.60 | BF115: 0.40 | BG115: 833.33 | BH115: 543.48 | BI115: 833.33 | BJ115: 555.56 | BL115: 13 | BM115: 0.60 | BN115: 0 | BO115: 0 | BP115: 0 | BQ115: 0 | BR115: 0 | BS115: 0 | BT115: 1.16 | BU115: 0 | BX115: 1.2 | BY115: 13 | BZ115: 0.40 | CA115: 0.60 | CB115: 833.33 | CC115: 543.48 | CD115: 1.0 | CE115: 814.62 | CF115: 0.61 | CG115: 1357.7 | CH115: 1,629.23 | CI115: 1,350.32 | CL115: 1.2 | CM115: 13 | CN115: 0.40 | CO115: 0.60 | CP115: 833.33 | CQ115: 543.48 | CR115: 689.2 | CS115: 410.67 | CT115: 413.53 | CU115: 684.5 | CV115: 827.07 | CW115: 572.36 | CX115: 10.0 | CY115: 815.22 | CZ115: 833.33 | DA115: 20.0
B116: 14 | C116: 0.65 | D116: 902.78 | E116: 475.54 | F116: 694.4444444 | G116: 441.58 | H116: =$F$27*'Oculto EC'!C116 -> 451.39 | I116: 679.3478261 | J116: 1.24 | K116: 861.11 | L116: 547.86 | N116: 14 | O116: 0.65 | P116: =#REF!/#REF!*O116 ->  | Q116: =(#REF!/#REF!)-((#REF!/#REF!)*P116) ->  | R116: =#REF! ->  | U116: =#REF! ->  | V116: =V115+#REF! ->  | W116: =#REF!*V116 ->  | X116: =(#REF!-(#REF!*W116)-(#REF!*#REF!))/(W116+#REF!) ->  | AP116: 14 | AQ116: 0.65 | AR116: 0.35 | AS116: =(#REF!/#REF!)*AQ116 ->  | AT116: =(#REF!/#REF!)-((#REF!/#REF!)*AS116) ->  | AU116: =MIN(#REF!) ->  | AV116: =#REF!+((#REF!-#REF!)*AQ116) ->  | AW116: =AU116+((#REF!-AU116)*AQ116) ->  | AX116: =#REF! ->  | AY116: =#REF! ->  | AZ116: =#REF!*AQ116 ->  | BA116: =#REF!*AQ116 ->  | BB116: =#REF! ->  | BD116: 14 | BE116: 0.65 | BF116: 0.35 | BG116: 902.78 | BH116: 475.54 | BI116: 902.78 | BJ116: 486.11 | BL116: 14 | BM116: 0.65 | BN116: 0 | BO116: 0 | BP116: 0 | BQ116: 0 | BR116: 0 | BS116: 0 | BT116: 1.24 | BU116: 0 | BX116: 1.3 | BY116: 14 | BZ116: 0.35 | CA116: 0.65 | CB116: 902.78 | CC116: 475.54 | CD116: 1.0 | CE116: 882.50 | CF116: 0.66 | CG116: 1357.7 | CH116: 1,765.00 | CI116: 1,350.24 | CL116: 1.3 | CM116: 14 | CN116: 0.35 | CO116: 0.65 | CP116: 902.78 | CQ116: 475.54 | CR116: 689.2 | CS116: 444.90 | CT116: 447.99 | CU116: 684.5 | CV116: 895.99 | CW116: 529.39 | CX116: 10.0 | CY116: 883.15 | CZ116: 902.78 | DA116: 20.0
B117: 15 | C117: 0.70 | D117: 972.22 | E117: 407.61 | F117: 694.4444444 | G117: 475.54 | H117: =$F$27*'Oculto EC'!C117 -> 486.11 | I117: 679.3478261 | J117: 1.32 | K117: 916.67 | L117: 514.66 | N117: 15 | O117: 0.70 | P117: =#REF!/#REF!*O117 ->  | Q117: =(#REF!/#REF!)-((#REF!/#REF!)*P117) ->  | R117: =#REF! ->  | U117: =#REF! ->  | V117: =V116+#REF! ->  | W117: =#REF!*V117 ->  | X117: =(#REF!-(#REF!*W117)-(#REF!*#REF!))/(W117+#REF!) ->  | AP117: 15 | AQ117: 0.70 | AR117: 0.30 | AS117: =(#REF!/#REF!)*AQ117 ->  | AT117: =(#REF!/#REF!)-((#REF!/#REF!)*AS117) ->  | AU117: =MIN(#REF!) ->  | AV117: =#REF!+((#REF!-#REF!)*AQ117) ->  | AW117: =AU117+((#REF!-AU117)*AQ117) ->  | AX117: =#REF! ->  | AY117: =#REF! ->  | AZ117: =#REF!*AQ117 ->  | BA117: =#REF!*AQ117 ->  | BB117: =#REF! ->  | BD117: 15 | BE117: 0.70 | BF117: 0.30 | BG117: 972.22 | BH117: 407.61 | BI117: 972.22 | BJ117: 416.67 | BL117: 15 | BM117: 0.70 | BN117: 0 | BO117: 0 | BP117: 0 | BQ117: 0 | BR117: 0 | BS117: 0 | BT117: 1.32 | BU117: 0 | BX117: 1.4 | BY117: 15 | BZ117: 0.30 | CA117: 0.70 | CB117: 972.22 | CC117: 407.61 | CD117: 1.0 | CE117: 950.39 | CF117: 0.72 | CG117: 1357.7 | CH117: 1,900.77 | CI117: 1,350.17 | CL117: 1.4 | CM117: 15 | CN117: 0.30 | CO117: 0.70 | CP117: 972.22 | CQ117: 407.61 | CR117: 689.2 | CS117: 479.12 | CT117: 482.46 | CU117: 684.5 | CV117: 964.91 | CW117: 492.62 | CX117: 10.0 | CY117: 951.09 | CZ117: 972.22 | DA117: 20.0
B118: 16 | C118: 0.75 | D118: 1,041.67 | E118: 339.67 | F118: 694.4444444 | G118: 509.51 | H118: =$F$27*'Oculto EC'!C118 -> 520.83 | I118: 679.3478261 | J118: 1.4 | K118: 972.22 | L118: 485.25 | N118: 16 | O118: 0.75 | P118: =#REF!/#REF!*O118 ->  | Q118: =(#REF!/#REF!)-((#REF!/#REF!)*P118) ->  | R118: =#REF! ->  | U118: =#REF! ->  | V118: =V117+#REF! ->  | W118: =#REF!*V118 ->  | X118: =(#REF!-(#REF!*W118)-(#REF!*#REF!))/(W118+#REF!) ->  | AP118: 16 | AQ118: 0.75 | AR118: 0.25 | AS118: =(#REF!/#REF!)*AQ118 ->  | AT118: =(#REF!/#REF!)-((#REF!/#REF!)*AS118) ->  | AU118: =MIN(#REF!) ->  | AV118: =#REF!+((#REF!-#REF!)*AQ118) ->  | AW118: =AU118+((#REF!-AU118)*AQ118) ->  | AX118: =#REF! ->  | AY118: =#REF! ->  | AZ118: =#REF!*AQ118 ->  | BA118: =#REF!*AQ118 ->  | BB118: =#REF! ->  | BD118: 16 | BE118: 0.75 | BF118: 0.25 | BG118: 1,041.67 | BH118: 339.67 | BI118: 1,041.67 | BJ118: 347.22 | BL118: 16 | BM118: 0.75 | BN118: 0 | BO118: 0 | BP118: 0 | BQ118: 0 | BR118: 0 | BS118: 0 | BT118: 1.4 | BU118: 0 | BX118: 1.5 | BY118: 16 | BZ118: 0.25 | CA118: 0.75 | CB118: 1,041.67 | CC118: 339.67 | CD118: 1.0 | CE118: 1,018.27 | CF118: 0.77 | CG118: 1357.7 | CH118: 2,036.54 | CI118: 1,350.10 | CL118: 1.5 | CM118: 16 | CN118: 0.25 | CO118: 0.75 | CP118: 1,041.67 | CQ118: 339.67 | CR118: 689.2 | CS118: 513.34 | CT118: 516.92 | CU118: 684.5 | CV118: 1,033.83 | CW118: 460.81 | CX118: 10.0 | CY118: 1,019.02 | CZ118: 1,041.67 | DA118: 20.0
B119: 17 | C119: 0.80 | D119: 1,111.11 | E119: 271.74 | F119: 694.4444444 | G119: 543.48 | H119: =$F$27*'Oculto EC'!C119 -> 555.56 | I119: 679.3478261 | J119: 1.48 | K119: 1,027.78 | L119: 459.02 | N119: 17 | O119: 0.80 | P119: =#REF!/#REF!*O119 ->  | Q119: =(#REF!/#REF!)-((#REF!/#REF!)*P119) ->  | R119: =#REF! ->  | U119: =#REF! ->  | V119: =V118+#REF! ->  | W119: =#REF!*V119 ->  | X119: =(#REF!-(#REF!*W119)-(#REF!*#REF!))/(W119+#REF!) ->  | AP119: 17 | AQ119: 0.80 | AR119: 0.20 | AS119: =(#REF!/#REF!)*AQ119 ->  | AT119: =(#REF!/#REF!)-((#REF!/#REF!)*AS119) ->  | AU119: =MIN(#REF!) ->  | AV119: =#REF!+((#REF!-#REF!)*AQ119) ->  | AW119: =AU119+((#REF!-AU119)*AQ119) ->  | AX119: =#REF! ->  | AY119: =#REF! ->  | AZ119: =#REF!*AQ119 ->  | BA119: =#REF!*AQ119 ->  | BB119: =#REF! ->  | BD119: 17 | BE119: 0.80 | BF119: 0.20 | BG119: 1,111.11 | BH119: 271.74 | BI119: 1,111.11 | BJ119: 277.78 | BL119: 17 | BM119: 0.80 | BN119: 0 | BO119: 0 | BP119: 0 | BQ119: 0 | BR119: 0 | BS119: 0 | BT119: 1.48 | BU119: 0 | BX119: 1.6 | BY119: 17 | BZ119: 0.20 | CA119: 0.80 | CB119: 1,111.11 | CC119: 271.74 | CD119: 1.0 | CE119: 1,086.16 | CF119: 0.82 | CG119: 1357.7 | CH119: 2,172.31 | CI119: 1,350.03 | CL119: 1.6 | CM119: 17 | CN119: 0.20 | CO119: 0.80 | CP119: 1,111.11 | CQ119: 271.74 | CR119: 689.2 | CS119: 547.57 | CT119: 551.38 | CU119: 684.5 | CV119: 1,102.76 | CW119: 433.01 | CX119: 10.0 | CY119: 1,086.96 | CZ119: 1,111.11 | DA119: 20.0
B120: 18 | C120: 0.85 | D120: 1,180.56 | E120: 203.80 | F120: 694.4444444 | G120: 577.45 | H120: =$F$27*'Oculto EC'!C120 -> 590.28 | I120: 679.3478261 | J120: 1.56 | K120: 1,083.33 | L120: 435.48 | N120: 18 | O120: 0.85 | P120: =#REF!/#REF!*O120 ->  | Q120: =(#REF!/#REF!)-((#REF!/#REF!)*P120) ->  | R120: =#REF! ->  | U120: =#REF! ->  | V120: =V119+#REF! ->  | W120: =#REF!*V120 ->  | X120: =(#REF!-(#REF!*W120)-(#REF!*#REF!))/(W120+#REF!) ->  | AP120: 18 | AQ120: 0.85 | AR120: 0.15 | AS120: =(#REF!/#REF!)*AQ120 ->  | AT120: =(#REF!/#REF!)-((#REF!/#REF!)*AS120) ->  | AU120: =MIN(#REF!) ->  | AV120: =#REF!+((#REF!-#REF!)*AQ120) ->  | AW120: =AU120+((#REF!-AU120)*AQ120) ->  | AX120: =#REF! ->  | AY120: =#REF! ->  | AZ120: =#REF!*AQ120 ->  | BA120: =#REF!*AQ120 ->  | BB120: =#REF! ->  | BD120: 18 | BE120: 0.85 | BF120: 0.15 | BG120: 1,180.56 | BH120: 203.80 | BI120: 1,180.56 | BJ120: 208.33 | BL120: 18 | BM120: 0.85 | BN120: 0 | BO120: 0 | BP120: 0 | BQ120: 0 | BR120: 0 | BS120: 0 | BT120: 1.56 | BU120: 0 | BX120: 1.7 | BY120: 18 | BZ120: 0.15 | CA120: 0.85 | CB120: 1,180.56 | CC120: 203.80 | CD120: 1.0 | CE120: 1,154.04 | CF120: 0.87 | CG120: 1357.7 | CH120: 2,308.08 | CI120: 1,349.97 | CL120: 1.7 | CM120: 18 | CN120: 0.15 | CO120: 0.85 | CP120: 1,180.56 | CQ120: 203.80 | CR120: 689.2 | CS120: 581.79 | CT120: 585.84 | CU120: 684.5 | CV120: 1,171.68 | CW120: 408.50 | CX120: 10.0 | CY120: 1,154.89 | CZ120: 1,180.56 | DA120: 20.0
B121: 19 | C121: 0.90 | D121: 1,250.00 | E121: 135.87 | F121: 694.4444444 | G121: 611.41 | H121: =$F$27*'Oculto EC'!C121 -> 625.00 | I121: 679.3478261 | J121: 1.64 | K121: 1,138.89 | L121: 414.24 | N121: 19 | O121: 0.90 | P121: =#REF!/#REF!*O121 ->  | Q121: =(#REF!/#REF!)-((#REF!/#REF!)*P121) ->  | R121: =#REF! ->  | U121: =#REF! ->  | V121: =V120+#REF! ->  | W121: =#REF!*V121 ->  | X121: =(#REF!-(#REF!*W121)-(#REF!*#REF!))/(W121+#REF!) ->  | AP121: 19 | AQ121: 0.90 | AR121: 0.10 | AS121: =(#REF!/#REF!)*AQ121 ->  | AT121: =(#REF!/#REF!)-((#REF!/#REF!)*AS121) ->  | AU121: =MIN(#REF!) ->  | AV121: =#REF!+((#REF!-#REF!)*AQ121) ->  | AW121: =AU121+((#REF!-AU121)*AQ121) ->  | AX121: =#REF! ->  | AY121: =#REF! ->  | AZ121: =#REF!*AQ121 ->  | BA121: =#REF!*AQ121 ->  | BB121: =#REF! ->  | BD121: 19 | BE121: 0.90 | BF121: 0.10 | BG121: 1,250.00 | BH121: 135.87 | BI121: 1,250.00 | BJ121: 138.89 | BL121: 19 | BM121: 0.90 | BN121: 0 | BO121: 0 | BP121: 0 | BQ121: 0 | BR121: 0 | BS121: 0 | BT121: 1.64 | BU121: 0 | BX121: 1.8 | BY121: 19 | BZ121: 0.10 | CA121: 0.90 | CB121: 1,250.00 | CC121: 135.87 | CD121: 1.0 | CE121: 1,221.93 | CF121: 0.92 | CG121: 1357.7 | CH121: 2,443.85 | CI121: 1,349.92 | CL121: 1.8 | CM121: 19 | CN121: 0.10 | CO121: 0.90 | CP121: 1,250.00 | CQ121: 135.87 | CR121: 689.2 | CS121: 616.01 | CT121: 620.30 | CU121: 684.5 | CV121: 1,240.60 | CW121: 386.74 | CX121: 10.0 | CY121: 1,222.83 | CZ121: 1,250.00 | DA121: 20.0
B122: 20 | C122: 0.95 | D122: 1,319.44 | E122: 67.93 | F122: 694.4444444 | G122: 645.38 | H122: =$F$27*'Oculto EC'!C122 -> 659.72 | I122: 679.3478261 | J122: 1.72 | K122: 1,194.44 | L122: 394.97 | N122: 20 | O122: 0.95 | P122: =#REF!/#REF!*O122 ->  | Q122: =(#REF!/#REF!)-((#REF!/#REF!)*P122) ->  | R122: =#REF! ->  | U122: =#REF! ->  | V122: =V121+#REF! ->  | W122: =#REF!*V122 ->  | X122: =(#REF!-(#REF!*W122)-(#REF!*#REF!))/(W122+#REF!) ->  | AP122: 20 | AQ122: 0.95 | AR122: 0.05 | AS122: =(#REF!/#REF!)*AQ122 ->  | AT122: =(#REF!/#REF!)-((#REF!/#REF!)*AS122) ->  | AU122: =MIN(#REF!) ->  | AV122: =#REF!+((#REF!-#REF!)*AQ122) ->  | AW122: =AU122+((#REF!-AU122)*AQ122) ->  | AX122: =#REF! ->  | AY122: =#REF! ->  | AZ122: =#REF!*AQ122 ->  | BA122: =#REF!*AQ122 ->  | BB122: =#REF! ->  | BD122: 20 | BE122: 0.95 | BF122: 0.05 | BG122: 1,319.44 | BH122: 67.93 | BI122: 1,319.44 | BJ122: 69.44 | BL122: 20 | BM122: 0.95 | BN122: 0 | BO122: 0 | BP122: 0 | BQ122: 0 | BR122: 0 | BS122: 0 | BT122: 1.72 | BU122: 0 | BX122: 1.9 | BY122: 20 | BZ122: 0.05 | CA122: 0.95 | CB122: 1,319.44 | CC122: 67.93 | CD122: 1.0 | CE122: 1,289.81 | CF122: 0.97 | CG122: 1357.7 | CH122: 2,579.62 | CI122: 1,349.86 | CL122: 1.9 | CM122: 20 | CN122: 0.05 | CO122: 0.95 | CP122: 1,319.44 | CQ122: 67.93 | CR122: 689.2 | CS122: 650.23 | CT122: 654.76 | CU122: 684.5 | CV122: 1,309.52 | CW122: 367.29 | CX122: 10.0 | CY122: 1,290.76 | CZ122: 1,319.44 | DA122: 20.0
B123: 21 | C123: 1.00 | D123: 1,388.89 | E123: 0 | F123: 694.4444444 | G123: =$G$27*C123 -> 679.35 | H123: =$F$27*'Oculto EC'!C123 -> 694.44 | I123: 679.3478261 | J123: 1.8 | K123: 1,250.00 | L123: 377.42 | N123: 21 | O123: 1.00 | P123: =#REF!/#REF!*O123 ->  | Q123: =(#REF!/#REF!)-((#REF!/#REF!)*P123) ->  | R123: =#REF! ->  | U123: =#REF! ->  | V123: =V122+#REF! ->  | W123: =#REF!*V123 ->  | X123: =(#REF!-(#REF!*W123)-(#REF!*#REF!))/(W123+#REF!) ->  | AP123: 21 | AQ123: 1.00 | AR123: 0 | AS123: =(#REF!/#REF!)*AQ123 ->  | AT123: =(#REF!/#REF!)-((#REF!/#REF!)*AS123) ->  | AU123: =MIN(#REF!) ->  | AV123: =#REF!+((#REF!-#REF!)*AQ123) ->  | AW123: =AU123+((#REF!-AU123)*AQ123) ->  | AX123: =#REF! ->  | AY123: =#REF! ->  | AZ123: =#REF!*AQ123 ->  | BA123: =#REF!*AQ123 ->  | BB123: =#REF! ->  | BD123: 21 | BE123: 1.00 | BF123: 0 | BG123: 1,388.89 | BH123: 0 | BI123: 1,388.89 | BJ123: 0 | BL123: 21 | BM123: 1.00 | BN123: 0 | BO123: 0 | BP123: 0 | BQ123: 0 | BR123: 0 | BS123: 0 | BT123: 1.8 | BU123: 0 | BX123: 2 | BY123: 21 | BZ123: 0 | CA123: 1.00 | CB123: 1,388.89 | CC123: 0 | CD123: 1.0 | CE123: 1,357.70 | CF123: 1.02 | CG123: 1357.7 | CH123: 2,715.39 | CI123: 1,349.81 | CL123: 2 | CM123: 21 | CN123: 0 | CO123: 1.00 | CP123: 1,388.89 | CQ123: 0 | CR123: 689.2 | CS123: 684.46 | CT123: 689.22 | CU123: 684.5 | CV123: 1,378.44 | CW123: 349.80 | CX123: 10.0 | CY123: 1,358.70 | CZ123: 1,388.89 | DA123: 20.0
F125: x1 | G125: x2 | P125: m | Q125: 300.00 | R125: k | V125: =1/10 -> 0.1 | AR125: m | AT125: a | AU125: 1.0 | BE125: m | BF125: =#REF! ->  | BG125: p1<p2 | BP125: x1 | BQ125: x2 | BS125: m | BZ125: m | CA125: p1 | CB125: x1 | CC125: p2 | CD125: x2 | CE125: k | CF125: x1* | CG125: x2* | CN125: m | CO125: p1 | CP125: x1 | CQ125: p2 | CR125: x2 | CS125: k | CT125: x1* | CU125: x2*
F126: =Consumidor!E109 -> 0 | G126: =Consumidor!G109 -> 0 | P126: p1 | Q126: 3 | R126: =(Q128*Q129)+(R130*Q128)+(R128*Q129)+(R128*R130) -> 1,352.00 | S126: x1x2 | T126: bx1 | U126: ax2 | V126: ab | AP126: P1 transformado | AQ126: =AS126*AU125 -> 0 | AR126: p1 | AT126: b | BE126: X1 | BF126: =BF125/BF129 ->  | BG126: =BF129 ->  | BH126: =BF133*BF130 ->  | BO126: alfa | BR126: beta | BS126: p1 | BZ126: =#REF! ->  | CA126: =#REF! ->  | CB126: =#REF! ->  | CC126: =#REF! ->  | CD126: =$AC$26-(LN(CB126)) ->  | CE126: =LN(CF126)+CG126 ->  | CF126: =CC126/CA126 ->  | CG126: =(BZ126/CC126)-1 ->  | CN126: =CL133 ->  | CO126: =CM133 ->  | CP126: =CN133 ->  | CQ126: =CO133 ->  | CR126: =CP133 ->  | CS126: =CL146 ->  | CT126: =CN146 ->  | CU126: =CP146 -> 
F127: =Consumidor!E109*(Consumidor!D105/Consumidor!E105) ->  | G127: =Consumidor!G109*(Consumidor!D105/Consumidor!F105) ->  | P127: p2 | Q127: 6 | R127: a | AP127: P2 transformado | AQ127: =AS127*AU126 -> 0 | AR127: p2 | BE127: X2 | BF127: =BF125/BF130 ->  | BG127: =BF125/BG126 ->  | BH127: =BF125/BH126 ->  | BO127: equilibrio | BP127: =(BP126/(BP126+BQ126))*(BT125/BT126) ->  | BQ127: =(BQ126/(BP126+BQ126))*(BT125/BT127) ->  | BR127: equilibrio | BS127: p2 | CT127: =CT126*2 -> 
F128: v=K | G128: =(F127^(F126))*(G127^(G126)) ->  | P128: x1* | Q128: =(Q130*(Q127))-R128 -> 54.00 | R128: -2 | AR128: x1 | AS128: =(AS125*AU125)/((AS126*AU125)+(AS127*AU126)) ->  | BE128: K | BF128: =BH131 ->  | BG128: x1 | BH128: x2 | BQ128: =(BP127^(BP126))*(BQ127^(BQ126)) ->  | BS128: maxx1 | BT128: =BT125/BT126 ->  | CA128: max X1 | CB128: =BZ126/CA126 -> 
B129: m | C129: p1 | D129: x1 | E129: p2 | F129: x2 | P129: x2* | Q129: =(Q130*Q126)-R130 -> 23.00 | R129: b | AR129: x2 | AS129: =(AS125*AU126)/((AS126*AU125)+(AS127*AU126)) ->  | BE129: P1 | BF129: =#REF! ->  | BG129: =BF125/BF129 ->  | BH129: =BF125/BF130 ->  | BS129: maxx2 | BT129: =BT125/BT127 ->  | CA129: max X2 | CB129: =BZ126/CC126 -> 
B130: =#REF! ->  | C130: =#REF! ->  | D130: =D143 ->  | E130: =#REF! ->  | F130: =B135 ->  | P130: lamda | Q130: =(Q125+(Q126*R128)+(Q127*R130))/(2*(Q126*Q127)) -> 8.67 | R130: 3 | BE130: P2 | BF130: =#REF! ->  | BG130: =BF125/BF129 ->  | BH130: =BF125/(BF130*(BF133)) ->  | BT130: =BT126/BT127*-1 -> 
B131: =D131+F131 ->  | D131: =D130*C130 ->  | F131: =F130*E130 ->  | BE131: X1* | BF131: =IF(BG126<=BH126,BG123,0) ->  | BH131: =IF(BG126<BH126,BH130,BH129) ->  | CL131: RECTA PRESUPUESTAL
BE132: X2* | BF132: =IF(BG126>BH126,BH103,0) ->  | CL132: m | CM132: p1 | CN132: x1 | CO132: p2 | CP132: x2
B133: PARÁMETROS DE LA RECTA PRESUPUESTAL | BE133: Rel. 1 a: | BF133: =#REF! ->  | CL133: =#REF! ->  | CM133: =#REF! ->  | CN133: =#REF! ->  | CO133: =#REF! ->  | CP133: =(CL133/CO133)-(CM133/CO133)*CN133 -> 
B134: x2 | C134: b0 | D134: b1 | E134: x1 | BF134: =#REF! ->  | CL134: Inserte los datos correspondientes
B135: =C135+(D135*E135) ->  | C135: =B130/E130 ->  | D135: =C130/E130*-1 ->  | E135: =D130 -> 
BE136: sip1<bp2 | BG136: si p1>p2 | CL136: PARÁMETROS DE LA RECTA PRESUPUESTAL
B137: Máxima cantidad de x1 | D137: =B130/C130 ->  | BE137: =$Q$27*BE103 -> 0 | BF137: =($Q$27*$P$33)-($P$33*BE137) -> 1,388.89 | BG137: =($R$27)-((1/$P$33)*BH137) -> 0 | BH137: =$R$27*BF103*$P$33 -> 1,358.70 | CL137: x2 | CM137: b0 | CN137: b1 | CO137: x1
B138: Máxima cantidad de x2 | D138: =B130/E130 ->  | BE138: 69.44 | BF138: 1,319.44 | BG138: 67.93 | BH138: 1,290.76 | CL138: =CM138+(CN138*CO138) ->  | CM138: =CL133/CO133 ->  | CN138: =CM133/CO133*-1 ->  | CO138: =CN133 -> 
B139: Precio relativo (<0) | D139: =(C130/E130)*(-1) ->  | BE139: 138.89 | BF139: 1,250.00 | BG139: 135.87 | BH139: 1,222.83
BE140: 208.33 | BF140: 1,180.56 | BG140: 203.80 | BH140: 1,154.89 | CL140: Máxima cantidad de x1 | CN140: =CL133/CM133 -> 
B141: PARÁMETROS DE FUNCIÓN COBB-DOUGLAS | BE141: 277.78 | BF141: 1,111.11 | BG141: 271.74 | BH141: 1,086.96 | CL141: Máxima cantidad de x2 | CN141: =CL133/CO133 -> 
B142: k | C142: a | D142: x1* | E142: 1-a | F142: x2* | BE142: 347.22 | BF142: 1,041.67 | BG142: 339.67 | BH142: 1,019.02 | CL142: Precio relativo (<0) | CN142: =(CM133/CO133)*(-1) -> 
B143: =D143^(C143)*F143^(E143) ->  | C143: =Consumidor!E109 -> 0 | D143: =F127 ->  | E143: =1-C143 -> 1.0 | F143: =G127 ->  | G143: =D143^(C143)*F143^(E143) ->  | BE143: 416.67 | BF143: 972.22 | BG143: 407.61 | BH143: 951.09
BE144: 486.11 | BF144: 902.78 | BG144: 475.54 | BH144: 883.15 | CL144: PARÁMETROS DE FUNCIÓN COBB-DOUGLAS
B145: determinante | C145: 0 | D145: =-C130 ->  | E145: =-E130 ->  | G145: Determinante | BE145: 555.56 | BF145: 833.33 | BG145: 543.48 | BH145: 815.22 | CL145: k=v | CM145: a | CN145: x1* | CO145: 1-a | CP145: x2*
C146: =-C130 ->  | D146: =(C143-1)*C143*D143^(C143-2)*F143^(E143) ->  | E146: =(1-C143)*C143*D143^(C143-1)*F143^(-C143) ->  | G146: =((C145*D146*E147)+(C146*D147*E145)+(C147*D145*E146))-((E145*D146*C147)+(D145*C146*E147)+(C145*E146*D147)) ->  | BE146: 625.00 | BF146: 763.89 | BG146: 611.41 | BH146: 747.28 | CL146: =(CN146-CN148)^CM146*(CP146-CP148)^CO146 ->  | CM146: =#REF! ->  | CN146: =CN148+(CM146/CM133)*(CL133-CM133*CN148-CO133*CP148) ->  | CO146: =1-CM146 ->  | CP146: =CP148+(CO146/CO133)*(CL133-CM133*CN148-CO133*CP148) -> 
C147: =-E130 ->  | D147: =E146 ->  | E147: =-(E143)*C143*D143^(C143)*F143^(-1-E143) ->  | G147: =IF(G146=0,"punto de silla",(IF(G146>0,"Máximo","Mínimo"))) ->  | BE147: 694.44 | BF147: 694.44 | BG147: 679.35 | BH147: 679.35 | CN147: s1 | CP147: s2
BE148: 763.89 | BF148: 625.00 | BG148: 747.28 | BH148: 611.41 | CN148: =#REF! ->  | CP148: =#REF! -> 
BE149: 833.33 | BF149: 555.56 | BG149: 815.22 | BH149: 543.48
BE150: 902.78 | BF150: 486.11 | BG150: 883.15 | BH150: 475.54
BE151: 972.22 | BF151: 416.67 | BG151: 951.09 | BH151: 407.61
BE152: 1,041.67 | BF152: 347.22 | BG152: 1,019.02 | BH152: 339.67
BE153: 1,111.11 | BF153: 277.78 | BG153: 1,086.96 | BH153: 271.74
BE154: 1,180.56 | BF154: 208.33 | BG154: 1,154.89 | BH154: 203.80
BE155: 1,250.00 | BF155: 138.89 | BG155: 1,222.83 | BH155: 135.87
BE156: 1,319.44 | BF156: 69.44 | BG156: 1,290.76 | BH156: 67.93
BE157: 1,388.89 | BF157: 0 | BG157: 1,358.70 | BH157: 0
L158: Función de demanda | S158: Función de oferta
K159: Ponderador | L159: p | M159: y | N159: Ponderador | O159: yline | Q159: pline | S159: p | T159: y
B160: RECTA PRESUPUESTAL | H160: DEMANDA DEL MERCADO | K160: 0 | L160: =$C$30*N160 -> 0 | M160: =($C$66*$B$62/L160*$H$66)+(IF($D$62>L160,$B$62/L160,0)*$H$69)+($D$62/L160*H172)+(($C$77+($C$75/L160)*($B$62-L160*$C$77-$D$62*$E$77))*$H$75) ->  | N160: ='Oculto prod'!M103 -> 0 | O160: =$C$30 -> 90.0 | P160: =$I$62*K160 -> 0 | Q160: =$C$30*K160 -> 0 | R160: =$I$62 -> 2,773.6 | S160: ='Oculto prod'!K103 -> 0 | T160: ='Oculto prod'!L103 -> 0
B161: m | C161: p1 | D161: p2 | H161: Agentes | I161: Demanda | K161: 0.05 | L161: =$C$30*N161 -> 0 | N161: ='Oculto prod'!M104 -> 0 | O161: =$C$30 -> 90.0 | P161: =$I$62*K161 -> 138.68 | Q161: =$C$30*K161 -> 4.50 | R161: =$I$62 -> 2,773.6 | S161: ='Oculto prod'!K104 -> 0 | T161: ='Oculto prod'!L104 -> 0
B162: =Consumidor!D105 -> 0 | C162: =Consumidor!E105 -> 0 | D162: =Consumidor!F105 -> 0 | H162: =H166+H169+H172+H175 -> 0 | I162: =I166+I169+I172+I175 -> 0 | K162: 0.10 | L162: 0 | N162: ='Oculto prod'!M105 -> 0 | O162: 90.0 | P162: 277.36 | Q162: 9.00 | R162: 2,773.6 | S162: ='Oculto prod'!K105 -> 0 | T162: ='Oculto prod'!L105 -> 0
B163: Inserte los datos correspondientes | K163: 0.15 | L163: 0 | N163: ='Oculto prod'!M106 -> 0 | O163: 90.0 | P163: 416.04 | Q163: 13.50 | R163: 2,773.6 | S163: ='Oculto prod'!K106 -> 0 | T163: ='Oculto prod'!L106 -> 0
B164: FUNCIÓN COBB-DOUGLAS | K164: 0.20 | L164: 0 | N164: ='Oculto prod'!M107 -> 0 | O164: 90.0 | P164: 554.72 | Q164: 18.00 | R164: 2,773.6 | S164: ='Oculto prod'!K107 -> 0 | T164: ='Oculto prod'!L107 -> 0
B165: v | C165: a | D165: x1* | E165: 1-a | F165: x2* | H165: No. de agentes | I165: Demanda | K165: 0.25 | L165: 0 | N165: ='Oculto prod'!M108 -> 0 | O165: 90.0 | P165: 693.39 | Q165: 22.50 | R165: 2,773.6 | S165: ='Oculto prod'!K108 -> 0 | T165: ='Oculto prod'!L108 -> 0
B166: =Consumidor!D109 -> 0 | C166: =Consumidor!E109 -> 0 | D166: =Consumidor!F109 -> 0 | E166: =Consumidor!G109 -> 0 | F166: =Consumidor!H109 -> 0 | H166: =Consumidor!J109 -> 0.0 | I166: =Consumidor!K109 -> 0 | K166: 0.30 | L166: 0 | N166: ='Oculto prod'!M109 -> 0 | O166: 90.0 | P166: 832.07 | Q166: 27.00 | R166: 2,773.6 | S166: ='Oculto prod'!K109 -> 0 | T166: ='Oculto prod'!L109 -> 0
B167: FUNCIÓN SUSTITUTOS PERFECTOS | K167: 0.35 | L167: 0 | N167: ='Oculto prod'!M110 -> 0 | O167: 90.0 | P167: 970.75 | Q167: 31.50 | R167: 2,773.6 | S167: ='Oculto prod'!K110 -> 0 | T167: ='Oculto prod'!L110 -> 0
B168: v | C168: x1* | D168: x2* | E168: Rel. 1 a: | H168: No. de agentes | I168: Demanda | K168: 0.40 | L168: 0 | N168: ='Oculto prod'!M111 -> 0 | O168: 90.0 | P168: 1,109.43 | Q168: 36.00 | R168: 2,773.6 | S168: ='Oculto prod'!K111 -> 0 | T168: ='Oculto prod'!L111 -> 0
B169: =Consumidor!D112 -> 0.0 | C169: =Consumidor!E112 -> 0.0 | D169: =Consumidor!F112 -> 0.0 | E169: =Consumidor!G112 -> 0.0 | H169: =Consumidor!J112 -> 0.0 | I169: =Consumidor!K112 -> 0 | K169: 0.45 | L169: 0 | N169: ='Oculto prod'!M112 -> 0 | O169: 90.0 | P169: 1,248.11 | Q169: 40.50 | R169: 2,773.6 | S169: ='Oculto prod'!K112 -> 0 | T169: ='Oculto prod'!L112 -> 0
B170: FUNCIÓN CUASILINEAL | K170: 0.50 | L170: 0 | N170: ='Oculto prod'!M113 -> 0 | O170: 90.0 | P170: 1,386.79 | Q170: 45.00 | R170: 2,773.6 | S170: ='Oculto prod'!K113 -> 0 | T170: ='Oculto prod'!L113 -> 0
B171: v | C171: x1* | D171: x2* | H171: No. de agentes | I171: Demanda | K171: 0.55 | L171: 0 | N171: ='Oculto prod'!M114 -> 0 | O171: 90.0 | P171: 1,525.47 | Q171: 49.50 | R171: 2,773.6 | S171: ='Oculto prod'!K114 -> 0 | T171: ='Oculto prod'!L114 -> 0
B172: =Consumidor!D115 -> 0.0 | C172: =Consumidor!E115 -> 0.0 | D172: =Consumidor!F115 -> 0.0 | H172: =Consumidor!J115 -> 0.0 | I172: =Consumidor!K115 -> 0 | K172: 0.60 | L172: 0 | N172: ='Oculto prod'!M115 -> 0 | O172: 90.0 | P172: 1,664.15 | Q172: 54.00 | R172: 2,773.6 | S172: ='Oculto prod'!K115 -> 0 | T172: ='Oculto prod'!L115 -> 0
B173: FUNCIÓN STONE-GEARY | K173: 0.65 | L173: 0 | N173: ='Oculto prod'!M116 -> 0 | O173: 90.0 | P173: 1,802.83 | Q173: 58.50 | R173: 2,773.6 | S173: ='Oculto prod'!K116 -> 0 | T173: ='Oculto prod'!L116 -> 0
B174: v | C174: a | D174: x1* | E174: 1-a | F174: x2* | H174: No. de agentes | I174: Demanda | K174: 0.70 | L174: 0 | N174: ='Oculto prod'!M117 -> 0 | O174: 90.0 | P174: 1,941.50 | Q174: 63.00 | R174: 2,773.6 | S174: ='Oculto prod'!K117 -> 0 | T174: ='Oculto prod'!L117 -> 0
B175: =Consumidor!D118 -> 0 | C175: =Consumidor!E118 -> 0 | D175: =Consumidor!F118 -> 0 | E175: =Consumidor!G118 -> 0 | F175: =Consumidor!H118 -> 0 | H175: =Consumidor!J118 -> 0.0 | I175: =Consumidor!K118 -> 0 | K175: 0.75 | L175: 0 | N175: ='Oculto prod'!M118 -> 0 | O175: 90.0 | P175: 2,080.18 | Q175: 67.50 | R175: 2,773.6 | S175: ='Oculto prod'!K118 -> 0 | T175: ='Oculto prod'!L118 -> 0
C176: s1 | E176: s2 | K176: 0.80 | L176: 0 | N176: ='Oculto prod'!M119 -> 0 | O176: 90.0 | P176: 2,218.86 | Q176: 72.00 | R176: 2,773.6 | S176: ='Oculto prod'!K119 -> 0 | T176: ='Oculto prod'!L119 -> 0
C177: =Consumidor!E120 -> 0 | E177: =Consumidor!G120 -> 0 | K177: 0.85 | L177: 0 | N177: ='Oculto prod'!M120 -> 0 | O177: 90.0 | P177: 2,357.54 | Q177: 76.50 | R177: 2,773.6 | S177: ='Oculto prod'!K120 -> 0 | T177: ='Oculto prod'!L120 -> 0
K178: 0.90 | L178: 0 | N178: ='Oculto prod'!M121 -> 0 | O178: 90.0 | P178: 2,496.22 | Q178: 81.00 | R178: 2,773.6 | S178: ='Oculto prod'!K121 -> 0 | T178: ='Oculto prod'!L121 -> 0
K179: 0.95 | L179: 0 | N179: ='Oculto prod'!M122 -> 0 | O179: 90.0 | P179: 2,634.90 | Q179: 85.50 | R179: 2,773.6 | S179: ='Oculto prod'!K122 -> 0 | T179: ='Oculto prod'!L122 -> 0
K180: 1.00 | L180: 0 | N180: ='Oculto prod'!M123 -> 0 | O180: 90.0 | P180: 2,773.58 | Q180: 90.00 | R180: 2,773.6 | S180: ='Oculto prod'!K123 -> 0 | T180: ='Oculto prod'!L123 -> 0

Sheet Mercado parcial (hidden)
B1: Equilibrio en el mercados con consumidores y productores heterogéneos
B3: FUNCIÓN DE OFERTA | G3: FUNCIÓN DE DEMANDA
B5: Toma de decisión de la empresa mediana | G5: Toma de decisión de los consumidors
B6: Función de producción | D6: Isobeneficio | G6: RECTA PRESUPUESTAL | M6: DEMANDA TOTAL BIEN 1
B7: y | C7: ='Oculto mercado'!C2 -> 204.5 | D7: p | E7: ='Oculto mercado'!E3 -> 6,204.5 | G7: m | H7: p1 | I7: p2 | M7: Ponderador m | N7: Demanda
B8: A mínimo | C8: 1.0 | D8: p1 | E8: 90.0 | G8: 500,000.0 | H8: ='Oculto mercado'!C62 -> 90.0 | I8: 92.0 | M8: =M12+M15+M18+M21 -> 1.0 | N8: =N12+N15+N18+N21 -> 2,778.8
B9: A máximo | C9: 1.0 | D9: w1 | E9: 22.0 | G9: Inserte los datos correspondientes | M9: =IF(M8=1, "Correcto","Incorrecto, debe sumar 1") -> Correcto
B10: q1 | C10: ='Oculto mercado'!C5 -> 418.4 | D10: q1 | E10: ='Oculto mercado'!E6 -> 418.4 | G10: FUNCIÓN COBB-DOUGLAS
B11: b, mínimo | C11: 0.5 | D11: w2 | E11: 30.0 | G11: v(p1,m) | H11: a1 | I11: x1* | J11: 1-a1 | K11: x2* | M11: Ponderador bCD | N11: Demanda
B12: b, máximo | C12: 0.5 | D12: q2 | E12: =C13 -> 100.0 | G12: ='Oculto mercado'!B66 -> 686.9 | H12: 0.5 | I12: ='Oculto mercado'!D66 -> 694.4 | J12: ='Oculto mercado'!E66 -> 0.5 | K12: ='Oculto mercado'!F66 -> 679.3 | M12: 0.25 | N12: =I12 -> 694.4
B13: q2 | C13: 100.0 | D13: Precio de equilibrio | G13: FUNCIÓN SUSTITUTOS PERFECTOS
B14: g | C14: 0.5 | E14: 74.2 | G14: v(p1,p2,m) | H14: x1* | I14: x2* | J14: Rel. 1 a: | M14: Ponderador bSP | N14: Demanda
C15: Inserte los datos correspondientes | G15: ='Oculto mercado'!B69 -> 1388.9 | H15: ='Oculto mercado'!C69 -> 1388.9 | I15: ='Oculto mercado'!D69 -> 0.0 | J15: 1.0 | M15: 0.25 | N15: =H15 -> 1,388.9
B16: Función de oferta de la industria | G16: FUNCIÓN CUASILINEAL
B17: Número de productores | E17: 20 | G17: v(p1,p2) | H17: x1* | I17: x2* | M17: Ponderador bCL | N17: Demanda
B18: Producción de la industria | E18: ='Oculto mercado'!$F$11 -> 4,090.9 | G18: ='Oculto mercado'!B72 -> 1357.7 | H18: ='Oculto mercado'!C72 -> 1.0 | I18: ='Oculto mercado'!D72 -> 1357.7 | M18: 0.25 | N18: =H18 -> 1.0
B19: q1 | E19: ='Oculto mercado'!E11 -> 8,367.8 | G19: FUNCIÓN STONE-GEARY
B20: Masa salarial | E20: =E19*E9 -> 184,090.9 | G20: v(p1,p2,m) | H20: a2 | I20: x1* | J20: 1-a2 | K20: x2* | M20: Ponderador bSG | N20: Demanda
G21: ='Oculto mercado'!B75 -> 686.9 | H21: 0.5 | I21: ='Oculto mercado'!D75 -> 694.4 | J21: ='Oculto mercado'!E75 -> 0.5 | K21: ='Oculto mercado'!F75 -> 679.3 | M21: 0.25 | N21: =I21 -> 694.4
H22: s1 | J22: s2
H23: 0 | J23: 0
H27: EL MERCADO
J29: Precio | K29: Cantidad
H30: Productores | J30: ='Oculto mercado'!M8 -> 90.0 | K30: ='Oculto mercado'!N8 -> 4,090.9
H31: ='Oculto mercado'!L9 -> Consumidores | J31: ='Oculto mercado'!M9 -> 90.0 | K31: ='Oculto mercado'!N9 -> 2,778.8
H32: ='Oculto mercado'!L10 -> Exceso de oferta | K32: ='Oculto mercado'!N10 -> 1,312.11
J34: Precio de | K34: Cantidad
J35: equilibrio | K35: de equilibrio | M35: Títulos
H36: =H30 -> Productores | J36: ='Oculto mercado'!M13 -> 74.2 | K36: ='Oculto mercado'!N13 -> 3,371.6 | M36: Valores de equilibrio
H37: =H31 -> Consumidores | J37: ='Oculto mercado'!M14 -> 74.2 | K37: ='Oculto mercado'!N14 -> 3,371.6 | M37: Resultados
H38: =IF(K38<-0.1,"Exceso de demanda",(IF(K38>1,"Exceso de oferta","Equilibrio"))) -> Equilibrio | K38: ='Oculto mercado'!F111-'Oculto mercado'!I162 -> (0.0) | M38: Insertar datos

Sheet Oculto mercado (hidden)
J1: Ponderador
B2: x1 | C2: =C33*(E33^(D33))*(C8^(C9)) -> 204.5 | D2: x1 | E2: =((E4*D33)/E5)^(D33/(1-D33))*(E8)^(C9/(1-D33))*(C33^(1/(1-D33))) -> 204.5 | J2: =1/$J$24 -> 0.09
B3: A min | C3: ='Mercado parcial'!C8 -> 1.0 | D3: p | E3: =(E4*C2)-(E5*E6+E7*E8) -> 6,204.5 | J3: =J2+1/$J$24 -> 0.18 | K3: =TRANSPOSE(J3:J22) -> 0.1818181818 | L3: 0.2727272727 | M3: 0.3636363636 | N3: 0.4545454545 | O3: 0.5454545455 | P3: 0.6363636364 | Q3: 0.7272727273 | R3: 0.8181818182 | S3: 0.9090909091 | T3: 1 | U3: 1.090909091 | V3: 1.181818182 | W3: 1.272727273 | X3: 1.363636364 | Y3: 1.454545455 | Z3: 1.545454545 | AA3: 1.636363636 | AB3: 1.727272727 | AC3: 1.818181818 | AD3: 1.909090909
B4: Amax | C4: ='Mercado parcial'!$C$9 -> 1 | D4: p1 | E4: ='Mercado parcial'!E8 -> 90.0 | J4: =J3+1/$J$24 -> 0.27
B5: q1 | C5: =E6 -> 418.4 | D5: w1 | E5: ='Mercado parcial'!E9 -> 22.0 | J5: 0.36
B6: b min | C6: ='Mercado parcial'!C11 -> 0.5 | D6: q1 | E6: =E33 -> 418.4 | F6: =(E5/C6*E4*C3*(C8^(C9)))^(1/(C6-1)) -> 6.376900316e-10 | J6: 0.45
B7: b max | C7: ='Mercado parcial'!$C$12 -> 0.5 | D7: w2 | E7: ='Mercado parcial'!E11 -> 30.0 | J7: 0.55 | M7: P | N7: Y | O7: Y
B8: q2 | C8: =E8 -> 100.0 | D8: q2 | E8: ='Mercado parcial'!C13 -> 100.0 | J8: 0.64 | L8: Empresa | M8: =E4 -> 90.0 | N8: =F11 -> 4,090.9 | O8: =MAX(N8:N9) -> 4,090.9
B9: g | C9: ='Mercado parcial'!C14 -> 0.5 | J9: 0.73 | L9: Consumidores | M9: =C62 -> 90.0 | N9: =I62 -> 2,778.8
D10: No. Empresas | E10: trabajadores | F10: producción | J10: 0.82 | L10: =IF(N10<0,"Exceso de demanda",IF(N10=0,"Equilibrio", "Exceso de oferta")) -> Exceso de oferta | N10: =N8-N9 -> 1,312.1
B11: Número de vendedores | D11: ='Mercado parcial'!E17 -> 20 | E11: =SUM(E13:E32) -> 8,368 | F11: =SUM(F13:F32) -> 4,091 | J11: 0.91
B12: Productor | C12: A | D12: a | E12: q1 | F12: y | J12: 1.00 | M12: P | N12: Y | O12: Y
B13: 1 | C13: =C3 -> 1.00 | D13: =C6 -> 0.50 | E13: =IF(B13<=$D$11,($E$4*D13*F13/$E$5),"") -> 418.39 | F13: =IF(B13<=$D$11,(C13^(1/(1-D13))*(($E$4*D13/$E$5)^(D13/(1-D13)))*($C$8^($C$9/(1-D13)))),"") -> 204.55 | J13: 1.09 | L13: Empresa | M13: =E104 -> 74.2 | N13: =F111 -> 3,371.6 | O13: =MAX(N13:N14) -> 3,371.6
B14: 2 | C14: =IF(B13<$D$11,($C$4-$C$3)/($D$11-1)+C13,"") -> 1.00 | D14: =IF(B13<$D$11,($C$7-$C$6)/($D$11-1)+D13,"") -> 0.50 | E14: 418.39 | F14: 204.55 | J14: 1.18 | L14: Consumidores | M14: =E104 -> 74.2 | N14: =I162 -> 3,371.6
B15: 3 | C15: =IF(B14<$D$11,($C$4-$C$3)/($D$11-1)+C14,"") -> 1.00 | D15: 0.50 | E15: 418.39 | F15: 204.55 | J15: 1.27 | L15: =IF(N15<0,"Exceso de demanda",IF(N15=0,"Equilibrio", "Exceso de oferta")) -> Exceso de demanda | N15: =N13-N14 -> (0.0)
B16: 4 | C16: 1.00 | D16: 0.50 | E16: 418.39 | F16: 204.55 | J16: 1.36
B17: 5 | C17: 1.00 | D17: 0.50 | E17: 418.39 | F17: 204.55 | J17: 1.45
B18: 6 | C18: 1.00 | D18: 0.50 | E18: 418.39 | F18: 204.55 | J18: 1.55
B19: 7 | C19: 1.00 | D19: 0.50 | E19: 418.39 | F19: 204.55 | J19: 1.64
B20: 8 | C20: 1.00 | D20: 0.50 | E20: 418.39 | F20: 204.55 | J20: 1.73
B21: 9 | C21: 1.00 | D21: 0.50 | E21: 418.39 | F21: 204.55 | J21: 1.82
B22: 10 | C22: 1.00 | D22: 0.50 | E22: 418.39 | F22: 204.55 | J22: 1.91
B23: 11 | C23: 1.00 | D23: 0.50 | E23: 418.39 | F23: 204.55
B24: 12 | C24: 1.00 | D24: 0.50 | E24: 418.39 | F24: 204.55 | J24: 11
B25: 13 | C25: 1.00 | D25: 0.50 | E25: 418.39 | F25: 204.55
B26: 14 | C26: 1.00 | D26: 0.50 | E26: 418.39 | F26: 204.55
B27: 15 | C27: 1.00 | D27: 0.50 | E27: 418.39 | F27: 204.55
B28: 16 | C28: 1.00 | D28: 0.50 | E28: 418.39 | F28: 204.55
B29: 17 | C29: 1.00 | D29: 0.50 | E29: 418.39 | F29: 204.55
B30: 18 | C30: 1.00 | D30: 0.50 | E30: 418.39 | F30: 204.55
B31: 19 | C31: 1.00 | D31: 0.50 | E31: 418.39 | F31: 204.55
B32: 20 | C32: 1.00 | D32: 0.50 | E32: 418.39 | F32: 204.55
C33: =MEDIAN(C13:C32) -> 1.00 | D33: =MEDIAN(D13:D32) -> 0.50 | E33: =$E$4*D33*F33/$E$5 -> 418.39 | F33: =C33^(1/(1-D33))*(($E$4*D33/$E$5)^(D33/(1-D33)))*($C$8^($C$9/(1-D33))) -> 204.55
B34: precios | V34: Oferta
A35: empresas | B35: =$E$4*K3 -> 16.36 | C35: =$E$4*L3 -> 24.55 | D35: 32.73 | E35: 40.91 | F35: 49.09 | G35: 57.27 | H35: 65.45 | I35: 73.64 | J35: 81.82 | K35: 90.00 | L35: 98.18 | M35: 106.36 | N35: 114.55 | O35: 122.73 | P35: 130.91 | Q35: 139.09 | R35: 147.27 | S35: 155.45 | T35: 163.64 | U35: 171.82 | V35: Precios | W35: Producción | X35: Pline | Z35: Yline | AB35: Ponderador
A36: =B13 -> 1 | B36: =IF($B13<=$D$11,($C13^(1/(1-$D13))*((B$35*$D13/$E$5)^($D13/(1-$D13)))*($C$8^($C$9/(1-$D13)))),"") -> 37 | C36: 56 | D36: 74 | E36: 93 | F36: 112 | G36: 130 | H36: 149 | I36: 167 | J36: 186 | K36: 205 | L36: 223 | M36: 242 | N36: 260 | O36: 279 | P36: 298 | Q36: 316 | R36: 335 | S36: 353 | T36: 372 | U36: 390 | V36: =TRANSPOSE(B35:U35) -> 16 | W36: =TRANSPOSE(B56:U56) -> 744 | X36: =$E$4 -> 90.0 | Y36: =MAX($F$11,$I$62)*AB36 -> 204.55 | Z36: =AB36*$E$4 -> 4.5 | AA36: =$F$11 -> 4,091 | AB36: =1/20 -> 0.05 | AC36: =$N$9 -> 2,778.8
A37: 2 | B37: =IF($B14<=$D$11,($C14^(1/(1-$D14))*((B$35*$D14/$E$5)^($D14/(1-$D14)))*($C$8^($C$9/(1-$D14)))),"") -> 37 | C37: 56 | D37: 74 | E37: 93 | F37: 112 | G37: 130 | H37: 149 | I37: 167 | J37: 186 | K37: 205 | L37: 223 | M37: 242 | N37: 260 | O37: 279 | P37: 298 | Q37: 316 | R37: 335 | S37: 353 | T37: 372 | U37: 390 | V37: 24.54545455 | W37: 1,116 | X37: =$E$4 -> 90.0 | Y37: =MAX($F$11,$I$62)*AB37 -> 409.09 | Z37: =AB37*$E$4 -> 9 | AA37: =$F$11 -> 4,091 | AB37: =AB36+1/20 -> 0.1 | AC37: =$N$9 -> 2,778.8
A38: 3 | B38: =IF($B15<=$D$11,($C15^(1/(1-$D15))*((B$35*$D15/$E$5)^($D15/(1-$D15)))*($C$8^($C$9/(1-$D15)))),"") -> 37 | C38: 56 | D38: 74 | E38: 93 | F38: 112 | G38: 130 | H38: 149 | I38: 167 | J38: 186 | K38: 205 | L38: 223 | M38: 242 | N38: 260 | O38: 279 | P38: 298 | Q38: 316 | R38: 335 | S38: 353 | T38: 372 | U38: 390 | V38: 32.72727273 | W38: 1,488 | X38: 90.0 | Y38: 613.64 | Z38: 13.5 | AA38: 4,091 | AB38: =AB37+1/20 -> 0.15 | AC38: 2,778.8
A39: 4 | B39: =IF($B16<=$D$11,($C16^(1/(1-$D16))*((B$35*$D16/$E$5)^($D16/(1-$D16)))*($C$8^($C$9/(1-$D16)))),"") -> 37 | C39: 56 | D39: 74 | E39: 93 | F39: 112 | G39: 130 | H39: 149 | I39: 167 | J39: 186 | K39: 205 | L39: 223 | M39: 242 | N39: 260 | O39: 279 | P39: 298 | Q39: 316 | R39: 335 | S39: 353 | T39: 372 | U39: 390 | V39: 40.90909091 | W39: 1,860 | X39: 90.0 | Y39: 818.18 | Z39: 18 | AA39: 4,091 | AB39: 0.2 | AC39: 2,778.8
A40: 5 | B40: =IF($B17<=$D$11,($C17^(1/(1-$D17))*((B$35*$D17/$E$5)^($D17/(1-$D17)))*($C$8^($C$9/(1-$D17)))),"") -> 37 | C40: 56 | D40: 74 | E40: 93 | F40: 112 | G40: 130 | H40: 149 | I40: 167 | J40: 186 | K40: 205 | L40: 223 | M40: 242 | N40: 260 | O40: 279 | P40: 298 | Q40: 316 | R40: 335 | S40: 353 | T40: 372 | U40: 390 | V40: 49.09090909 | W40: 2,231 | X40: 90.0 | Y40: 1,022.73 | Z40: 22.5 | AA40: 4,091 | AB40: 0.25 | AC40: 2,778.8
A41: 6 | B41: =IF($B18<=$D$11,($C18^(1/(1-$D18))*((B$35*$D18/$E$5)^($D18/(1-$D18)))*($C$8^($C$9/(1-$D18)))),"") -> 37 | C41: 56 | D41: 74 | E41: 93 | F41: 112 | G41: 130 | H41: 149 | I41: 167 | J41: 186 | K41: 205 | L41: 223 | M41: 242 | N41: 260 | O41: 279 | P41: 298 | Q41: 316 | R41: 335 | S41: 353 | T41: 372 | U41: 390 | V41: 57.27272727 | W41: 2,603 | X41: 90.0 | Y41: 1,227.27 | Z41: 27 | AA41: 4,091 | AB41: 0.3 | AC41: 2,778.8
A42: 7 | B42: =IF($B19<=$D$11,($C19^(1/(1-$D19))*((B$35*$D19/$E$5)^($D19/(1-$D19)))*($C$8^($C$9/(1-$D19)))),"") -> 37 | C42: 56 | D42: 74 | E42: 93 | F42: 112 | G42: 130 | H42: 149 | I42: 167 | J42: 186 | K42: 205 | L42: 223 | M42: 242 | N42: 260 | O42: 279 | P42: 298 | Q42: 316 | R42: 335 | S42: 353 | T42: 372 | U42: 390 | V42: 65.45454545 | W42: 2,975 | X42: 90.0 | Y42: 1,431.82 | Z42: 31.5 | AA42: 4,091 | AB42: 0.35 | AC42: 2,778.8
A43: 8 | B43: =IF($B20<=$D$11,($C20^(1/(1-$D20))*((B$35*$D20/$E$5)^($D20/(1-$D20)))*($C$8^($C$9/(1-$D20)))),"") -> 37 | C43: 56 | D43: 74 | E43: 93 | F43: 112 | G43: 130 | H43: 149 | I43: 167 | J43: 186 | K43: 205 | L43: 223 | M43: 242 | N43: 260 | O43: 279 | P43: 298 | Q43: 316 | R43: 335 | S43: 353 | T43: 372 | U43: 390 | V43: 73.63636364 | W43: 3,347 | X43: 90.0 | Y43: 1,636.36 | Z43: 36 | AA43: 4,091 | AB43: 0.4 | AC43: 2,778.8
A44: 9 | B44: =IF($B21<=$D$11,($C21^(1/(1-$D21))*((B$35*$D21/$E$5)^($D21/(1-$D21)))*($C$8^($C$9/(1-$D21)))),"") -> 37 | C44: 56 | D44: 74 | E44: 93 | F44: 112 | G44: 130 | H44: 149 | I44: 167 | J44: 186 | K44: 205 | L44: 223 | M44: 242 | N44: 260 | O44: 279 | P44: 298 | Q44: 316 | R44: 335 | S44: 353 | T44: 372 | U44: 390 | V44: 81.81818182 | W44: 3,719 | X44: 90.0 | Y44: 1,840.91 | Z44: 40.5 | AA44: 4,091 | AB44: 0.45 | AC44: 2,778.8
A45: 10 | B45: =IF($B22<=$D$11,($C22^(1/(1-$D22))*((B$35*$D22/$E$5)^($D22/(1-$D22)))*($C$8^($C$9/(1-$D22)))),"") -> 37 | C45: 56 | D45: 74 | E45: 93 | F45: 112 | G45: 130 | H45: 149 | I45: 167 | J45: 186 | K45: 205 | L45: 223 | M45: 242 | N45: 260 | O45: 279 | P45: 298 | Q45: 316 | R45: 335 | S45: 353 | T45: 372 | U45: 390 | V45: 90 | W45: 4,091 | X45: 90.0 | Y45: 2,045.45 | Z45: 45 | AA45: 4,091 | AB45: 0.5 | AC45: 2,778.8
A46: 11 | B46: =IF($B23<=$D$11,($C23^(1/(1-$D23))*((B$35*$D23/$E$5)^($D23/(1-$D23)))*($C$8^($C$9/(1-$D23)))),"") -> 37 | C46: 56 | D46: 74 | E46: 93 | F46: 112 | G46: 130 | H46: 149 | I46: 167 | J46: 186 | K46: 205 | L46: 223 | M46: 242 | N46: 260 | O46: 279 | P46: 298 | Q46: 316 | R46: 335 | S46: 353 | T46: 372 | U46: 390 | V46: 98.18181818 | W46: 4,463 | X46: 90.0 | Y46: 2,250.00 | Z46: 49.5 | AA46: 4,091 | AB46: 0.55 | AC46: 2,778.8
A47: 12 | B47: =IF($B24<=$D$11,($C24^(1/(1-$D24))*((B$35*$D24/$E$5)^($D24/(1-$D24)))*($C$8^($C$9/(1-$D24)))),"") -> 37 | C47: 56 | D47: 74 | E47: 93 | F47: 112 | G47: 130 | H47: 149 | I47: 167 | J47: 186 | K47: 205 | L47: 223 | M47: 242 | N47: 260 | O47: 279 | P47: 298 | Q47: 316 | R47: 335 | S47: 353 | T47: 372 | U47: 390 | V47: 106.3636364 | W47: 4,835 | X47: 90.0 | Y47: 2,454.55 | Z47: 54 | AA47: 4,091 | AB47: 0.6 | AC47: 2,778.8
A48: 13 | B48: =IF($B25<=$D$11,($C25^(1/(1-$D25))*((B$35*$D25/$E$5)^($D25/(1-$D25)))*($C$8^($C$9/(1-$D25)))),"") -> 37 | C48: 56 | D48: 74 | E48: 93 | F48: 112 | G48: 130 | H48: 149 | I48: 167 | J48: 186 | K48: 205 | L48: 223 | M48: 242 | N48: 260 | O48: 279 | P48: 298 | Q48: 316 | R48: 335 | S48: 353 | T48: 372 | U48: 390 | V48: 114.5454545 | W48: 5,207 | X48: 90.0 | Y48: 2,659.09 | Z48: 58.5 | AA48: 4,091 | AB48: 0.65 | AC48: 2,778.8
A49: 14 | B49: =IF($B26<=$D$11,($C26^(1/(1-$D26))*((B$35*$D26/$E$5)^($D26/(1-$D26)))*($C$8^($C$9/(1-$D26)))),"") -> 37 | C49: 56 | D49: 74 | E49: 93 | F49: 112 | G49: 130 | H49: 149 | I49: 167 | J49: 186 | K49: 205 | L49: 223 | M49: 242 | N49: 260 | O49: 279 | P49: 298 | Q49: 316 | R49: 335 | S49: 353 | T49: 372 | U49: 390 | V49: 122.7272727 | W49: 5,579 | X49: 90.0 | Y49: 2,863.64 | Z49: 63 | AA49: 4,091 | AB49: 0.7 | AC49: 2,778.8
A50: 15 | B50: =IF($B27<=$D$11,($C27^(1/(1-$D27))*((B$35*$D27/$E$5)^($D27/(1-$D27)))*($C$8^($C$9/(1-$D27)))),"") -> 37 | C50: 56 | D50: 74 | E50: 93 | F50: 112 | G50: 130 | H50: 149 | I50: 167 | J50: 186 | K50: 205 | L50: 223 | M50: 242 | N50: 260 | O50: 279 | P50: 298 | Q50: 316 | R50: 335 | S50: 353 | T50: 372 | U50: 390 | V50: 130.9090909 | W50: 5,950 | X50: 90.0 | Y50: 3,068.18 | Z50: 67.5 | AA50: 4,091 | AB50: 0.75 | AC50: 2,778.8
A51: 16 | B51: =IF($B28<=$D$11,($C28^(1/(1-$D28))*((B$35*$D28/$E$5)^($D28/(1-$D28)))*($C$8^($C$9/(1-$D28)))),"") -> 37 | C51: 56 | D51: 74 | E51: 93 | F51: 112 | G51: 130 | H51: 149 | I51: 167 | J51: 186 | K51: 205 | L51: 223 | M51: 242 | N51: 260 | O51: 279 | P51: 298 | Q51: 316 | R51: 335 | S51: 353 | T51: 372 | U51: 390 | V51: 139.0909091 | W51: 6,322 | X51: 90.0 | Y51: 3,272.73 | Z51: 72 | AA51: 4,091 | AB51: 0.8 | AC51: 2,778.8
A52: 17 | B52: =IF($B29<=$D$11,($C29^(1/(1-$D29))*((B$35*$D29/$E$5)^($D29/(1-$D29)))*($C$8^($C$9/(1-$D29)))),"") -> 37 | C52: 56 | D52: 74 | E52: 93 | F52: 112 | G52: 130 | H52: 149 | I52: 167 | J52: 186 | K52: 205 | L52: 223 | M52: 242 | N52: 260 | O52: 279 | P52: 298 | Q52: 316 | R52: 335 | S52: 353 | T52: 372 | U52: 390 | V52: 147.2727273 | W52: 6,694 | X52: 90.0 | Y52: 3,477.27 | Z52: 76.5 | AA52: 4,091 | AB52: 0.85 | AC52: 2,778.8
A53: 18 | B53: =IF($B30<=$D$11,($C30^(1/(1-$D30))*((B$35*$D30/$E$5)^($D30/(1-$D30)))*($C$8^($C$9/(1-$D30)))),"") -> 37 | C53: 56 | D53: 74 | E53: 93 | F53: 112 | G53: 130 | H53: 149 | I53: 167 | J53: 186 | K53: 205 | L53: 223 | M53: 242 | N53: 260 | O53: 279 | P53: 298 | Q53: 316 | R53: 335 | S53: 353 | T53: 372 | U53: 390 | V53: 155.4545455 | W53: 7,066 | X53: 90.0 | Y53: 3,681.82 | Z53: 81 | AA53: 4,091 | AB53: 0.9 | AC53: 2,778.8
A54: 19 | B54: =IF($B31<=$D$11,($C31^(1/(1-$D31))*((B$35*$D31/$E$5)^($D31/(1-$D31)))*($C$8^($C$9/(1-$D31)))),"") -> 37 | C54: 56 | D54: 74 | E54: 93 | F54: 112 | G54: 130 | H54: 149 | I54: 167 | J54: 186 | K54: 205 | L54: 223 | M54: 242 | N54: 260 | O54: 279 | P54: 298 | Q54: 316 | R54: 335 | S54: 353 | T54: 372 | U54: 390 | V54: 163.6363636 | W54: 7,438 | X54: 90.0 | Y54: 3,886.36 | Z54: 85.5 | AA54: 4,091 | AB54: 0.95 | AC54: 2,778.8
A55: 20 | B55: =IF($B32<=$D$11,($C32^(1/(1-$D32))*((B$35*$D32/$E$5)^($D32/(1-$D32)))*($C$8^($C$9/(1-$D32)))),"") -> 37 | C55: 56 | D55: 74 | E55: 93 | F55: 112 | G55: 130 | H55: 149 | I55: 167 | J55: 186 | K55: 205 | L55: 223 | M55: 242 | N55: 260 | O55: 279 | P55: 298 | Q55: 316 | R55: 335 | S55: 353 | T55: 372 | U55: 390 | V55: 171.8181818 | W55: 7,810 | X55: 90.0 | Y55: 4,090.91 | Z55: 90 | AA55: 4,091 | AB55: 1 | AC55: 2,778.8
B56: =SUM(B36:B55) -> 744 | C56: =SUM(C36:C55) -> 1,116 | D56: 1,488 | E56: 1,860 | F56: 2,231 | G56: 2,603 | H56: 2,975 | I56: 3,347 | J56: 3,719 | K56: 4,091 | L56: 4,463 | M56: 4,835 | N56: 5,207 | O56: 5,579 | P56: 5,950 | Q56: 6,322 | R56: 6,694 | S56: 7,066 | T56: 7,438 | U56: 7,810
L58: Función de demanda
K59: Ponderador | L59: p | M59: y | N59: Ponderador | O59: yline | Q59: pline
B60: RECTA PRESUPUESTAL | H60: DEMANDA TOTAL BIEN 1 | K60: 0 | N60: ='Oculto prod'!M3 -> 0 | O60: =$C$62 -> 90.0 | P60: =$O$8*K60 -> 0 | Q60: =$C$62*K60 -> 0 | R60: =$I$62 -> 2,778.8 | S60: =$O$8 -> 4,090.91
B61: m | C61: p1 | D61: p2 | H61: Ponderador m | I61: Demanda | J61: =($C$66*$A$66/C62)+(IF(C62<=$D$62,$A$69/C62,0))+($D$62/C62)+($C$77+(($A$75-$C$77*C62-$E$77*$D$62)/C62)) -> 3,473.2 | K61: 0.05 | N61: ='Oculto prod'!M4 -> 0.09 | O61: =$C$62 -> 90.0 | P61: =$O$8*K61 -> 204.55 | Q61: =$C$62*K61 -> 4.50 | R61: =$I$62 -> 2,778.8 | S61: =$O$8 -> 4,090.91
B62: ='Mercado parcial'!G8 -> 500,000.0 | C62: =E4 -> 90.0 | D62: ='Mercado parcial'!I8 -> 92.0 | H62: =H66+H69+H72+H75 -> 1.0 | I62: =I66+I69+I72+I75 -> 2,778.8 | J62: =SUM(J63:J75) -> 3473.244444 | K62: 0.10 | N62: ='Oculto prod'!M5 -> 0.18 | O62: 90.0 | P62: 409.09 | Q62: 9.00 | R62: 2,778.8 | S62: 4,090.91
B63: Inserte los datos correspondientes | H63: =IF(H62=1, "Correcto","Incorrecto, debe sumar 1") -> Correcto | K63: 0.15 | N63: ='Oculto prod'!M6 -> 0.27 | O63: 90.0 | P63: 613.64 | Q63: 13.50 | R63: 2,778.8 | S63: 4,090.91
B64: FUNCIÓN COBB-DOUGLAS | K64: 0.20 | L64: =$C$62*N64 -> 32.73 | M64: =($C$66*$A$66/L64)+(IF(L64<=$D$62,$A$69/L64,0))+($D$62/L64)+($C$77+($C$75/L64*($A$75-L64*$C$77-$D$62*$E$77))) -> 7,641.7 | N64: ='Oculto prod'!M7 -> 0.36 | O64: 90.0 | P64: 818.18 | Q64: 18.00 | R64: 2,778.8 | S64: 4,090.91
A65: m | B65: v | C65: a1 | D65: x1* | E65: 1-a1 | F65: x2* | H65: Ponderador | I65: Demanda | K65: 0.25 | L65: 40.91 | M65: 6,113.4 | N65: ='Oculto prod'!M8 -> 0.45 | O65: 90.0 | P65: 1,022.73 | Q65: 22.50 | R65: 2,778.8 | S65: 4,090.91
A66: =B62*H66 -> 125,000.0 | B66: =D66^C66*F66^E66 -> 686.9 | C66: ='Mercado parcial'!H12 -> 0.5 | D66: =C66*A66/C62 -> 694.4 | E66: =1-C66 -> 0.5 | F66: =E66*A66/D62 -> 679.3 | H66: ='Mercado parcial'!M12 -> 0.3 | I66: =D66 -> 694.4 | J66: =($C$66*$A$66/C62) -> 694.4 | K66: 0.30 | L66: 49.09 | M66: 5,094.5 | N66: ='Oculto prod'!M9 -> 0.55 | O66: 90.0 | P66: 1,227.27 | Q66: 27.00 | R66: 2,778.8 | S66: 4,090.91
B67: FUNCIÓN SUSTITUTOS PERFECTOS | K67: 0.35 | L67: 57.27 | M67: 4,366.7 | N67: ='Oculto prod'!M10 -> 0.64 | O67: 90.0 | P67: 1,431.82 | Q67: 31.50 | R67: 2,778.8 | S67: 4,090.91
A68: m | B68: v | C68: x1* | D68: x2* | E68: Rel. 1 a: | H68: Ponderador | I68: Demanda | K68: 0.40 | L68: 65.45 | M68: 3,820.9 | N68: ='Oculto prod'!M11 -> 0.73 | O68: 90.0 | P68: 1,636.36 | Q68: 36.00 | R68: 2,778.8 | S68: 4,090.91
A69: =H69*B62 -> 125,000.0 | B69: =C69+D69 -> 1388.9 | C69: =IF(C62<=D62,A69/C62,0) -> 1388.9 | D69: =IF(C62<=D62,0,A69/D62) -> 0.0 | E69: ='Mercado parcial'!J15 -> 1.0 | H69: ='Mercado parcial'!M15 -> 0.3 | I69: =C69 -> 1,388.9 | J69: =(IF(C62<=$D$62,$A$69/C62,0)) -> 1388.888889 | K69: 0.45 | L69: 73.64 | M69: 3,396.3 | N69: ='Oculto prod'!M12 -> 0.82 | O69: 90.0 | P69: 1,840.91 | Q69: 40.50 | R69: 2,778.8 | S69: 4,090.91
B70: FUNCIÓN CUASILINEAL | K70: 0.50 | L70: 81.82 | M70: 3,056.7 | N70: ='Oculto prod'!M13 -> 0.91 | O70: 90.0 | P70: 2,045.45 | Q70: 45.00 | R70: 2,778.8 | S70: 4,090.91
A71: m | B71: v | C71: x1* | D71: x2* | H71: Ponderador | I71: Demanda | K71: 0.55 | L71: 90.00 | M71: 2,778.8 | N71: ='Oculto prod'!M14 -> 1.00 | O71: 90.0 | P71: 2,250.00 | Q71: 49.50 | R71: 2,778.8 | S71: 4,090.91
A72: =B62*H72 -> 125,000.0 | B72: =LOG(C72)+D72 -> 1357.7 | C72: =D62/C62 -> 1.0 | D72: =A72/D62-1 -> 1357.7 | H72: ='Mercado parcial'!M18 -> 0.3 | I72: =C72 -> 1.0 | J72: =($D$62/C62) -> 1.022222222 | K72: 0.60 | L72: 98.18 | M72: 1,274.1 | N72: ='Oculto prod'!M15 -> 1.09 | O72: 90.0 | P72: 2,454.55 | Q72: 54.00 | R72: 2,778.8 | S72: 4,090.91
B73: FUNCIÓN STONE-GEARY | K73: 0.65 | L73: 106.36 | M73: 1,176.1 | N73: ='Oculto prod'!M16 -> 1.18 | O73: 90.0 | P73: 2,659.09 | Q73: 58.50 | R73: 2,778.8 | S73: 4,090.91
A74: m | B74: v | C74: a2 | D74: x1* | E74: 1-a2 | F74: x2* | H74: Ponderador | I74: Demanda | K74: 0.70 | L74: 114.55 | M74: 1,092.1 | N74: ='Oculto prod'!M17 -> 1.27 | O74: 90.0 | P74: 2,863.64 | Q74: 63.00 | R74: 2,778.8 | S74: 4,090.91
A75: =B62*H75 -> 125,000.0 | B75: =((D75-C77)^(C75))*((F75-E77)^(E75)) -> 686.9 | C75: ='Mercado parcial'!H21 -> 0.5 | D75: =C77+(C75*(A75-C77*C62-E77*D62)/C62) -> 694.4 | E75: =1-C75 -> 0.5 | F75: =E77+(E75*(A75-C77*C62-E77*D62)/D62) -> 679.3 | H75: ='Mercado parcial'!M21 -> 0.3 | I75: =D75 -> 694.4 | J75: =($C$77+(($A$75-$C$77*C62-$E$77*$D$62)/C62)) -> 1,388.9 | K75: 0.75 | L75: 122.73 | M75: 1,019.3 | N75: ='Oculto prod'!M18 -> 1.36 | O75: 90.0 | P75: 3,068.18 | Q75: 67.50 | R75: 2,778.8 | S75: 4,090.91
A76: =SUM(A75,A72,A69,A66) -> 500,000.0 | C76: s1 | E76: s2 | K76: 0.80 | L76: 130.91 | M76: 955.6 | N76: ='Oculto prod'!M19 -> 1.45 | O76: 90.0 | P76: 3,272.73 | Q76: 72.00 | R76: 2,778.8 | S76: 4,090.91
C77: ='Mercado parcial'!H23 -> 0 | E77: ='Mercado parcial'!J23 -> 0 | K77: 0.85 | L77: 139.09 | M77: =($C$66*$A$66/L77)+(IF(L77<=$D$62,$A$69/L77,0))+($D$62/L77)+($C$77+($C$75/L77*($A$75-L77*$C$77-$D$62*$E$77))) -> 899.4 | N77: ='Oculto prod'!M20 -> 1.55 | O77: 90.0 | P77: 3,477.27 | Q77: 76.50 | R77: 2,778.8 | S77: 4,090.91
K78: 0.90 | L78: 147.27 | M78: =($C$66*$A$66/L78)+(IF(L78<=$D$62,$A$69/L78,0))+($D$62/L78)+($C$77+($C$75/L78*($A$75-L78*$C$77-$D$62*$E$77))) -> 849.4 | N78: ='Oculto prod'!M21 -> 1.64 | O78: 90.0 | P78: 3,681.82 | Q78: 81.00 | R78: 2,778.8 | S78: 4,090.91
K79: 0.95 | L79: 155.45 | M79: 804.7 | N79: ='Oculto prod'!M22 -> 1.73 | O79: 90.0 | P79: 3,886.36 | Q79: 85.50 | R79: 2,778.8 | S79: 4,090.91
K80: 1.00 | L80: 163.64 | M80: 764.5 | N80: ='Oculto prod'!M23 -> 1.82 | O80: 90.0 | P80: 4,090.91 | Q80: 90.00 | R80: 2,778.8 | S80: 4,090.91
J101: Ponderador
B102: x1 | C102: =C133*(E133^(D133))*(C108^(C109)) -> 168.6 | D102: x1 | E102: =((E104*D133)/E105)^(D133/(1-D133))*(E108)^(C109/(1-D133))*(C133^(1/(1-D133))) -> 168.6 | J102: =1/$J$24 -> 0.09
B103: A min | C103: =C3 -> 1.0 | D103: p | E103: =(E104*C102)-(E105*E106+E107*E108) -> 3,252.3 | J103: =J102+1/$J$24 -> 0.18 | K103: =TRANSPOSE(J103:J122) -> 0.1818181818 | L103: 0.2727272727 | M103: 0.3636363636 | N103: 0.4545454545 | O103: 0.5454545455 | P103: 0.6363636364 | Q103: 0.7272727273 | R103: 0.8181818182 | S103: 0.9090909091 | T103: 1 | U103: 1.090909091 | V103: 1.181818182 | W103: 1.272727273 | X103: 1.363636364 | Y103: 1.454545455 | Z103: 1.545454545 | AA103: 1.636363636 | AB103: 1.727272727 | AC103: 1.818181818 | AD103: 1.909090909
B104: Amax | C104: =C4 -> 1.0 | D104: p1 | E104: ='Mercado parcial'!E14 -> 74.2 | F104: Se cambia | J104: =J103+1/$J$24 -> 0.27
B105: q1 | C105: =E106 -> 284.2 | D105: w1 | E105: =E5 -> 22.0 | J105: 0.36
B106: b min | C106: =C6 -> 0.5 | D106: q1 | E106: =E133 -> 284.2 | J106: 0.45
B107: b max | C107: =C7 -> 0.5 | D107: w2 | E107: =E7 -> 30.0 | J107: 0.55 | M107: P | N107: Y | O107: Y
B108: q2 | C108: =E108 -> 100.0 | D108: q2 | E108: =E8 -> 100.0 | J108: 0.64 | L108: Empresa | M108: =E104 -> 74.2 | N108: =F111 -> 3,371.6 | O108: =MAX(N108:N109) -> 3,371.6
B109: g | C109: =C9 -> 0.5 | J109: 0.73 | L109: Consumidores | M109: =C162 -> 74.2 | N109: =I162 -> 3,371.6
D110: No. Empresas | E110: trabajadores | F110: producción | J110: 0.82 | L110: =IF(N110<0,"Exceso de demanda",IF(N110=0,"Equilibrio", "Exceso de oferta")) -> Exceso de demanda | N110: =N108-N109 -> (0.0)
B111: Número de vendedores | D111: =D11 -> 20 | E111: =SUM(E113:E132) -> 5,684 | F111: =SUM(F113:F132) -> 3,372 | J111: 0.91
B112: Productor | C112: A | D112: a | E112: q1 | F112: y | J112: 1.00 | M112: ecuación | N112: objetivo
B113: 1 | C113: =C103 -> 1.00 | D113: =C106 -> 0.50 | E113: =IF(B113<=$D$111,($E$104*D113*F113/$E$105),"") -> 284.20 | F113: =IF(B113<=$D$111,(C113^(1/(1-D113))*(($E$104*D113/$E$105)^(D113/(1-D113)))*($C$108^($C$109/(1-D113)))),"") -> 168.58 | J113: 1.09 | M113: =F111-I162 -> (0.000000187) | N113: 0
B114: 2 | C114: =IF(B113<$D$111,($C$104-$C$103)/($D$111-1)+C113,"") -> 1.00 | D114: =IF(B113<$D$111,($C$107-$C$106)/($D$111-1)+D113,"") -> 0.50 | E114: =IF(B114<=$D$111,($E$104*D114*F114/$E$105),"") -> 284.20 | F114: =IF(B114<=$D$111,(C114^(1/(1-D114))*(($E$104*D114/$E$105)^(D114/(1-D114)))*($C$108^($C$109/(1-D114)))),"") -> 168.58 | J114: 1.18
B115: 3 | C115: =IF(B114<$D$111,($C$104-$C$103)/($D$111-1)+C114,"") -> 1.00 | D115: =IF(B114<$D$111,($C$107-$C$106)/($D$111-1)+D114,"") -> 0.50 | E115: 284.20 | F115: 168.58 | J115: 1.27
B116: 4 | C116: 1.00 | D116: 0.50 | E116: 284.20 | F116: 168.58 | J116: 1.36
B117: 5 | C117: 1.00 | D117: 0.50 | E117: 284.20 | F117: 168.58 | J117: 1.45
B118: 6 | C118: 1.00 | D118: 0.50 | E118: 284.20 | F118: 168.58 | J118: 1.55
B119: 7 | C119: 1.00 | D119: 0.50 | E119: 284.20 | F119: 168.58 | J119: 1.64
B120: 8 | C120: 1.00 | D120: 0.50 | E120: 284.20 | F120: 168.58 | J120: 1.73
B121: 9 | C121: 1.00 | D121: 0.50 | E121: 284.20 | F121: 168.58 | J121: 1.82
B122: 10 | C122: 1.00 | D122: 0.50 | E122: 284.20 | F122: 168.58 | J122: 1.91
B123: 11 | C123: 1.00 | D123: 0.50 | E123: 284.20 | F123: 168.58
B124: 12 | C124: 1.00 | D124: 0.50 | E124: 284.20 | F124: 168.58 | J124: 11
B125: 13 | C125: 1.00 | D125: 0.50 | E125: 284.20 | F125: 168.58
B126: 14 | C126: 1.00 | D126: 0.50 | E126: 284.20 | F126: 168.58
B127: 15 | C127: 1.00 | D127: 0.50 | E127: 284.20 | F127: 168.58
B128: 16 | C128: 1.00 | D128: 0.50 | E128: 284.20 | F128: 168.58
B129: 17 | C129: 1.00 | D129: 0.50 | E129: 284.20 | F129: 168.58
B130: 18 | C130: 1.00 | D130: 0.50 | E130: 284.20 | F130: 168.58
B131: 19 | C131: 1.00 | D131: 0.50 | E131: 284.20 | F131: 168.58
B132: 20 | C132: 1.00 | D132: 0.50 | E132: 284.20 | F132: 168.58
C133: =MEDIAN(C113:C132) -> 1.00 | D133: =MEDIAN(D113:D132) -> 0.50 | E133: =$E$104*D133*F133/$E$105 -> 284.20 | F133: =C133^(1/(1-D133))*(($E$104*D133/$E$105)^(D133/(1-D133)))*($C$108^($C$109/(1-D133))) -> 168.58
B134: precios | V134: Oferta
A135: empresas | B135: =B35 -> 16.36 | C135: =C35 -> 24.55 | D135: 32.73 | E135: 40.91 | F135: 49.09 | G135: 57.27 | H135: 65.45 | I135: 73.64 | J135: 81.82 | K135: 90.00 | L135: 98.18 | M135: 106.36 | N135: 114.55 | O135: 122.73 | P135: 130.91 | Q135: 139.09 | R135: 147.27 | S135: 155.45 | T135: 163.64 | U135: 171.82 | V135: Precios | W135: Producción | X135: Pline | Z135: Yline | AB135: Ponderador
A136: =B113 -> 1 | B136: =IF($B113<=$D$111,($C113^(1/(1-$D113))*((B$135*$D113/$E$105)^($D113/(1-$D113)))*($C$108^($C$109/(1-$D113)))),"") -> 37 | C136: =IF($B113<=$D$111,($C113^(1/(1-$D113))*((C$135*$D113/$E$105)^($D113/(1-$D113)))*($C$108^($C$109/(1-$D113)))),"") -> 56 | D136: 74 | E136: 93 | F136: 112 | G136: 130 | H136: 149 | I136: 167 | J136: 186 | K136: 205 | L136: 223 | M136: 242 | N136: 260 | O136: 279 | P136: 298 | Q136: 316 | R136: 335 | S136: 353 | T136: 372 | U136: 390 | V136: =TRANSPOSE(B135:U135) -> 16 | W136: =TRANSPOSE(B156:U156) -> 744 | X136: =$E$104 -> 74.2 | Y136: =$F$111*AB136 -> 168.58 | Z136: =AB136*$E$104 -> 3.708781471 | AA136: =$F$111 -> 3,372 | AB136: =1/20 -> 0.05 | AC136: =$N$109 -> 3,371.6
A137: 2 | B137: =IF($B114<=$D$111,($C114^(1/(1-$D114))*((B$135*$D114/$E$105)^($D114/(1-$D114)))*($C$108^($C$109/(1-$D114)))),"") -> 37 | C137: 56 | D137: 74 | E137: 93 | F137: 112 | G137: 130 | H137: 149 | I137: 167 | J137: 186 | K137: 205 | L137: 223 | M137: 242 | N137: 260 | O137: 279 | P137: 298 | Q137: 316 | R137: =IF($B114<=$D$111,($C114^(1/(1-$D114))*((R$135*$D114/$E$105)^($D114/(1-$D114)))*($C$108^($C$109/(1-$D114)))),"") -> 335 | S137: 353 | T137: 372 | U137: 390 | V137: 24.54545455 | W137: 1,116 | X137: =$E$104 -> 74.2 | Y137: =$F$111*AB137 -> 337.16 | Z137: =AB137*$E$104 -> 7.417562942 | AA137: =$F$111 -> 3,372 | AB137: =AB136+1/20 -> 0.1 | AC137: =$N$109 -> 3,371.6
A138: 3 | B138: 37 | C138: 56 | D138: 74 | E138: 93 | F138: 112 | G138: 130 | H138: 149 | I138: 167 | J138: 186 | K138: 205 | L138: 223 | M138: 242 | N138: 260 | O138: 279 | P138: 298 | Q138: 316 | R138: =IF($B115<=$D$111,($C115^(1/(1-$D115))*((R$135*$D115/$E$105)^($D115/(1-$D115)))*($C$108^($C$109/(1-$D115)))),"") -> 335 | S138: 353 | T138: 372 | U138: 390 | V138: 32.72727273 | W138: 1,488 | X138: 74.2 | Y138: 505.74 | Z138: 11.12634441 | AA138: 3,372 | AB138: =AB137+1/20 -> 0.15 | AC138: 3,371.6
A139: 4 | B139: 37 | C139: 56 | D139: 74 | E139: 93 | F139: 112 | G139: 130 | H139: 149 | I139: 167 | J139: 186 | K139: 205 | L139: 223 | M139: 242 | N139: 260 | O139: 279 | P139: 298 | Q139: 316 | R139: =IF($B116<=$D$111,($C116^(1/(1-$D116))*((R$135*$D116/$E$105)^($D116/(1-$D116)))*($C$108^($C$109/(1-$D116)))),"") -> 335 | S139: 353 | T139: 372 | U139: 390 | V139: 40.90909091 | W139: 1,860 | X139: 74.2 | Y139: 674.32 | Z139: 14.83512588 | AA139: 3,372 | AB139: 0.2 | AC139: 3,371.6
A140: 5 | B140: 37 | C140: 56 | D140: 74 | E140: 93 | F140: 112 | G140: 130 | H140: 149 | I140: 167 | J140: 186 | K140: 205 | L140: 223 | M140: 242 | N140: 260 | O140: 279 | P140: 298 | Q140: 316 | R140: =IF($B117<=$D$111,($C117^(1/(1-$D117))*((R$135*$D117/$E$105)^($D117/(1-$D117)))*($C$108^($C$109/(1-$D117)))),"") -> 335 | S140: 353 | T140: 372 | U140: 390 | V140: 49.09090909 | W140: 2,231 | X140: 74.2 | Y140: 842.90 | Z140: 18.54390735 | AA140: 3,372 | AB140: 0.25 | AC140: 3,371.6
A141: 6 | B141: 37 | C141: 56 | D141: 74 | E141: 93 | F141: 112 | G141: 130 | H141: 149 | I141: 167 | J141: 186 | K141: 205 | L141: 223 | M141: 242 | N141: 260 | O141: 279 | P141: 298 | Q141: 316 | R141: =IF($B118<=$D$111,($C118^(1/(1-$D118))*((R$135*$D118/$E$105)^($D118/(1-$D118)))*($C$108^($C$109/(1-$D118)))),"") -> 335 | S141: 353 | T141: 372 | U141: 390 | V141: 57.27272727 | W141: 2,603 | X141: 74.2 | Y141: 1,011.49 | Z141: 22.25268883 | AA141: 3,372 | AB141: 0.3 | AC141: 3,371.6
A142: 7 | B142: 37 | C142: 56 | D142: 74 | E142: 93 | F142: 112 | G142: 130 | H142: 149 | I142: 167 | J142: 186 | K142: 205 | L142: 223 | M142: 242 | N142: 260 | O142: 279 | P142: 298 | Q142: 316 | R142: =IF($B119<=$D$111,($C119^(1/(1-$D119))*((R$135*$D119/$E$105)^($D119/(1-$D119)))*($C$108^($C$109/(1-$D119)))),"") -> 335 | S142: 353 | T142: 372 | U142: 390 | V142: 65.45454545 | W142: 2,975 | X142: 74.2 | Y142: 1,180.07 | Z142: 25.9614703 | AA142: 3,372 | AB142: 0.35 | AC142: 3,371.6
A143: 8 | B143: 37 | C143: 56 | D143: 74 | E143: 93 | F143: 112 | G143: 130 | H143: 149 | I143: 167 | J143: 186 | K143: 205 | L143: 223 | M143: 242 | N143: 260 | O143: 279 | P143: 298 | Q143: 316 | R143: =IF($B120<=$D$111,($C120^(1/(1-$D120))*((R$135*$D120/$E$105)^($D120/(1-$D120)))*($C$108^($C$109/(1-$D120)))),"") -> 335 | S143: 353 | T143: 372 | U143: 390 | V143: 73.63636364 | W143: 3,347 | X143: 74.2 | Y143: 1,348.65 | Z143: 29.67025177 | AA143: 3,372 | AB143: 0.4 | AC143: 3,371.6
A144: 9 | B144: 37 | C144: 56 | D144: 74 | E144: 93 | F144: 112 | G144: 130 | H144: 149 | I144: 167 | J144: 186 | K144: 205 | L144: 223 | M144: 242 | N144: 260 | O144: 279 | P144: 298 | Q144: 316 | R144: =IF($B121<=$D$111,($C121^(1/(1-$D121))*((R$135*$D121/$E$105)^($D121/(1-$D121)))*($C$108^($C$109/(1-$D121)))),"") -> 335 | S144: 353 | T144: 372 | U144: 390 | V144: 81.81818182 | W144: 3,719 | X144: 74.2 | Y144: 1,517.23 | Z144: 33.37903324 | AA144: 3,372 | AB144: 0.45 | AC144: 3,371.6
A145: 10 | B145: 37 | C145: 56 | D145: 74 | E145: 93 | F145: 112 | G145: 130 | H145: 149 | I145: 167 | J145: 186 | K145: 205 | L145: 223 | M145: 242 | N145: 260 | O145: 279 | P145: 298 | Q145: 316 | R145: =IF($B122<=$D$111,($C122^(1/(1-$D122))*((R$135*$D122/$E$105)^($D122/(1-$D122)))*($C$108^($C$109/(1-$D122)))),"") -> 335 | S145: 353 | T145: 372 | U145: 390 | V145: 90 | W145: 4,091 | X145: 74.2 | Y145: 1,685.81 | Z145: 37.08781471 | AA145: 3,372 | AB145: 0.5 | AC145: 3,371.6
A146: 11 | B146: 37 | C146: 56 | D146: 74 | E146: 93 | F146: 112 | G146: 130 | H146: 149 | I146: 167 | J146: 186 | K146: 205 | L146: 223 | M146: 242 | N146: 260 | O146: 279 | P146: 298 | Q146: 316 | R146: =IF($B123<=$D$111,($C123^(1/(1-$D123))*((R$135*$D123/$E$105)^($D123/(1-$D123)))*($C$108^($C$109/(1-$D123)))),"") -> 335 | S146: 353 | T146: 372 | U146: 390 | V146: 98.18181818 | W146: 4,463 | X146: 74.2 | Y146: 1,854.39 | Z146: 40.79659618 | AA146: 3,372 | AB146: 0.55 | AC146: 3,371.6
A147: 12 | B147: 37 | C147: 56 | D147: 74 | E147: 93 | F147: 112 | G147: 130 | H147: 149 | I147: 167 | J147: 186 | K147: 205 | L147: 223 | M147: 242 | N147: 260 | O147: 279 | P147: 298 | Q147: 316 | R147: =IF($B124<=$D$111,($C124^(1/(1-$D124))*((R$135*$D124/$E$105)^($D124/(1-$D124)))*($C$108^($C$109/(1-$D124)))),"") -> 335 | S147: 353 | T147: 372 | U147: 390 | V147: 106.3636364 | W147: 4,835 | X147: 74.2 | Y147: 2,022.97 | Z147: 44.50537765 | AA147: 3,372 | AB147: 0.6 | AC147: 3,371.6
A148: 13 | B148: 37 | C148: 56 | D148: 74 | E148: 93 | F148: 112 | G148: 130 | H148: 149 | I148: 167 | J148: 186 | K148: 205 | L148: 223 | M148: 242 | N148: 260 | O148: 279 | P148: 298 | Q148: 316 | R148: =IF($B125<=$D$111,($C125^(1/(1-$D125))*((R$135*$D125/$E$105)^($D125/(1-$D125)))*($C$108^($C$109/(1-$D125)))),"") -> 335 | S148: 353 | T148: 372 | U148: 390 | V148: 114.5454545 | W148: 5,207 | X148: 74.2 | Y148: 2,191.55 | Z148: 48.21415912 | AA148: 3,372 | AB148: 0.65 | AC148: 3,371.6
A149: 14 | B149: 37 | C149: 56 | D149: 74 | E149: 93 | F149: 112 | G149: 130 | H149: 149 | I149: 167 | J149: 186 | K149: 205 | L149: 223 | M149: 242 | N149: 260 | O149: 279 | P149: 298 | Q149: 316 | R149: =IF($B126<=$D$111,($C126^(1/(1-$D126))*((R$135*$D126/$E$105)^($D126/(1-$D126)))*($C$108^($C$109/(1-$D126)))),"") -> 335 | S149: 353 | T149: 372 | U149: 390 | V149: 122.7272727 | W149: 5,579 | X149: 74.2 | Y149: 2,360.13 | Z149: 51.92294059 | AA149: 3,372 | AB149: 0.7 | AC149: 3,371.6
A150: 15 | B150: 37 | C150: 56 | D150: 74 | E150: 93 | F150: 112 | G150: 130 | H150: 149 | I150: 167 | J150: 186 | K150: 205 | L150: 223 | M150: 242 | N150: 260 | O150: 279 | P150: 298 | Q150: 316 | R150: =IF($B127<=$D$111,($C127^(1/(1-$D127))*((R$135*$D127/$E$105)^($D127/(1-$D127)))*($C$108^($C$109/(1-$D127)))),"") -> 335 | S150: 353 | T150: 372 | U150: 390 | V150: 130.9090909 | W150: 5,950 | X150: 74.2 | Y150: 2,528.71 | Z150: 55.63172206 | AA150: 3,372 | AB150: 0.75 | AC150: 3,371.6
A151: 16 | B151: 37 | C151: 56 | D151: 74 | E151: 93 | F151: 112 | G151: 130 | H151: 149 | I151: 167 | J151: 186 | K151: 205 | L151: 223 | M151: 242 | N151: 260 | O151: 279 | P151: 298 | Q151: 316 | R151: =IF($B128<=$D$111,($C128^(1/(1-$D128))*((R$135*$D128/$E$105)^($D128/(1-$D128)))*($C$108^($C$109/(1-$D128)))),"") -> 335 | S151: 353 | T151: 372 | U151: 390 | V151: 139.0909091 | W151: 6,322 | X151: 74.2 | Y151: 2,697.30 | Z151: 59.34050354 | AA151: 3,372 | AB151: 0.8 | AC151: 3,371.6
A152: 17 | B152: 37 | C152: 56 | D152: 74 | E152: 93 | F152: 112 | G152: 130 | H152: 149 | I152: 167 | J152: 186 | K152: 205 | L152: 223 | M152: 242 | N152: =IF($B129<=$D$111,($C129^(1/(1-$D129))*((N$135*$D129/$E$105)^($D129/(1-$D129)))*($C$108^($C$109/(1-$D129)))),"") -> 260 | O152: 279 | P152: 298 | Q152: 316 | R152: 335 | S152: 353 | T152: 372 | U152: 390 | V152: 147.2727273 | W152: 6,694 | X152: 74.2 | Y152: 2,865.88 | Z152: 63.04928501 | AA152: 3,372 | AB152: 0.85 | AC152: 3,371.6
A153: 18 | B153: 37 | C153: =IF($B130<=$D$111,($C130^(1/(1-$D130))*((C$135*$D130/$E$105)^($D130/(1-$D130)))*($C$108^($C$109/(1-$D130)))),"") -> 56 | D153: 74 | E153: 93 | F153: 112 | G153: 130 | H153: 149 | I153: 167 | J153: 186 | K153: 205 | L153: 223 | M153: 242 | N153: 260 | O153: 279 | P153: 298 | Q153: 316 | R153: 335 | S153: 353 | T153: 372 | U153: 390 | V153: 155.4545455 | W153: 7,066 | X153: 74.2 | Y153: 3,034.46 | Z153: 66.75806648 | AA153: 3,372 | AB153: 0.9 | AC153: 3,371.6
A154: 19 | B154: 37 | C154: =IF($B131<=$D$111,($C131^(1/(1-$D131))*((C$135*$D131/$E$105)^($D131/(1-$D131)))*($C$108^($C$109/(1-$D131)))),"") -> 56 | D154: 74 | E154: 93 | F154: 112 | G154: 130 | H154: 149 | I154: 167 | J154: 186 | K154: 205 | L154: 223 | M154: 242 | N154: 260 | O154: 279 | P154: 298 | Q154: 316 | R154: 335 | S154: 353 | T154: 372 | U154: 390 | V154: 163.6363636 | W154: 7,438 | X154: 74.2 | Y154: 3,203.04 | Z154: 70.46684795 | AA154: 3,372 | AB154: 0.95 | AC154: 3,371.6
A155: 20 | B155: 37 | C155: =IF($B132<=$D$111,($C132^(1/(1-$D132))*((C$135*$D132/$E$105)^($D132/(1-$D132)))*($C$108^($C$109/(1-$D132)))),"") -> 56 | D155: 74 | E155: 93 | F155: 112 | G155: 130 | H155: 149 | I155: 167 | J155: 186 | K155: 205 | L155: 223 | M155: 242 | N155: 260 | O155: 279 | P155: 298 | Q155: 316 | R155: 335 | S155: 353 | T155: 372 | U155: 390 | V155: 171.8181818 | W155: 7,810 | X155: 74.2 | Y155: 3,371.62 | Z155: 74.17562942 | AA155: 3,372 | AB155: 1 | AC155: 3,371.6
B156: =SUM(B136:B155) -> 744 | C156: =SUM(C136:C155) -> 1,116 | D156: =SUM(D136:D155) -> 1,488 | E156: =SUM(E136:E155) -> 1,860 | F156: =SUM(F136:F155) -> 2,231 | G156: =SUM(G136:G155) -> 2,603 | H156: =SUM(H136:H155) -> 2,975 | I156: =SUM(I136:I155) -> 3,347 | J156: =SUM(J136:J155) -> 3,719 | K156: =SUM(K136:K155) -> 4,091 | L156: =SUM(L136:L155) -> 4,463 | M156: =SUM(M136:M155) -> 4,835 | N156: =SUM(N136:N155) -> 5,207 | O156: =SUM(O136:O155) -> 5,579 | P156: =SUM(P136:P155) -> 5,950 | Q156: =SUM(Q136:Q155) -> 6,322 | R156: =SUM(R136:R155) -> 6,694 | S156: =SUM(S136:S155) -> 7,066 | T156: =SUM(T136:T155) -> 7,438 | U156: =SUM(U136:U155) -> 7,810
L158: Función de demanda
K159: Ponderador | L159: p | M159: y | N159: Ponderador | O159: yline | Q159: pline
B160: RECTA PRESUPUESTAL | H160: DEMANDA TOTAL BIEN 1 | K160: 0 | N160: =N60 -> 0 | O160: =$C$162 -> 74.2 | P160: =$I$162*K160 -> 0 | Q160: =$C$162*K160 -> 0 | R160: =$I$162 -> 3,371.6 | S160: =$O$108 -> 3,371.62
B161: m | C161: p1 | D161: p2 | E161: P* | H161: Ponderador m | I161: Demanda | J161: =($C$66*$A$66/C162)+(IF(C162<=$D$62,$A$69/C162,0))+($D$62/C162)+($C$77+(($A$75-$C$77*C162-$E$77*$D$62)/C162)) -> 4,214.2 | K161: 0.05 | L161: =$C$162*N161 -> 6.74 | M161: =($C$166*$A$166/L161)+(IF(L161>$D$162,0,$A$169/L161))+($D$162/L161)+($C$177+($C$175/L161*($A$175-L161*$C$177-$D$162*$E$177))) -> 37,087.81 | N161: =N61 -> 0.09 | O161: =$C$162 -> 74.2 | P161: =$I$162*K161 -> 168.58 | Q161: =$C$162*K161 -> 3.71 | R161: =$I$162 -> 3,371.6 | S161: =$O$108 -> 3,371.62
B162: =B62 -> 500,000.0 | C162: =E104 -> 74.2 | D162: =D62 -> 92.0 | E162: =E104 -> 74.2 | H162: =H166+H169+H172+H175 -> 1.0 | I162: =I166+I169+I172+I175 -> 3,371.6 | J162: =SUM(J163:J175) -> 4214.214324 | K162: 0.10 | L162: =$C$162*N162 -> 13.49 | M162: =($C$166*$A$166/L162)+(IF(L162>$D$162,0,$A$169/L162))+($D$162/L162)+($C$177+($C$175/L162*($A$175-L162*$C$177-$D$162*$E$177))) -> 18,543.91 | N162: 0.18 | O162: 74.2 | P162: 337.16 | Q162: 7.42 | R162: 3,371.6 | S162: 3,371.62
B163: Inserte los datos correspondientes | H163: =IF(H162=1, "Correcto","Incorrecto, debe sumar 1") -> Correcto | K163: 0.15 | L163: 20.23 | M163: 12,362.60 | N163: 0.27 | O163: 74.2 | P163: 505.74 | Q163: 11.13 | R163: 3,371.6 | S163: 3,371.62
B164: FUNCIÓN COBB-DOUGLAS | K164: 0.20 | L164: 26.97 | M164: 9,271.95 | N164: 0.36 | O164: 74.2 | P164: 674.32 | Q164: 14.84 | R164: 3,371.6 | S164: 3,371.62
A165: m | B165: v | C165: a1 | D165: x1* | E165: 1-a1 | F165: x2* | H165: Ponderador | I165: Demanda | K165: 0.25 | L165: 33.72 | M165: 7,417.56 | N165: 0.45 | O165: 74.2 | P165: 842.90 | Q165: 18.54 | R165: 3,371.6 | S165: 3,371.62
A166: =B162*H166 -> 125,000.0 | B166: =D166^C166*F166^E166 -> 756.6 | C166: =C66 -> 0.5 | D166: =C166*A166/C162 -> 842.6 | E166: =1-C166 -> 0.5 | F166: =E166*A166/D162 -> 679.3 | H166: =H66 -> 0.3 | I166: =D166 -> 842.6 | J166: =($C$66*$A$66/C162) -> 842.6 | K166: 0.30 | L166: 40.46 | M166: 6,181.30 | N166: 0.55 | O166: 74.2 | P166: 1,011.49 | Q166: 22.25 | R166: 3,371.6 | S166: 3,371.62
B167: FUNCIÓN SUSTITUTOS PERFECTOS | K167: 0.35 | L167: 47.20 | M167: 5,298.26 | N167: 0.64 | O167: 74.2 | P167: 1,180.07 | Q167: 25.96 | R167: 3,371.6 | S167: 3,371.62
A168: m | B168: v | C168: x1* | D168: x2* | E168: Rel. 1 a: | H168: Ponderador | I168: Demanda | K168: 0.40 | L168: 53.95 | M168: 4,635.98 | N168: 0.73 | O168: 74.2 | P168: 1,348.65 | Q168: 29.67 | R168: 3,371.6 | S168: 3,371.62
A169: =H169*B162 -> 125,000.0 | B169: =C169+D169 -> 1685.2 | C169: =IF(E104>D162,0,A169/C162) -> 1685.2 | D169: =IF(C162<=D162,0,A169/D162) -> 0.0 | E169: =E69 -> 1.0 | H169: =H69 -> 0.3 | I169: =C169 -> 1,685.2 | J169: =(IF(C162>$D$62,0,$A$69/C162)) -> 1685.18961 | K169: 0.45 | L169: 60.69 | M169: 4,120.87 | N169: 0.82 | O169: 74.2 | P169: 1,517.23 | Q169: 33.38 | R169: 3,371.6 | S169: 3,371.62
B170: FUNCIÓN CUASILINEAL | K170: 0.50 | L170: 67.43 | M170: 3,708.78 | N170: 0.91 | O170: 74.2 | P170: 1,685.81 | Q170: 37.09 | R170: 3,371.6 | S170: 3,371.62
A171: m | B171: v | C171: x1* | D171: x2* | H171: Ponderador | I171: Demanda | K171: 0.55 | L171: 74.18 | M171: 3,371.62 | N171: 1.00 | O171: 74.2 | P171: 1,854.39 | Q171: 40.80 | R171: 3,371.6 | S171: 3,371.62
A172: =B162*H172 -> 125,000.0 | B172: =LOG(C172)+D172 -> 1357.8 | C172: =D162/C162 -> 1.2 | D172: =A172/D162-1 -> 1357.7 | H172: =H72 -> 0.3 | I172: =C172 -> 1.2 | J172: =($D$62/C162) -> 1.240299553 | K172: 0.60 | L172: 80.92 | M172: 3,090.65 | N172: 1.09 | O172: 74.2 | P172: 2,022.97 | Q172: 44.51 | R172: 3,371.6 | S172: 3,371.62
B173: FUNCIÓN STONE-GEARY | K173: 0.65 | L173: 87.66 | M173: 2,852.91 | N173: 1.18 | O173: 74.2 | P173: 2,191.55 | Q173: 48.21 | R173: 3,371.6 | S173: 3,371.62
A174: m | B174: v | C174: a2 | D174: x1* | E174: 1-a2 | F174: x2* | H174: Ponderador | I174: Demanda | K174: 0.70 | L174: 94.41 | M174: 1,325.05 | N174: 1.27 | O174: 74.2 | P174: 2,360.13 | Q174: 51.92 | R174: 3,371.6 | S174: 3,371.62
A175: =B162*H175 -> 125,000.0 | B175: =((D175-C177)^(C175))*((F175-E177)^(E175)) -> 756.6 | C175: =C75 -> 0.5 | D175: =C177+(C175*(A175-C177*C162-E177*D162)/C162) -> 842.6 | E175: =1-C175 -> 0.5 | F175: =E177+(E175*(A175-C177*C162-E177*D162)/D162) -> 679.3 | H175: =H75 -> 0.3 | I175: =D175 -> 842.6 | J175: =($C$77+(($A$75-$C$77*C162-$E$77*$D$62)/C162)) -> 1,685.2 | K175: 0.75 | L175: 101.15 | M175: 1,236.72 | N175: 1.36 | O175: 74.2 | P175: 2,528.71 | Q175: 55.63 | R175: 3,371.6 | S175: 3,371.62
A176: =SUM(A175,A172,A169,A166) -> 500,000.0 | C176: s1 | E176: s2 | K176: 0.80 | L176: 107.89 | M176: 1,159.42 | N176: 1.45 | O176: 74.2 | P176: 2,697.30 | Q176: 59.34 | R176: 3,371.6 | S176: 3,371.62
C177: =C77 -> 0 | E177: =E77 -> 0 | K177: 0.85 | L177: 114.64 | M177: 1,091.22 | N177: 1.55 | O177: 74.2 | P177: 2,865.88 | Q177: 63.05 | R177: 3,371.6 | S177: 3,371.62
K178: 0.90 | L178: 121.38 | M178: 1,030.60 | N178: 1.64 | O178: 74.2 | P178: 3,034.46 | Q178: 66.76 | R178: 3,371.6 | S178: 3,371.62
K179: 0.95 | L179: 128.12 | M179: 976.35 | N179: 1.73 | O179: 74.2 | P179: 3,203.04 | Q179: 70.47 | R179: 3,371.6 | S179: 3,371.62
K180: 1.00 | L180: 134.86 | M180: 927.54 | N180: 1.82 | O180: 74.2 | P180: 3,371.62 | Q180: 74.18 | R180: 3,371.6 | S180: 3,371.62

Sheet Mercadogral (hidden)
A1: FUNCIÓN DE OFERTA | G1: FUNCIÓN DE DEMANDA
B3: Toma de decisión de la empresa mediana
B4: Función de producción | D4: Isobeneficio | G4: RECTA PRESUPUESTAL | M4: DEMANDA TOTAL BIEN 1
B5: y | C5: ='Oculto mercadogral'!C2 -> 104.0 | D5: p | E5: ='Oculto mercadogral'!E3 -> -4,188.8 | G5: m | H5: p1 | I5: p2 | J5: =E7 -> 30.0 | M5: Ponderador m | N5: Demanda
B6: A mínimo | C6: 2.0 | D6: p1 | E6: 15.6 | G6: ='Oculto mercadogral'!B62 -> 16,224.0 | H6: ='Oculto mercadogral'!C62 -> 15.6 | I6: 22.0 | J6: =C9*E6*C6*E10^C12 -> 156 | M6: =M10+M13+M16+M19 -> 1.0 | N6: =N10+N13+N16+N19 -> 461.9
B7: A máximo | C7: 2.0 | D7: w1 | E7: 30.0 | G7: Inserte los datos correspondientes | J7: =E10^C12 -> 10 | M7: =IF(M6=1, "Correcto","Incorrecto, debe sumar 1") -> Correcto
B8: q1 | C8: ='Oculto mercadogral'!C5 -> 27.0 | D8: q1 | E8: ='Oculto mercadogral'!E6 -> 27.0 | G8: FUNCIÓN COBB-DOUGLAS | J8: =C6*(J5/J6)^(1/(C9-1))*J7 -> 540.8
B9: b, mínimo | C9: 0.5 | D9: w2 | E9: 50.0 | G9: v(p1,m) | H9: a1 | I9: x1* | J9: 1-a1 | K9: x2* | M9: Ponderador de m | N9: Demanda
B10: b, máximo | C10: 0.5 | D10: q2 | E10: =C11 -> 100.0 | G10: ='Oculto mercadogral'!B66 -> 175.2 | H10: 0.5 | I10: ='Oculto mercadogral'!D66 -> 208.0 | J10: ='Oculto mercadogral'!E66 -> 0.5 | K10: ='Oculto mercadogral'!F66 -> 147.5 | M10: 0.4 | N10: =I10 -> 208.0
B11: q2 | C11: 100.0 | D11: Precio de equilibrio | G11: FUNCIÓN SUSTITUTOS PERFECTOS
B12: g | C12: 0.5 | E12: 6.9 | G12: v(p1,p2,m) | H12: x1* | I12: x2* | J12: Rel. 1 a: | M12: Ponderador de m | N12: Demanda
C13: Inserte los datos correspondientes | G13: ='Oculto mercadogral'!B69 -> 312.0 | H13: ='Oculto mercadogral'!C69 -> 312.0 | I13: ='Oculto mercadogral'!D69 -> 0.0 | J13: 1.0 | M13: 0.3 | N13: =H13 -> 312.0
B14: Función de oferta de la industria | G14: FUNCIÓN CUASILINEAL
B15: Número de productores | E15: 20 | G15: v(p1,p2) | H15: x1* | I15: x2* | M15: Ponderador de m | N15: Demanda
B16: Producción de la industria | E16: ='Oculto mercadogral'!$F$11 -> 2,080.0 | G16: ='Oculto mercadogral'!B72 -> 146.6 | H16: ='Oculto mercadogral'!C72 -> 1.4 | I16: ='Oculto mercadogral'!D72 -> 146.5 | M16: 0.2 | N16: =H16 -> 1.4
B17: q1 | E17: ='Oculto mercadogral'!E11 -> 540.8 | G17: FUNCIÓN STONE-GEARY
B18: Masa salarial | E18: =E17*E7 -> 16,224.0 | G18: v(p1,p2,m) | H18: a2 | I18: x1* | J18: 1-a2 | K18: x2* | M18: Ponderador de m | N18: Demanda
G19: ='Oculto mercadogral'!B75 ->  | H19: 0.5 | I19: ='Oculto mercadogral'!D75 -> (59.5) | J19: ='Oculto mercadogral'!E75 -> 0.5 | K19: ='Oculto mercadogral'!F75 -> 116.0 | M19: 0.1 | N19: =I19 -> (59.5)
H20: s1 | J20: s2
H21: 200.0 | J21: 300.0
H25: EL MERCADO
J27: Precio | K27: Cantidad
H28: Productores | J28: ='Oculto mercadogral'!M8 -> 15.6 | K28: ='Oculto mercadogral'!N8 -> 2,080.0
H29: ='Oculto mercadogral'!L9 -> Consumidores | J29: ='Oculto mercadogral'!M9 -> 15.6 | K29: ='Oculto mercadogral'!N9 -> 461.9
H30: ='Oculto mercadogral'!L10 -> Exceso de oferta | K30: ='Oculto mercadogral'!N10 -> 1,618.13
J32: Precio de | K32: Cantidad
J33: equilibrio | K33: de equilibrio | M33: Títulos
H34: =H28 -> Productores | J34: ='Oculto mercadogral'!M13 -> 6.9 | K34: ='Oculto mercadogral'!N13 -> 919.0 | M34: Valores de equilibrio
H35: =H29 -> Consumidores | J35: ='Oculto mercadogral'!M14 -> 6.9 | K35: ='Oculto mercadogral'!N14 -> 919.0 | M35: Resultados
H36: =IF(K36<-0.1,"Exceso de demanda",(IF(K36>1,"Exceso de oferta","Equilibrio"))) -> Equilibrio | K36: ='Oculto mercadogral'!F111-'Oculto mercadogral'!I162 -> 0.0 | M36: Insertar datos

Sheet Oculto mercadogral (hidden)
J1: Ponderador
B2: x1 | C2: =C33*(E33^(D33))*(C8^(C9)) -> 104.0 | D2: x1 | E2: =((E4*D33)/E5)^(D33/(1-D33))*(E8)^(C9/(1-D33))*(C33^(1/(1-D33))) -> 104.0 | J2: =1/$J$24 -> 0.09
B3: A min | C3: =Mercadogral!C6 -> 2.0 | D3: p | E3: =(E4*C2)-(E5*E6+E7*E8) -> -4,188.8 | J3: =J2+1/$J$24 -> 0.18 | K3: =TRANSPOSE(J3:J22) -> 0.1818181818 | L3: 0.2727272727 | M3: 0.3636363636 | N3: 0.4545454545 | O3: 0.5454545455 | P3: 0.6363636364 | Q3: 0.7272727273 | R3: 0.8181818182 | S3: 0.9090909091 | T3: 1 | U3: 1.090909091 | V3: 1.181818182 | W3: 1.272727273 | X3: 1.363636364 | Y3: 1.454545455 | Z3: 1.545454545 | AA3: 1.636363636 | AB3: 1.727272727 | AC3: 1.818181818 | AD3: 1.909090909
B4: Amax | C4: =Mercadogral!$C$7 -> 2 | D4: p1 | E4: =Mercadogral!E6 -> 15.6 | J4: =J3+1/$J$24 -> 0.27
B5: q1 | C5: =E6 -> 27.0 | D5: w1 | E5: =Mercadogral!E7 -> 30.0 | J5: 0.36
B6: b min | C6: =Mercadogral!C9 -> 0.5 | D6: q1 | E6: =E33 -> 27.0 | F6: =(E5/C6*E4*C3*(C8^(C9)))^(1/(C6-1)) -> 2.853568559e-09 | J6: 0.45
B7: b max | C7: =Mercadogral!$C$10 -> 0.5 | D7: w2 | E7: =Mercadogral!E9 -> 50.0 | J7: 0.55 | M7: P | N7: Y | O7: Y
B8: q2 | C8: =E8 -> 100.0 | D8: q2 | E8: =Mercadogral!C11 -> 100.0 | J8: 0.64 | L8: Empresa | M8: =E4 -> 15.6 | N8: =F11 -> 2,080.0 | O8: =MAX(N8:N9) -> 2,080.0
B9: g | C9: =Mercadogral!C12 -> 0.5 | J9: 0.73 | L9: Consumidores | M9: =C62 -> 15.6 | N9: =I62 -> 461.9
D10: No. Empresas | E10: trabajadores | F10: producción | J10: 0.82 | L10: =IF(N10<0,"Exceso de demanda",IF(N10=0,"Equilibrio", "Exceso de oferta")) -> Exceso de oferta | N10: =N8-N9 -> 1,618.1
B11: Número de vendedores | D11: =Mercadogral!E15 -> 20 | E11: =SUM(E13:E32) -> 541 | F11: =SUM(F13:F32) -> 2,080 | J11: 0.91
B12: Productor | C12: A | D12: a | E12: q1 | F12: y | J12: 1.00 | M12: P | N12: Y | O12: Y
B13: 1 | C13: =C3 -> 2.00 | D13: =C6 -> 0.50 | E13: =IF(B13<=$D$11,($E$4*D13*F13/$E$5),"") -> 27.04 | F13: =IF(B13<=$D$11,(C13^(1/(1-D13))*(($E$4*D13/$E$5)^(D13/(1-D13)))*($C$8^($C$9/(1-D13)))),"") -> 104.00 | J13: 1.09 | L13: Empresa | M13: =E104 -> 6.9 | N13: =F111 -> 919.0 | O13: =MAX(N13:N14) -> 919.0
B14: 2 | C14: =IF(B13<$D$11,($C$4-$C$3)/($D$11-1)+C13,"") -> 2.00 | D14: =IF(B13<$D$11,($C$7-$C$6)/($D$11-1)+D13,"") -> 0.50 | E14: 27.04 | F14: 104.00 | J14: 1.18 | L14: Consumidores | M14: =E104 -> 6.9 | N14: =I162 -> 919.0
B15: 3 | C15: =IF(B14<$D$11,($C$4-$C$3)/($D$11-1)+C14,"") -> 2.00 | D15: 0.50 | E15: 27.04 | F15: 104.00 | J15: 1.27 | L15: =IF(N15<0,"Exceso de demanda",IF(N15=0,"Equilibrio", "Exceso de oferta")) -> Exceso de oferta | N15: =N13-N14 -> 0.0
B16: 4 | C16: 2.00 | D16: 0.50 | E16: 27.04 | F16: 104.00 | J16: 1.36
B17: 5 | C17: 2.00 | D17: 0.50 | E17: 27.04 | F17: 104.00 | J17: 1.45
B18: 6 | C18: 2.00 | D18: 0.50 | E18: 27.04 | F18: 104.00 | J18: 1.55
B19: 7 | C19: 2.00 | D19: 0.50 | E19: 27.04 | F19: 104.00 | J19: 1.64
B20: 8 | C20: 2.00 | D20: 0.50 | E20: 27.04 | F20: 104.00 | J20: 1.73
B21: 9 | C21: 2.00 | D21: 0.50 | E21: 27.04 | F21: 104.00 | J21: 1.82
B22: 10 | C22: 2.00 | D22: 0.50 | E22: 27.04 | F22: 104.00 | J22: 1.91
B23: 11 | C23: 2.00 | D23: 0.50 | E23: 27.04 | F23: 104.00
B24: 12 | C24: 2.00 | D24: 0.50 | E24: 27.04 | F24: 104.00 | J24: 11
B25: 13 | C25: 2.00 | D25: 0.50 | E25: 27.04 | F25: 104.00
B26: 14 | C26: 2.00 | D26: 0.50 | E26: 27.04 | F26: 104.00
B27: 15 | C27: 2.00 | D27: 0.50 | E27: 27.04 | F27: 104.00
B28: 16 | C28: 2.00 | D28: 0.50 | E28: 27.04 | F28: 104.00
B29: 17 | C29: 2.00 | D29: 0.50 | E29: 27.04 | F29: 104.00
B30: 18 | C30: 2.00 | D30: 0.50 | E30: 27.04 | F30: 104.00
B31: 19 | C31: 2.00 | D31: 0.50 | E31: 27.04 | F31: 104.00
B32: 20 | C32: 2.00 | D32: 0.50 | E32: 27.04 | F32: 104.00
C33: =MEDIAN(C13:C32) -> 2.00 | D33: =MEDIAN(D13:D32) -> 0.50 | E33: =$E$4*D33*F33/$E$5 -> 27.04 | F33: =C33^(1/(1-D33))*(($E$4*D33/$E$5)^(D33/(1-D33)))*($C$8^($C$9/(1-D33))) -> 104.00
B34: precios | V34: Oferta
A35: empresas | B35: =$E$4*K3 -> 2.84 | C35: =$E$4*L3 -> 4.25 | D35: 5.67 | E35: 7.09 | F35: 8.51 | G35: 9.93 | H35: 11.35 | I35: 12.76 | J35: 14.18 | K35: 15.60 | L35: 17.02 | M35: 18.44 | N35: 19.85 | O35: 21.27 | P35: 22.69 | Q35: 24.11 | R35: 25.53 | S35: 26.95 | T35: 28.36 | U35: 29.78 | V35: Precios | W35: Producción | X35: Pline | Z35: Yline | AB35: Ponderador
A36: =B13 -> 1 | B36: =IF($B13<=$D$11,($C13^(1/(1-$D13))*((B$35*$D13/$E$5)^($D13/(1-$D13)))*($C$8^($C$9/(1-$D13)))),"") -> 19 | C36: 28 | D36: 38 | E36: 47 | F36: 57 | G36: 66 | H36: 76 | I36: 85 | J36: 95 | K36: 104 | L36: 113 | M36: 123 | N36: 132 | O36: 142 | P36: 151 | Q36: 161 | R36: 170 | S36: 180 | T36: 189 | U36: 199 | V36: =TRANSPOSE(B35:U35) -> 3 | W36: =TRANSPOSE(B56:U56) -> 378 | X36: =$E$4 -> 15.6 | Y36: =MAX($F$11,$I$62)*AB36 -> 104.00 | Z36: =AB36*$E$4 -> 0.78 | AA36: =$F$11 -> 2,080 | AB36: =1/20 -> 0.05 | AC36: =$N$9 -> 461.9
A37: 2 | B37: 19 | C37: 28 | D37: 38 | E37: 47 | F37: 57 | G37: 66 | H37: 76 | I37: 85 | J37: 95 | K37: 104 | L37: 113 | M37: 123 | N37: 132 | O37: 142 | P37: 151 | Q37: 161 | R37: 170 | S37: 180 | T37: 189 | U37: 199 | V37: 4.254545455 | W37: 567 | X37: =$E$4 -> 15.6 | Y37: =MAX($F$11,$I$62)*AB37 -> 208.00 | Z37: =AB37*$E$4 -> 1.56 | AA37: =$F$11 -> 2,080 | AB37: =AB36+1/20 -> 0.1 | AC37: =$N$9 -> 461.9
A38: 3 | B38: 19 | C38: 28 | D38: 38 | E38: 47 | F38: 57 | G38: 66 | H38: 76 | I38: 85 | J38: 95 | K38: 104 | L38: 113 | M38: 123 | N38: 132 | O38: 142 | P38: 151 | Q38: 161 | R38: 170 | S38: 180 | T38: 189 | U38: 199 | V38: 5.672727273 | W38: 756 | X38: 15.6 | Y38: 312.00 | Z38: 2.34 | AA38: 2,080 | AB38: =AB37+1/20 -> 0.15 | AC38: 461.9
A39: 4 | B39: 19 | C39: 28 | D39: 38 | E39: 47 | F39: 57 | G39: 66 | H39: 76 | I39: 85 | J39: 95 | K39: 104 | L39: 113 | M39: 123 | N39: 132 | O39: 142 | P39: 151 | Q39: 161 | R39: 170 | S39: 180 | T39: 189 | U39: 199 | V39: 7.090909091 | W39: 945 | X39: 15.6 | Y39: 416.00 | Z39: 3.12 | AA39: 2,080 | AB39: 0.2 | AC39: 461.9
A40: 5 | B40: 19 | C40: 28 | D40: 38 | E40: 47 | F40: 57 | G40: 66 | H40: 76 | I40: 85 | J40: 95 | K40: 104 | L40: 113 | M40: 123 | N40: 132 | O40: 142 | P40: 151 | Q40: 161 | R40: 170 | S40: 180 | T40: 189 | U40: 199 | V40: 8.509090909 | W40: 1,135 | X40: 15.6 | Y40: 520.00 | Z40: 3.9 | AA40: 2,080 | AB40: 0.25 | AC40: 461.9
A41: 6 | B41: 19 | C41: 28 | D41: 38 | E41: 47 | F41: 57 | G41: 66 | H41: 76 | I41: 85 | J41: 95 | K41: 104 | L41: 113 | M41: 123 | N41: 132 | O41: 142 | P41: 151 | Q41: 161 | R41: 170 | S41: 180 | T41: 189 | U41: 199 | V41: 9.927272727 | W41: 1,324 | X41: 15.6 | Y41: 624.00 | Z41: 4.68 | AA41: 2,080 | AB41: 0.3 | AC41: 461.9
A42: 7 | B42: 19 | C42: 28 | D42: 38 | E42: 47 | F42: 57 | G42: 66 | H42: 76 | I42: 85 | J42: 95 | K42: 104 | L42: 113 | M42: 123 | N42: 132 | O42: 142 | P42: 151 | Q42: 161 | R42: 170 | S42: 180 | T42: 189 | U42: 199 | V42: 11.34545455 | W42: 1,513 | X42: 15.6 | Y42: 728.00 | Z42: 5.46 | AA42: 2,080 | AB42: 0.35 | AC42: 461.9
A43: 8 | B43: 19 | C43: 28 | D43: 38 | E43: 47 | F43: 57 | G43: 66 | H43: 76 | I43: 85 | J43: 95 | K43: 104 | L43: 113 | M43: 123 | N43: 132 | O43: 142 | P43: 151 | Q43: 161 | R43: 170 | S43: 180 | T43: 189 | U43: 199 | V43: 12.76363636 | W43: 1,702 | X43: 15.6 | Y43: 832.00 | Z43: 6.24 | AA43: 2,080 | AB43: 0.4 | AC43: 461.9
A44: 9 | B44: 19 | C44: 28 | D44: 38 | E44: 47 | F44: 57 | G44: 66 | H44: 76 | I44: 85 | J44: 95 | K44: 104 | L44: 113 | M44: 123 | N44: 132 | O44: 142 | P44: 151 | Q44: 161 | R44: 170 | S44: 180 | T44: 189 | U44: 199 | V44: 14.18181818 | W44: 1,891 | X44: 15.6 | Y44: 936.00 | Z44: 7.02 | AA44: 2,080 | AB44: 0.45 | AC44: 461.9
A45: 10 | B45: 19 | C45: 28 | D45: 38 | E45: 47 | F45: 57 | G45: 66 | H45: 76 | I45: 85 | J45: 95 | K45: 104 | L45: 113 | M45: 123 | N45: 132 | O45: 142 | P45: 151 | Q45: 161 | R45: 170 | S45: 180 | T45: 189 | U45: 199 | V45: 15.6 | W45: 2,080 | X45: 15.6 | Y45: 1,040.00 | Z45: 7.8 | AA45: 2,080 | AB45: 0.5 | AC45: 461.9
A46: 11 | B46: 19 | C46: 28 | D46: 38 | E46: 47 | F46: 57 | G46: 66 | H46: 76 | I46: 85 | J46: 95 | K46: 104 | L46: 113 | M46: 123 | N46: 132 | O46: 142 | P46: 151 | Q46: 161 | R46: 170 | S46: 180 | T46: 189 | U46: 199 | V46: 17.01818182 | W46: 2,269 | X46: 15.6 | Y46: 1,144.00 | Z46: 8.58 | AA46: 2,080 | AB46: 0.55 | AC46: 461.9
A47: 12 | B47: 19 | C47: 28 | D47: 38 | E47: 47 | F47: 57 | G47: 66 | H47: 76 | I47: 85 | J47: 95 | K47: 104 | L47: 113 | M47: 123 | N47: 132 | O47: 142 | P47: 151 | Q47: 161 | R47: 170 | S47: 180 | T47: 189 | U47: 199 | V47: 18.43636364 | W47: 2,458 | X47: 15.6 | Y47: 1,248.00 | Z47: 9.36 | AA47: 2,080 | AB47: 0.6 | AC47: 461.9
A48: 13 | B48: 19 | C48: 28 | D48: 38 | E48: 47 | F48: 57 | G48: 66 | H48: 76 | I48: 85 | J48: 95 | K48: 104 | L48: 113 | M48: 123 | N48: 132 | O48: 142 | P48: 151 | Q48: =IF($B25<=$D$11,($C25^(1/(1-$D25))*((Q$35*$D25/$E$5)^($D25/(1-$D25)))*($C$8^($C$9/(1-$D25)))),"") -> 161 | R48: 170 | S48: 180 | T48: 189 | U48: 199 | V48: 19.85454545 | W48: 2,647 | X48: 15.6 | Y48: 1,352.00 | Z48: 10.14 | AA48: 2,080 | AB48: 0.65 | AC48: 461.9
A49: 14 | B49: =IF($B26<=$D$11,($C26^(1/(1-$D26))*((B$35*$D26/$E$5)^($D26/(1-$D26)))*($C$8^($C$9/(1-$D26)))),"") -> 19 | C49: 28 | D49: 38 | E49: 47 | F49: 57 | G49: 66 | H49: 76 | I49: 85 | J49: 95 | K49: 104 | L49: 113 | M49: 123 | N49: 132 | O49: 142 | P49: 151 | Q49: 161 | R49: 170 | S49: 180 | T49: 189 | U49: 199 | V49: 21.27272727 | W49: 2,836 | X49: 15.6 | Y49: 1,456.00 | Z49: 10.92 | AA49: 2,080 | AB49: 0.7 | AC49: 461.9
A50: 15 | B50: 19 | C50: 28 | D50: 38 | E50: 47 | F50: 57 | G50: 66 | H50: 76 | I50: 85 | J50: 95 | K50: 104 | L50: 113 | M50: 123 | N50: 132 | O50: 142 | P50: 151 | Q50: 161 | R50: 170 | S50: 180 | T50: 189 | U50: 199 | V50: 22.69090909 | W50: 3,025 | X50: 15.6 | Y50: 1,560.00 | Z50: 11.7 | AA50: 2,080 | AB50: 0.75 | AC50: 461.9
A51: 16 | B51: 19 | C51: 28 | D51: 38 | E51: 47 | F51: 57 | G51: 66 | H51: 76 | I51: 85 | J51: 95 | K51: 104 | L51: 113 | M51: 123 | N51: 132 | O51: 142 | P51: 151 | Q51: 161 | R51: 170 | S51: 180 | T51: 189 | U51: 199 | V51: 24.10909091 | W51: 3,215 | X51: 15.6 | Y51: 1,664.00 | Z51: 12.48 | AA51: 2,080 | AB51: 0.8 | AC51: 461.9
A52: 17 | B52: 19 | C52: 28 | D52: 38 | E52: 47 | F52: 57 | G52: 66 | H52: 76 | I52: 85 | J52: 95 | K52: 104 | L52: 113 | M52: 123 | N52: 132 | O52: 142 | P52: 151 | Q52: 161 | R52: 170 | S52: 180 | T52: 189 | U52: 199 | V52: 25.52727273 | W52: 3,404 | X52: 15.6 | Y52: 1,768.00 | Z52: 13.26 | AA52: 2,080 | AB52: 0.85 | AC52: 461.9
A53: 18 | B53: 19 | C53: 28 | D53: 38 | E53: 47 | F53: 57 | G53: 66 | H53: 76 | I53: 85 | J53: 95 | K53: 104 | L53: 113 | M53: 123 | N53: 132 | O53: 142 | P53: 151 | Q53: 161 | R53: 170 | S53: 180 | T53: 189 | U53: 199 | V53: 26.94545455 | W53: 3,593 | X53: 15.6 | Y53: 1,872.00 | Z53: 14.04 | AA53: 2,080 | AB53: 0.9 | AC53: 461.9
A54: 19 | B54: 19 | C54: 28 | D54: 38 | E54: 47 | F54: 57 | G54: 66 | H54: 76 | I54: 85 | J54: 95 | K54: 104 | L54: 113 | M54: 123 | N54: 132 | O54: 142 | P54: 151 | Q54: 161 | R54: 170 | S54: 180 | T54: 189 | U54: 199 | V54: 28.36363636 | W54: 3,782 | X54: 15.6 | Y54: 1,976.00 | Z54: 14.82 | AA54: 2,080 | AB54: 0.95 | AC54: 461.9
A55: 20 | B55: 19 | C55: 28 | D55: 38 | E55: 47 | F55: 57 | G55: 66 | H55: 76 | I55: 85 | J55: 95 | K55: 104 | L55: 113 | M55: 123 | N55: 132 | O55: 142 | P55: 151 | Q55: 161 | R55: 170 | S55: 180 | T55: 189 | U55: 199 | V55: 29.78181818 | W55: 3,971 | X55: 15.6 | Y55: 2,080.00 | Z55: 15.6 | AA55: 2,080 | AB55: 1 | AC55: 461.9
B56: =SUM(B36:B55) -> 378 | C56: =SUM(C36:C55) -> 567 | D56: 756 | E56: 945 | F56: 1,135 | G56: 1,324 | H56: 1,513 | I56: 1,702 | J56: 1,891 | K56: 2,080 | L56: 2,269 | M56: 2,458 | N56: 2,647 | O56: 2,836 | P56: 3,025 | Q56: 3,215 | R56: 3,404 | S56: 3,593 | T56: 3,782 | U56: 3,971
L58: Función de demanda
K59: Ponderador | L59: p | M59: y | N59: Ponderador | O59: yline | Q59: pline
B60: RECTA PRESUPUESTAL | H60: DEMANDA TOTAL BIEN 1 | K60: 0 | N60: ='Oculto prod'!M3 -> 0 | O60: =$C$62 -> 15.6 | P60: =$O$8*K60 -> 0 | Q60: =$C$62*K60 -> 0 | R60: =$I$62 -> 461.9 | S60: =$O$8 -> 2,080.00
B61: m | C61: p1 | D61: p2 | H61: Ponderador m | I61: Demanda | J61: =($C$66*$A$66/C62)+(IF(C62<=$D$62,$A$69/C62,0))+($D$62/C62)+($C$77+(($A$75-$C$77*C62-$E$77*$D$62)/C62)) -> 202.3 | K61: 0.05 | N61: ='Oculto prod'!M4 -> 0.09 | O61: =$C$62 -> 15.6 | P61: =$O$8*K61 -> 104.00 | Q61: =$C$62*K61 -> 0.78 | R61: =$I$62 -> 461.9 | S61: =$O$8 -> 2,080.00
B62: =E5*E11 -> 16,224.0 | C62: =E4 -> 15.6 | D62: =Mercadogral!I6 -> 22.0 | H62: =H66+H69+H72+H75 -> 1.0 | I62: =I66+I69+I72+I75 -> 461.9 | J62: =SUM(J63:J75) -> 202.3333333 | K62: 0.10 | N62: ='Oculto prod'!M5 -> 0.18 | O62: 15.6 | P62: 208.00 | Q62: 1.56 | R62: 461.9 | S62: 2,080.00
B63: Inserte los datos correspondientes | H63: =IF(H62=1, "Correcto","Incorrecto, debe sumar 1") -> Correcto | K63: 0.15 | N63: ='Oculto prod'!M6 -> 0.27 | O63: 15.6 | P63: 312.00 | Q63: 2.34 | R63: 461.9 | S63: 2,080.00
B64: FUNCIÓN COBB-DOUGLAS | K64: 0.20 | L64: =$C$62*N64 -> 5.67 | M64: =($C$66*$A$66/L64)+(IF(L64<=$D$62,$A$69/L64,0))+($D$62/L64)+($C$77+($C$75/L64*($A$75-L64*$C$77-$D$62*$E$77))) -> 1,095.1 | N64: ='Oculto prod'!M7 -> 0.36 | O64: 15.6 | P64: 416.00 | Q64: 3.12 | R64: 461.9 | S64: 2,080.00
A65: m | B65: v | C65: a1 | D65: x1* | E65: 1-a1 | F65: x2* | H65: Ponderador | I65: Demanda | K65: 0.25 | L65: 7.09 | M65: 896.1 | N65: ='Oculto prod'!M8 -> 0.45 | O65: 15.6 | P65: 520.00 | Q65: 3.90 | R65: 461.9 | S65: 2,080.00
A66: =B62*H66 -> 6,489.6 | B66: =D66^C66*F66^E66 -> 175.2 | C66: =Mercadogral!H10 -> 0.5 | D66: =C66*A66/C62 -> 208.0 | E66: =1-C66 -> 0.5 | F66: =E66*A66/D62 -> 147.5 | H66: =Mercadogral!M10 -> 0.4 | I66: =D66 -> 208.0 | J66: =($C$66*$A$66/C62) -> 208.0 | K66: 0.30 | L66: 8.51 | M66: 763.4 | N66: ='Oculto prod'!M9 -> 0.55 | O66: 15.6 | P66: 624.00 | Q66: 4.68 | R66: 461.9 | S66: 2,080.00
B67: FUNCIÓN SUSTITUTOS PERFECTOS | K67: 0.35 | L67: 9.93 | M67: 668.7 | N67: ='Oculto prod'!M10 -> 0.64 | O67: 15.6 | P67: 728.00 | Q67: 5.46 | R67: 461.9 | S67: 2,080.00
A68: m | B68: v | C68: x1* | D68: x2* | E68: Rel. 1 a: | H68: Ponderador | I68: Demanda | K68: 0.40 | L68: 11.35 | M68: 597.6 | N68: ='Oculto prod'!M11 -> 0.73 | O68: 15.6 | P68: 832.00 | Q68: 6.24 | R68: 461.9 | S68: 2,080.00
A69: =H69*B62 -> 4,867.2 | B69: =C69+D69 -> 312.0 | C69: =IF(C62<=D62,A69/C62,0) -> 312.0 | D69: =IF(C62<=D62,0,A69/D62) -> 0.0 | E69: =Mercadogral!J13 -> 1.0 | H69: =Mercadogral!M13 -> 0.3 | I69: =C69 -> 312.0 | J69: =(IF(C62<=$D$62,$A$69/C62,0)) -> 312 | K69: 0.45 | L69: 12.76 | M69: 542.3 | N69: ='Oculto prod'!M12 -> 0.82 | O69: 15.6 | P69: 936.00 | Q69: 7.02 | R69: 461.9 | S69: 2,080.00
B70: FUNCIÓN CUASILINEAL | K70: 0.50 | L70: 14.18 | M70: 498.1 | N70: ='Oculto prod'!M13 -> 0.91 | O70: 15.6 | P70: 1,040.00 | Q70: 7.80 | R70: 461.9 | S70: 2,080.00
A71: m | B71: v | C71: x1* | D71: x2* | H71: Ponderador | I71: Demanda | K71: 0.55 | L71: 15.60 | M71: 461.9 | N71: ='Oculto prod'!M14 -> 1.00 | O71: 15.6 | P71: 1,144.00 | Q71: 8.58 | R71: 461.9 | S71: 2,080.00
A72: =B62*H72 -> 3,244.8 | B72: =LOG(C72)+D72 -> 146.6 | C72: =D62/C62 -> 1.4 | D72: =A72/D62-1 -> 146.5 | H72: =Mercadogral!M16 -> 0.2 | I72: =C72 -> 1.4 | J72: =($D$62/C62) -> 1.41025641 | K72: 0.60 | L72: 17.02 | M72: 431.7 | N72: ='Oculto prod'!M15 -> 1.09 | O72: 15.6 | P72: 1,248.00 | Q72: 9.36 | R72: 461.9 | S72: 2,080.00
B73: FUNCIÓN STONE-GEARY | K73: 0.65 | L73: 18.44 | M73: 406.2 | N73: ='Oculto prod'!M16 -> 1.18 | O73: 15.6 | P73: 1,352.00 | Q73: 10.14 | R73: 461.9 | S73: 2,080.00
A74: m | B74: v | C74: a2 | D74: x1* | E74: 1-a2 | F74: x2* | H74: Ponderador | I74: Demanda | K74: 0.70 | L74: 19.85 | M74: 384.3 | N74: ='Oculto prod'!M17 -> 1.27 | O74: 15.6 | P74: 1,456.00 | Q74: 10.92 | R74: 461.9 | S74: 2,080.00
A75: =B62*H75 -> 1,622.4 | B75: =((D75-C77)^(C75))*((F75-E77)^(E75)) ->  | C75: =Mercadogral!H19 -> 0.5 | D75: =C77+(C75*(A75-C77*C62-E77*D62)/C62) -> (59.5) | E75: =1-C75 -> 0.5 | F75: =E77+(E75*(A75-C77*C62-E77*D62)/D62) -> 116.0 | H75: =Mercadogral!M19 -> 0.1 | I75: =D75 -> (59.5) | J75: =($C$77+(($A$75-$C$77*C62-$E$77*$D$62)/C62)) -> -319.1 | K75: 0.75 | L75: 21.27 | M75: 365.4 | N75: ='Oculto prod'!M18 -> 1.36 | O75: 15.6 | P75: 1,560.00 | Q75: 11.70 | R75: 461.9 | S75: 2,080.00
A76: =SUM(A75,A72,A69,A66) -> 16,224.0 | C76: s1 | E76: s2 | K76: 0.80 | L76: 22.69 | M76: 134.3 | N76: ='Oculto prod'!M19 -> 1.45 | O76: 15.6 | P76: 1,664.00 | Q76: 12.48 | R76: 461.9 | S76: 2,080.00
C77: =Mercadogral!H21 -> 200.0 | E77: =Mercadogral!J21 -> 300.0 | K77: 0.85 | L77: 24.11 | M77: =($C$66*$A$66/L77)+(IF(L77<=$D$62,$A$69/L77,0))+($D$62/L77)+($C$77+($C$75/L77*($A$75-L77*$C$77-$D$62*$E$77))) -> 132.3 | N77: ='Oculto prod'!M20 -> 1.55 | O77: 15.6 | P77: 1,768.00 | Q77: 13.26 | R77: 461.9 | S77: 2,080.00
K78: 0.90 | L78: 25.53 | M78: =($C$66*$A$66/L78)+(IF(L78<=$D$62,$A$69/L78,0))+($D$62/L78)+($C$77+($C$75/L78*($A$75-L78*$C$77-$D$62*$E$77))) -> 130.5 | N78: ='Oculto prod'!M21 -> 1.64 | O78: 15.6 | P78: 1,872.00 | Q78: 14.04 | R78: 461.9 | S78: 2,080.00
K79: 0.95 | L79: 26.95 | M79: 128.9 | N79: ='Oculto prod'!M22 -> 1.73 | O79: 15.6 | P79: 1,976.00 | Q79: 14.82 | R79: 461.9 | S79: 2,080.00
K80: 1.00 | L80: 28.36 | M80: 127.4 | N80: ='Oculto prod'!M23 -> 1.82 | O80: 15.6 | P80: 2,080.00 | Q80: 15.60 | R80: 461.9 | S80: 2,080.00
J101: Ponderador
B102: x1 | C102: =C133*(E133^(D133))*(C108^(C109)) -> 46.0 | D102: x1 | E102: =((E104*D133)/E105)^(D133/(1-D133))*(E108)^(C109/(1-D133))*(C133^(1/(1-D133))) -> 46.0 | J102: =1/$J$24 -> 0.09
B103: A min | C103: =C3 -> 2.0 | D103: p | E103: =(E104*C102)-(E105*E106+E107*E108) -> -4,841.6 | J103: =J102+1/$J$24 -> 0.18 | K103: =TRANSPOSE(J103:J122) -> 0.1818181818 | L103: 0.2727272727 | M103: 0.3636363636 | N103: 0.4545454545 | O103: 0.5454545455 | P103: 0.6363636364 | Q103: 0.7272727273 | R103: 0.8181818182 | S103: 0.9090909091 | T103: 1 | U103: 1.090909091 | V103: 1.181818182 | W103: 1.272727273 | X103: 1.363636364 | Y103: 1.454545455 | Z103: 1.545454545 | AA103: 1.636363636 | AB103: 1.727272727 | AC103: 1.818181818 | AD103: 1.909090909
B104: Amax | C104: =C4 -> 2.0 | D104: p1 | E104: =Mercadogral!E12 -> 6.9 | F104: Se cambia | J104: =J103+1/$J$24 -> 0.27
B105: q1 | C105: =E106 -> 5.3 | D105: w1 | E105: =E5 -> 30.0 | J105: 0.36
B106: b min | C106: =C6 -> 0.5 | D106: q1 | E106: =E133 -> 5.3 | J106: 0.45
B107: b max | C107: =C7 -> 0.5 | D107: w2 | E107: =E7 -> 50.0 | J107: 0.55 | M107: P | N107: Y | O107: Y
B108: q2 | C108: =E108 -> 100.0 | D108: q2 | E108: =E8 -> 100.0 | J108: 0.64 | L108: Empresa | M108: =E104 -> 6.9 | N108: =F111 -> 919.0 | O108: =MAX(N108:N109) -> 919.0
B109: g | C109: =C9 -> 0.5 | J109: 0.73 | L109: Consumidores | M109: =C162 -> 6.9 | N109: =I162 -> 919.0
D110: No. Empresas | E110: trabajadores | F110: producción | J110: 0.82 | L110: =IF(N110<0,"Exceso de demanda",IF(N110=0,"Equilibrio", "Exceso de oferta")) -> Exceso de oferta | N110: =N108-N109 -> 0.0
B111: Número de vendedores | D111: =D11 -> 20 | E111: =SUM(E113:E132) -> 106 | F111: =SUM(F113:F132) -> 919 | J111: 0.91
B112: Productor | C112: A | D112: a | E112: q1 | F112: y | J112: 1.00 | M112: ecuación | N112: objetivo
B113: 1 | C113: =C103 -> 2.00 | D113: =C106 -> 0.50 | E113: =IF(B113<=$D$111,($E$104*D113*F113/$E$105),"") -> 5.28 | F113: =IF(B113<=$D$111,(C113^(1/(1-D113))*(($E$104*D113/$E$105)^(D113/(1-D113)))*($C$108^($C$109/(1-D113)))),"") -> 45.95 | J113: 1.09 | M113: =F111-I162 -> 0.000033483 | N113: 0
B114: 2 | C114: =IF(B113<$D$111,($C$104-$C$103)/($D$111-1)+C113,"") -> 2.00 | D114: =IF(B113<$D$111,($C$107-$C$106)/($D$111-1)+D113,"") -> 0.50 | E114: =IF(B114<=$D$111,($E$104*D114*F114/$E$105),"") -> 5.28 | F114: =IF(B114<=$D$111,(C114^(1/(1-D114))*(($E$104*D114/$E$105)^(D114/(1-D114)))*($C$108^($C$109/(1-D114)))),"") -> 45.95 | J114: 1.18
B115: 3 | C115: =IF(B114<$D$111,($C$104-$C$103)/($D$111-1)+C114,"") -> 2.00 | D115: =IF(B114<$D$111,($C$107-$C$106)/($D$111-1)+D114,"") -> 0.50 | E115: 5.28 | F115: 45.95 | J115: 1.27
B116: 4 | C116: 2.00 | D116: 0.50 | E116: 5.28 | F116: 45.95 | J116: 1.36
B117: 5 | C117: 2.00 | D117: 0.50 | E117: 5.28 | F117: 45.95 | J117: 1.45
B118: 6 | C118: 2.00 | D118: 0.50 | E118: 5.28 | F118: 45.95 | J118: 1.55
B119: 7 | C119: 2.00 | D119: 0.50 | E119: 5.28 | F119: 45.95 | J119: 1.64
B120: 8 | C120: 2.00 | D120: 0.50 | E120: 5.28 | F120: 45.95 | J120: 1.73
B121: 9 | C121: 2.00 | D121: 0.50 | E121: 5.28 | F121: 45.95 | J121: 1.82
B122: 10 | C122: 2.00 | D122: 0.50 | E122: 5.28 | F122: 45.95 | J122: 1.91
B123: 11 | C123: 2.00 | D123: 0.50 | E123: 5.28 | F123: 45.95
B124: 12 | C124: 2.00 | D124: 0.50 | E124: 5.28 | F124: 45.95 | J124: 11
B125: 13 | C125: 2.00 | D125: 0.50 | E125: 5.28 | F125: 45.95
B126: 14 | C126: 2.00 | D126: 0.50 | E126: 5.28 | F126: 45.95
B127: 15 | C127: 2.00 | D127: 0.50 | E127: 5.28 | F127: 45.95
B128: 16 | C128: 2.00 | D128: 0.50 | E128: 5.28 | F128: 45.95
B129: 17 | C129: 2.00 | D129: 0.50 | E129: 5.28 | F129: 45.95
B130: 18 | C130: 2.00 | D130: 0.50 | E130: 5.28 | F130: 45.95
B131: 19 | C131: 2.00 | D131: 0.50 | E131: 5.28 | F131: 45.95
B132: 20 | C132: 2.00 | D132: 0.50 | E132: 5.28 | F132: 45.95
C133: =MEDIAN(C113:C132) -> 2.00 | D133: =MEDIAN(D113:D132) -> 0.50 | E133: =$E$104*D133*F133/$E$105 -> 5.28 | F133: =C133^(1/(1-D133))*(($E$104*D133/$E$105)^(D133/(1-D133)))*($C$108^($C$109/(1-D133))) -> 45.95
B134: precios | V134: Oferta
A135: empresas | B135: =B35 -> 2.84 | C135: =C35 -> 4.25 | D135: 5.67 | E135: 7.09 | F135: 8.51 | G135: 9.93 | H135: 11.35 | I135: 12.76 | J135: 14.18 | K135: 15.60 | L135: 17.02 | M135: 18.44 | N135: 19.85 | O135: 21.27 | P135: 22.69 | Q135: 24.11 | R135: 25.53 | S135: 26.95 | T135: 28.36 | U135: 29.78 | V135: Precios | W135: Producción | X135: Pline | Z135: Yline | AB135: Ponderador
A136: =B113 -> 1 | B136: =IF($B113<=$D$111,($C113^(1/(1-$D113))*((B$135*$D113/$E$105)^($D113/(1-$D113)))*($C$108^($C$109/(1-$D113)))),"") -> 19 | C136: =IF($B113<=$D$111,($C113^(1/(1-$D113))*((C$135*$D113/$E$105)^($D113/(1-$D113)))*($C$108^($C$109/(1-$D113)))),"") -> 28 | D136: 38 | E136: 47 | F136: 57 | G136: 66 | H136: 76 | I136: 85 | J136: 95 | K136: 104 | L136: 113 | M136: 123 | N136: 132 | O136: 142 | P136: 151 | Q136: 161 | R136: 170 | S136: 180 | T136: 189 | U136: 199 | V136: =TRANSPOSE(B135:U135) -> 3 | W136: =TRANSPOSE(B156:U156) -> 378 | X136: =$E$104 -> 6.9 | Y136: =$F$111*AB136 -> 45.95 | Z136: =AB136*$E$104 -> 0.344631983 | AA136: =$F$111 -> 919 | AB136: =1/20 -> 0.05 | AC136: =$N$109 -> 919.0
A137: 2 | B137: =IF($B114<=$D$111,($C114^(1/(1-$D114))*((B$135*$D114/$E$105)^($D114/(1-$D114)))*($C$108^($C$109/(1-$D114)))),"") -> 19 | C137: 28 | D137: 38 | E137: 47 | F137: 57 | G137: 66 | H137: 76 | I137: 85 | J137: 95 | K137: 104 | L137: 113 | M137: 123 | N137: 132 | O137: 142 | P137: 151 | Q137: 161 | R137: 170 | S137: 180 | T137: 189 | U137: 199 | V137: 4.254545455 | W137: 567 | X137: =$E$104 -> 6.9 | Y137: =$F$111*AB137 -> 91.90 | Z137: =AB137*$E$104 -> 0.6892639659 | AA137: =$F$111 -> 919 | AB137: =AB136+1/20 -> 0.1 | AC137: =$N$109 -> 919.0
A138: 3 | B138: 19 | C138: 28 | D138: 38 | E138: 47 | F138: 57 | G138: 66 | H138: 76 | I138: 85 | J138: 95 | K138: 104 | L138: 113 | M138: 123 | N138: 132 | O138: 142 | P138: 151 | Q138: 161 | R138: 170 | S138: 180 | T138: 189 | U138: 199 | V138: 5.672727273 | W138: 756 | X138: 6.9 | Y138: 137.85 | Z138: 1.033895949 | AA138: 919 | AB138: =AB137+1/20 -> 0.15 | AC138: 919.0
A139: 4 | B139: 19 | C139: 28 | D139: 38 | E139: 47 | F139: 57 | G139: 66 | H139: 76 | I139: 85 | J139: 95 | K139: 104 | L139: 113 | M139: 123 | N139: 132 | O139: 142 | P139: 151 | Q139: 161 | R139: 170 | S139: 180 | T139: 189 | U139: 199 | V139: 7.090909091 | W139: 945 | X139: 6.9 | Y139: 183.80 | Z139: 1.378527932 | AA139: 919 | AB139: 0.2 | AC139: 919.0
A140: 5 | B140: 19 | C140: 28 | D140: 38 | E140: 47 | F140: 57 | G140: 66 | H140: 76 | I140: 85 | J140: 95 | K140: 104 | L140: 113 | M140: 123 | N140: 132 | O140: 142 | P140: 151 | Q140: 161 | R140: 170 | S140: 180 | T140: 189 | U140: 199 | V140: 8.509090909 | W140: 1,135 | X140: 6.9 | Y140: 229.75 | Z140: 1.723159915 | AA140: 919 | AB140: 0.25 | AC140: 919.0
A141: 6 | B141: 19 | C141: 28 | D141: 38 | E141: 47 | F141: 57 | G141: 66 | H141: 76 | I141: 85 | J141: 95 | K141: 104 | L141: 113 | M141: 123 | N141: 132 | O141: 142 | P141: 151 | Q141: 161 | R141: 170 | S141: 180 | T141: 189 | U141: 199 | V141: 9.927272727 | W141: 1,324 | X141: 6.9 | Y141: 275.71 | Z141: 2.067791898 | AA141: 919 | AB141: 0.3 | AC141: 919.0
A142: 7 | B142: 19 | C142: 28 | D142: 38 | E142: 47 | F142: 57 | G142: 66 | H142: 76 | I142: 85 | J142: 95 | K142: 104 | L142: 113 | M142: 123 | N142: 132 | O142: 142 | P142: 151 | Q142: 161 | R142: 170 | S142: 180 | T142: 189 | U142: 199 | V142: 11.34545455 | W142: 1,513 | X142: 6.9 | Y142: 321.66 | Z142: 2.412423881 | AA142: 919 | AB142: 0.35 | AC142: 919.0
A143: 8 | B143: 19 | C143: 28 | D143: 38 | E143: 47 | F143: 57 | G143: 66 | H143: 76 | I143: 85 | J143: 95 | K143: 104 | L143: 113 | M143: 123 | N143: 132 | O143: 142 | P143: 151 | Q143: 161 | R143: 170 | S143: 180 | T143: 189 | U143: 199 | V143: 12.76363636 | W143: 1,702 | X143: 6.9 | Y143: 367.61 | Z143: 2.757055864 | AA143: 919 | AB143: 0.4 | AC143: 919.0
A144: 9 | B144: 19 | C144: 28 | D144: 38 | E144: 47 | F144: 57 | G144: 66 | H144: 76 | I144: 85 | J144: 95 | K144: 104 | L144: 113 | M144: 123 | N144: 132 | O144: 142 | P144: 151 | Q144: 161 | R144: 170 | S144: 180 | T144: 189 | U144: 199 | V144: 14.18181818 | W144: 1,891 | X144: 6.9 | Y144: 413.56 | Z144: 3.101687847 | AA144: 919 | AB144: 0.45 | AC144: 919.0
A145: 10 | B145: 19 | C145: 28 | D145: 38 | E145: 47 | F145: 57 | G145: 66 | H145: 76 | I145: 85 | J145: 95 | K145: 104 | L145: 113 | M145: 123 | N145: 132 | O145: 142 | P145: 151 | Q145: 161 | R145: 170 | S145: 180 | T145: 189 | U145: 199 | V145: 15.6 | W145: 2,080 | X145: 6.9 | Y145: 459.51 | Z145: 3.44631983 | AA145: 919 | AB145: 0.5 | AC145: 919.0
A146: 11 | B146: 19 | C146: 28 | D146: 38 | E146: 47 | F146: 57 | G146: 66 | H146: 76 | I146: 85 | J146: 95 | K146: 104 | L146: 113 | M146: 123 | N146: 132 | O146: 142 | P146: 151 | Q146: 161 | R146: 170 | S146: 180 | T146: 189 | U146: 199 | V146: 17.01818182 | W146: 2,269 | X146: 6.9 | Y146: 505.46 | Z146: 3.790951813 | AA146: 919 | AB146: 0.55 | AC146: 919.0
A147: 12 | B147: 19 | C147: 28 | D147: 38 | E147: 47 | F147: 57 | G147: 66 | H147: 76 | I147: 85 | J147: 95 | K147: 104 | L147: 113 | M147: 123 | N147: 132 | O147: 142 | P147: 151 | Q147: 161 | R147: 170 | S147: 180 | T147: 189 | U147: 199 | V147: 18.43636364 | W147: 2,458 | X147: 6.9 | Y147: 551.41 | Z147: 4.135583796 | AA147: 919 | AB147: 0.6 | AC147: 919.0
A148: 13 | B148: 19 | C148: 28 | D148: 38 | E148: 47 | F148: 57 | G148: 66 | H148: 76 | I148: 85 | J148: 95 | K148: 104 | L148: 113 | M148: 123 | N148: 132 | O148: 142 | P148: 151 | Q148: 161 | R148: 170 | S148: 180 | T148: 189 | U148: 199 | V148: 19.85454545 | W148: 2,647 | X148: 6.9 | Y148: 597.36 | Z148: 4.480215779 | AA148: 919 | AB148: 0.65 | AC148: 919.0
A149: 14 | B149: 19 | C149: 28 | D149: 38 | E149: 47 | F149: 57 | G149: 66 | H149: 76 | I149: 85 | J149: 95 | K149: 104 | L149: 113 | M149: 123 | N149: 132 | O149: 142 | P149: 151 | Q149: 161 | R149: 170 | S149: 180 | T149: 189 | U149: 199 | V149: 21.27272727 | W149: 2,836 | X149: 6.9 | Y149: 643.31 | Z149: 4.824847762 | AA149: 919 | AB149: 0.7 | AC149: 919.0
A150: 15 | B150: 19 | C150: 28 | D150: 38 | E150: 47 | F150: 57 | G150: 66 | H150: 76 | I150: 85 | J150: 95 | K150: 104 | L150: 113 | M150: 123 | N150: 132 | O150: 142 | P150: 151 | Q150: 161 | R150: 170 | S150: 180 | T150: 189 | U150: 199 | V150: 22.69090909 | W150: 3,025 | X150: 6.9 | Y150: 689.26 | Z150: 5.169479745 | AA150: 919 | AB150: 0.75 | AC150: 919.0
A151: 16 | B151: 19 | C151: 28 | D151: 38 | E151: 47 | F151: 57 | G151: 66 | H151: 76 | I151: 85 | J151: 95 | K151: 104 | L151: 113 | M151: 123 | N151: 132 | O151: 142 | P151: 151 | Q151: 161 | R151: 170 | S151: 180 | T151: 189 | U151: 199 | V151: 24.10909091 | W151: 3,215 | X151: 6.9 | Y151: 735.21 | Z151: 5.514111728 | AA151: 919 | AB151: 0.8 | AC151: 919.0
A152: 17 | B152: 19 | C152: 28 | D152: 38 | E152: 47 | F152: 57 | G152: 66 | H152: 76 | I152: 85 | J152: 95 | K152: 104 | L152: 113 | M152: 123 | N152: 132 | O152: 142 | P152: 151 | Q152: =IF($B129<=$D$111,($C129^(1/(1-$D129))*((Q$135*$D129/$E$105)^($D129/(1-$D129)))*($C$108^($C$109/(1-$D129)))),"") -> 161 | R152: 170 | S152: 180 | T152: 189 | U152: 199 | V152: 25.52727273 | W152: 3,404 | X152: 6.9 | Y152: 781.17 | Z152: 5.858743711 | AA152: 919 | AB152: 0.85 | AC152: 919.0
A153: 18 | B153: =IF($B130<=$D$111,($C130^(1/(1-$D130))*((B$135*$D130/$E$105)^($D130/(1-$D130)))*($C$108^($C$109/(1-$D130)))),"") -> 19 | C153: 28 | D153: 38 | E153: 47 | F153: 57 | G153: 66 | H153: 76 | I153: 85 | J153: 95 | K153: 104 | L153: 113 | M153: 123 | N153: 132 | O153: 142 | P153: 151 | Q153: 161 | R153: 170 | S153: 180 | T153: 189 | U153: 199 | V153: 26.94545455 | W153: 3,593 | X153: 6.9 | Y153: 827.12 | Z153: 6.203375694 | AA153: 919 | AB153: 0.9 | AC153: 919.0
A154: 19 | B154: 19 | C154: 28 | D154: 38 | E154: 47 | F154: 57 | G154: 66 | H154: 76 | I154: 85 | J154: 95 | K154: 104 | L154: 113 | M154: 123 | N154: 132 | O154: 142 | P154: 151 | Q154: 161 | R154: 170 | S154: 180 | T154: 189 | U154: 199 | V154: 28.36363636 | W154: 3,782 | X154: 6.9 | Y154: 873.07 | Z154: 6.548007677 | AA154: 919 | AB154: 0.95 | AC154: 919.0
A155: 20 | B155: 19 | C155: 28 | D155: 38 | E155: 47 | F155: 57 | G155: 66 | H155: 76 | I155: 85 | J155: 95 | K155: 104 | L155: 113 | M155: 123 | N155: 132 | O155: 142 | P155: 151 | Q155: 161 | R155: 170 | S155: 180 | T155: 189 | U155: 199 | V155: 29.78181818 | W155: 3,971 | X155: 6.9 | Y155: 919.02 | Z155: 6.892639659 | AA155: 919 | AB155: 1 | AC155: 919.0
B156: =SUM(B136:B155) -> 378 | C156: =SUM(C136:C155) -> 567 | D156: 756 | E156: 945 | F156: 1,135 | G156: 1,324 | H156: 1,513 | I156: 1,702 | J156: 1,891 | K156: 2,080 | L156: 2,269 | M156: 2,458 | N156: 2,647 | O156: 2,836 | P156: 3,025 | Q156: 3,215 | R156: 3,404 | S156: 3,593 | T156: 3,782 | U156: 3,971
L158: Función de demanda
K159: Ponderador | L159: p | M159: y | N159: Ponderador | O159: yline | Q159: pline
B160: RECTA PRESUPUESTAL | H160: DEMANDA TOTAL BIEN 1 | K160: 0 | N160: =N60 -> 0 | O160: =$C$162 -> 6.9 | P160: =$I$162*K160 -> 0 | Q160: =$C$162*K160 -> 0 | R160: =$I$162 -> 919.0 | S160: =$O$108 -> 919.02
B161: m | C161: p1 | D161: p2 | H161: Ponderador m | I161: Demanda | J161: =($C$66*$A$66/C162)+(IF(C162<=$D$62,$A$69/C162,0))+($D$62/C162)+($C$77+(($A$75-$C$77*C162-$E$77*$D$62)/C162)) -> 457.9 | K161: 0.05 | L161: =$C$162*N161 -> 0.63 | M161: =($C$166*$A$166/L161)+(IF(L161<=$D$162,$A$169/L161,0))+($D$162/L161)+($C$177+($C$175/L161*($A$175-L161*$C$177-$D$162*$E$177))) -> 9109.204466 | N161: =N61 -> 0.09 | O161: =$C$162 -> 6.9 | P161: =$I$162*K161 -> 45.95 | Q161: =$C$162*K161 -> 0.34 | R161: =$I$162 -> 919.0 | S161: =$O$108 -> 919.02
B162: =B62 -> 16,224.0 | C162: =E104 -> 6.9 | D162: =D62 -> 22.0 | H162: =H166+H169+H172+H175 -> 1.0 | I162: =I166+I169+I172+I175 -> 919.0 | J162: =SUM(J163:J175) -> 457.9377649 | K162: 0.10 | L162: =$C$162*N162 -> 1.25 | M162: =($C$166*$A$166/L162)+(IF(L162<=$D$162,$A$169/L162,0))+($D$162/L162)+($C$177+($C$175/L162*($A$175-L162*$C$177-$D$162*$E$177))) -> 4604.602233 | N162: 0.18 | O162: 6.9 | P162: 91.90 | Q162: 0.69 | R162: 919.0 | S162: 919.02
B163: Inserte los datos correspondientes | H163: =IF(H162=1, "Correcto","Incorrecto, debe sumar 1") -> Correcto | K163: 0.15 | L163: 1.88 | M163: 3103.068155 | N163: 0.27 | O163: 6.9 | P163: 137.85 | Q163: 1.03 | R163: 919.0 | S163: 919.02
B164: FUNCIÓN COBB-DOUGLAS | K164: 0.20 | L164: 2.51 | M164: 2352.301116 | N164: 0.36 | O164: 6.9 | P164: 183.80 | Q164: 1.38 | R164: 919.0 | S164: 919.02
A165: m | B165: v | C165: a1 | D165: x1* | E165: 1-a1 | F165: x2* | H165: Ponderador | I165: Demanda | K165: 0.25 | L165: 3.13 | M165: 1901.840893 | N165: 0.45 | O165: 6.9 | P165: 229.75 | Q165: 1.72 | R165: 919.0 | S165: 919.02
A166: =B162*H166 -> 6,489.6 | B166: =D166^C166*F166^E166 -> 263.5 | C166: =C66 -> 0.5 | D166: =C166*A166/C162 -> 470.8 | E166: =1-C166 -> 0.5 | F166: =E166*A166/D162 -> 147.5 | H166: =H66 -> 0.4 | I166: =D166 -> 470.8 | J166: =($C$66*$A$66/C162) -> 470.8 | K166: 0.30 | L166: 3.76 | M166: 1601.534078 | N166: 0.55 | O166: 6.9 | P166: 275.71 | Q166: 2.07 | R166: 919.0 | S166: 919.02
B167: FUNCIÓN SUSTITUTOS PERFECTOS | K167: 0.35 | L167: 4.39 | M167: 1387.029209 | N167: 0.64 | O167: 6.9 | P167: 321.66 | Q167: 2.41 | R167: 919.0 | S167: 919.02
A168: m | B168: v | C168: x1* | D168: x2* | E168: Rel. 1 a: | H168: Ponderador | I168: Demanda | K168: 0.40 | L168: 5.01 | M168: 1226.150558 | N168: 0.73 | O168: 6.9 | P168: 367.61 | Q168: 2.76 | R168: 919.0 | S168: 919.02
A169: =H169*B162 -> 4,867.2 | B169: =C169+D169 -> 706.1 | C169: =IF(C162<=D162,A169/C162,0) -> 706.1 | D169: =IF(C162<=D162,0,A169/D162) -> 0.0 | E169: =E69 -> 1.0 | H169: =H69 -> 0.3 | I169: =C169 -> 706.1 | J169: =(IF(C162<=$D$62,$A$69/C162,0)) -> 706.1445601 | K169: 0.45 | L169: 5.64 | M169: 1101.022718 | N169: 0.82 | O169: 6.9 | P169: 413.56 | Q169: 3.10 | R169: 919.0 | S169: 919.02
B170: FUNCIÓN CUASILINEAL | K170: 0.50 | L170: 6.27 | M170: 1000.920447 | N170: 0.91 | O170: 6.9 | P170: 459.51 | Q170: 3.45 | R170: 919.0 | S170: 919.02
A171: m | B171: v | C171: x1* | D171: x2* | H171: Ponderador | I171: Demanda | K171: 0.55 | L171: 6.89 | M171: 919.0185878 | N171: 1.00 | O171: 6.9 | P171: 505.46 | Q171: 3.79 | R171: 919.0 | S171: 919.02
A172: =B162*H172 -> 3,244.8 | B172: =LOG(C172)+D172 -> 147.0 | C172: =D162/C162 -> 3.2 | D172: =A172/D162-1 -> 146.5 | H172: =H72 -> 0.2 | I172: =C172 -> 3.2 | J172: =($D$62/C162) -> 3.191810553 | K172: 0.60 | L172: 7.52 | M172: 850.7670388 | N172: 1.09 | O172: 6.9 | P172: 551.41 | Q172: 4.14 | R172: 919.0 | S172: 919.02
B173: FUNCIÓN STONE-GEARY | K173: 0.65 | L173: 8.15 | M173: 793.0157281 | N173: 1.18 | O173: 6.9 | P173: 597.36 | Q173: 4.48 | R173: 919.0 | S173: 919.02
A174: m | B174: v | C174: a2 | D174: x1* | E174: 1-a2 | F174: x2* | H174: Ponderador | I174: Demanda | K174: 0.70 | L174: 8.77 | M174: 743.5146047 | N174: 1.27 | O174: 6.9 | P174: 643.31 | Q174: 4.82 | R174: 919.0 | S174: 919.02
A175: =B162*H175 -> 1,622.4 | B175: =((D175-C177)^(C175))*((F175-E177)^(E175)) ->  | C175: =C75 -> 0.5 | D175: =C177+(C175*(A175-C177*C162-E177*D162)/C162) -> (261.1) | E175: =1-C175 -> 0.5 | F175: =E177+(E175*(A175-C177*C162-E177*D162)/D162) -> 155.5 | H175: =H75 -> 0.1 | I175: =D175 -> (261.1) | J175: =($C$77+(($A$75-$C$77*C162-$E$77*$D$62)/C162)) -> -722.2 | K175: 0.75 | L175: 9.40 | M175: 700.613631 | N175: 1.36 | O175: 6.9 | P175: 689.26 | Q175: 5.17 | R175: 919.0 | S175: 919.02
A176: =SUM(A175,A172,A169,A166) -> 16,224.0 | C176: s1 | E176: s2 | K176: 0.80 | L176: 10.03 | M176: 663.0752791 | N176: 1.45 | O176: 6.9 | P176: 735.21 | Q176: 5.51 | R176: 919.0 | S176: 919.02
C177: =C77 -> 200.0 | E177: =E77 -> 300.0 | K177: 0.85 | L177: 10.65 | M177: 629.9532039 | N177: 1.55 | O177: 6.9 | P177: 781.17 | Q177: 5.86 | R177: 919.0 | S177: 919.02
K178: 0.90 | L178: 11.28 | M178: 600.5113592 | N178: 1.64 | O178: 6.9 | P178: 827.12 | Q178: 6.20 | R178: 919.0 | S178: 919.02
K179: 0.95 | L179: 11.91 | M179: 574.1686561 | N179: 1.73 | O179: 6.9 | P179: 873.07 | Q179: 6.55 | R179: 919.0 | S179: 919.02
K180: 1.00 | L180: 12.53 | M180: 550.4602233 | N180: 1.82 | O180: 6.9 | P180: 919.02 | Q180: 6.89 | R180: 919.0 | S180: 919.02
